Workbook

Sheet 1 (hidden)
A1: ت | B1: العدد | C1: التاريخ | D1: رقم السيارة | E1: اسم السائق | F1: رقم المستند | G1: الاستحقاق | H1: المندوبية | I1: المكتبية | J1: النقص | K1: مبلغ النقص | L1: صافي الاستحقاق | M1: الشهر | N1: شركة/عام | O1: الكمية | P1: الشركة | Q1: رقم المستند
A2: 1 | B2: =IF(AND(C1<>C2,C2<>""),1,B1+1) ->  | E2: =VLOOKUP(D2,#REF!,2,FALSE) ->  | G2: =IFERROR(IF(N2="","",VLOOKUP(N2,#REF!,2,FALSE)),"") ->  | H2: =IFERROR(IF(N2="","",VLOOKUP(N2,#REF!,3,FALSE)),"") ->  | I2: 5000 | L2: =G2-H2-K2 ->  | M2: شهر1-2021 | N2: =IF(D2="","",CHOOSE((COUNTIF(#REF!,D2)>0)+1,"عام","شركة")) -> 
A3: 2 | B3: =IF(AND(C2<>C3,C3<>""),1,B2+1) ->  | E3: =VLOOKUP(D3,#REF!,2,FALSE) ->  | G3: =IFERROR(IF(N3="","",VLOOKUP(N3,#REF!,2,FALSE)),"") ->  | H3: =IFERROR(IF(N3="","",VLOOKUP(N3,#REF!,3,FALSE)),"") ->  | I3: 5000 | L3: =G3-H3-K3 ->  | M3: شهر1-2021 | N3: =IF(D3="","",CHOOSE((COUNTIF(#REF!,D3)>0)+1,"عام","شركة")) -> 
A4: 3 | E4: =VLOOKUP(D4,#REF!,2,FALSE) ->  | G4: =IFERROR(IF(N4="","",VLOOKUP(N4,#REF!,2,FALSE)),"") ->  | H4: =IFERROR(IF(N4="","",VLOOKUP(N4,#REF!,3,FALSE)),"") ->  | I4: 5000 | M4: شهر1-2021 | N4: =IF(D4="","",CHOOSE((COUNTIF(#REF!,D4)>0)+1,"عام","شركة")) -> 
A5: 4 | E5: =VLOOKUP(D5,#REF!,2,FALSE) ->  | G5: =IFERROR(IF(N5="","",VLOOKUP(N5,#REF!,2,FALSE)),"") ->  | H5: =IFERROR(IF(N5="","",VLOOKUP(N5,#REF!,3,FALSE)),"") ->  | I5: 5000 | M5: شهر1-2021 | N5: =IF(D5="","",CHOOSE((COUNTIF(#REF!,D5)>0)+1,"عام","شركة")) -> 
A6: 5 | E6: =VLOOKUP(D6,#REF!,2,FALSE) ->  | G6: =IFERROR(IF(N6="","",VLOOKUP(N6,#REF!,2,FALSE)),"") ->  | H6: =IFERROR(IF(N6="","",VLOOKUP(N6,#REF!,3,FALSE)),"") ->  | I6: 5000 | M6: شهر1-2021 | N6: =IF(D6="","",CHOOSE((COUNTIF(#REF!,D6)>0)+1,"عام","شركة")) -> 
A7: 6 | E7: =VLOOKUP(D7,#REF!,2,FALSE) ->  | G7: =IFERROR(IF(N7="","",VLOOKUP(N7,#REF!,2,FALSE)),"") ->  | H7: =IFERROR(IF(N7="","",VLOOKUP(N7,#REF!,3,FALSE)),"") ->  | I7: 5000 | M7: شهر1-2021 | N7: =IF(D7="","",CHOOSE((COUNTIF(#REF!,D7)>0)+1,"عام","شركة")) -> 
A8: 7 | E8: =VLOOKUP(D8,#REF!,2,FALSE) ->  | G8: =IFERROR(IF(N8="","",VLOOKUP(N8,#REF!,2,FALSE)),"") ->  | H8: =IFERROR(IF(N8="","",VLOOKUP(N8,#REF!,3,FALSE)),"") ->  | I8: 5000 | M8: شهر1-2021 | N8: =IF(D8="","",CHOOSE((COUNTIF(#REF!,D8)>0)+1,"عام","شركة")) -> 
A9: 8 | E9: =VLOOKUP(D9,#REF!,2,FALSE) ->  | G9: =IFERROR(IF(N9="","",VLOOKUP(N9,#REF!,2,FALSE)),"") ->  | H9: =IFERROR(IF(N9="","",VLOOKUP(N9,#REF!,3,FALSE)),"") ->  | I9: 5000 | M9: شهر1-2021 | N9: =IF(D9="","",CHOOSE((COUNTIF(#REF!,D9)>0)+1,"عام","شركة")) -> 
A10: 9 | E10: =VLOOKUP(D10,#REF!,2,FALSE) ->  | G10: =IFERROR(IF(N10="","",VLOOKUP(N10,#REF!,2,FALSE)),"") ->  | H10: =IFERROR(IF(N10="","",VLOOKUP(N10,#REF!,3,FALSE)),"") ->  | I10: 5000 | M10: شهر1-2021 | N10: =IF(D10="","",CHOOSE((COUNTIF(#REF!,D10)>0)+1,"عام","شركة")) -> 
A11: 10 | E11: =VLOOKUP(D11,#REF!,2,FALSE) ->  | G11: =IFERROR(IF(N11="","",VLOOKUP(N11,#REF!,2,FALSE)),"") ->  | H11: =IFERROR(IF(N11="","",VLOOKUP(N11,#REF!,3,FALSE)),"") ->  | I11: 5000 | M11: شهر1-2021 | N11: =IF(D11="","",CHOOSE((COUNTIF(#REF!,D11)>0)+1,"عام","شركة")) -> 
A12: 11 | E12: =VLOOKUP(D12,#REF!,2,FALSE) ->  | G12: =IFERROR(IF(N12="","",VLOOKUP(N12,#REF!,2,FALSE)),"") ->  | H12: =IFERROR(IF(N12="","",VLOOKUP(N12,#REF!,3,FALSE)),"") ->  | I12: 5000 | M12: شهر1-2021 | N12: =IF(D12="","",CHOOSE((COUNTIF(#REF!,D12)>0)+1,"عام","شركة")) -> 
A13: 12 | E13: =VLOOKUP(D13,#REF!,2,FALSE) ->  | G13: =IFERROR(IF(N13="","",VLOOKUP(N13,#REF!,2,FALSE)),"") ->  | H13: =IFERROR(IF(N13="","",VLOOKUP(N13,#REF!,3,FALSE)),"") ->  | I13: 5000 | M13: شهر1-2021 | N13: =IF(D13="","",CHOOSE((COUNTIF(#REF!,D13)>0)+1,"عام","شركة")) -> 
A14: 13 | E14: =VLOOKUP(D14,#REF!,2,FALSE) ->  | G14: =IFERROR(IF(N14="","",VLOOKUP(N14,#REF!,2,FALSE)),"") ->  | H14: =IFERROR(IF(N14="","",VLOOKUP(N14,#REF!,3,FALSE)),"") ->  | I14: 5000 | M14: شهر1-2021 | N14: =IF(D14="","",CHOOSE((COUNTIF(#REF!,D14)>0)+1,"عام","شركة")) -> 
A15: 14 | E15: =VLOOKUP(D15,#REF!,2,FALSE) ->  | G15: =IFERROR(IF(N15="","",VLOOKUP(N15,#REF!,2,FALSE)),"") ->  | H15: =IFERROR(IF(N15="","",VLOOKUP(N15,#REF!,3,FALSE)),"") ->  | I15: 5000 | M15: شهر1-2021 | N15: =IF(D15="","",CHOOSE((COUNTIF(#REF!,D15)>0)+1,"عام","شركة")) -> 
A16: 15 | E16: =VLOOKUP(D16,#REF!,2,FALSE) ->  | G16: =IFERROR(IF(N16="","",VLOOKUP(N16,#REF!,2,FALSE)),"") ->  | H16: =IFERROR(IF(N16="","",VLOOKUP(N16,#REF!,3,FALSE)),"") ->  | I16: 5000 | M16: شهر1-2021 | N16: =IF(D16="","",CHOOSE((COUNTIF(#REF!,D16)>0)+1,"عام","شركة")) -> 

Sheet 2 (hidden)
A1: ت | B1: العدد | C1: التاريخ | D1: رقم السيارة | E1: اسم السائق | F1: رقم المستند | G1: الاستحقاق | H1: المندوبية | I1: المكتبية | J1: النقص | K1: مبلغ النقص | L1: صافي الاستحقاق | M1: الشهر | N1: شركة/عام | O1: الكمية | P1: الشركة | Q1: رقم المستند
A2: 1 | B2: =IF(AND(C1<>C2,C2<>""),1,B1+1) ->  | E2: =VLOOKUP(D2,#REF!,2,FALSE) ->  | G2: =IFERROR(IF(N2="","",VLOOKUP(N2,#REF!,2,FALSE)),"") ->  | H2: =IFERROR(IF(N2="","",VLOOKUP(N2,#REF!,3,FALSE)),"") ->  | I2: 5000 | L2: =G2-H2-K2 ->  | M2: شهر1-2021 | N2: =IF(D2="","",CHOOSE((COUNTIF(#REF!,D2)>0)+1,"عام","شركة")) -> 
A3: 2 | B3: =IF(AND(C2<>C3,C3<>""),1,B2+1) ->  | E3: =VLOOKUP(D3,#REF!,2,FALSE) ->  | G3: =IFERROR(IF(N3="","",VLOOKUP(N3,#REF!,2,FALSE)),"") ->  | H3: =IFERROR(IF(N3="","",VLOOKUP(N3,#REF!,3,FALSE)),"") ->  | I3: 5000 | L3: =G3-H3-K3 ->  | M3: شهر1-2021 | N3: =IF(D3="","",CHOOSE((COUNTIF(#REF!,D3)>0)+1,"عام","شركة")) -> 
A4: 3 | E4: =VLOOKUP(D4,#REF!,2,FALSE) ->  | G4: =IFERROR(IF(N4="","",VLOOKUP(N4,#REF!,2,FALSE)),"") ->  | H4: =IFERROR(IF(N4="","",VLOOKUP(N4,#REF!,3,FALSE)),"") ->  | I4: 5000 | M4: شهر1-2021 | N4: =IF(D4="","",CHOOSE((COUNTIF(#REF!,D4)>0)+1,"عام","شركة")) -> 
A5: 4 | E5: =VLOOKUP(D5,#REF!,2,FALSE) ->  | G5: =IFERROR(IF(N5="","",VLOOKUP(N5,#REF!,2,FALSE)),"") ->  | H5: =IFERROR(IF(N5="","",VLOOKUP(N5,#REF!,3,FALSE)),"") ->  | I5: 5000 | M5: شهر1-2021 | N5: =IF(D5="","",CHOOSE((COUNTIF(#REF!,D5)>0)+1,"عام","شركة")) -> 
A6: 5 | E6: =VLOOKUP(D6,#REF!,2,FALSE) ->  | G6: =IFERROR(IF(N6="","",VLOOKUP(N6,#REF!,2,FALSE)),"") ->  | H6: =IFERROR(IF(N6="","",VLOOKUP(N6,#REF!,3,FALSE)),"") ->  | I6: 5000 | M6: شهر1-2021 | N6: =IF(D6="","",CHOOSE((COUNTIF(#REF!,D6)>0)+1,"عام","شركة")) -> 
A7: 6 | E7: =VLOOKUP(D7,#REF!,2,FALSE) ->  | G7: =IFERROR(IF(N7="","",VLOOKUP(N7,#REF!,2,FALSE)),"") ->  | H7: =IFERROR(IF(N7="","",VLOOKUP(N7,#REF!,3,FALSE)),"") ->  | I7: 5000 | M7: شهر1-2021 | N7: =IF(D7="","",CHOOSE((COUNTIF(#REF!,D7)>0)+1,"عام","شركة")) -> 
A8: 7 | E8: =VLOOKUP(D8,#REF!,2,FALSE) ->  | G8: =IFERROR(IF(N8="","",VLOOKUP(N8,#REF!,2,FALSE)),"") ->  | H8: =IFERROR(IF(N8="","",VLOOKUP(N8,#REF!,3,FALSE)),"") ->  | I8: 5000 | M8: شهر1-2021 | N8: =IF(D8="","",CHOOSE((COUNTIF(#REF!,D8)>0)+1,"عام","شركة")) -> 
A9: 8 | E9: =VLOOKUP(D9,#REF!,2,FALSE) ->  | G9: =IFERROR(IF(N9="","",VLOOKUP(N9,#REF!,2,FALSE)),"") ->  | H9: =IFERROR(IF(N9="","",VLOOKUP(N9,#REF!,3,FALSE)),"") ->  | I9: 5000 | M9: شهر1-2021 | N9: =IF(D9="","",CHOOSE((COUNTIF(#REF!,D9)>0)+1,"عام","شركة")) -> 
A10: 9 | E10: =VLOOKUP(D10,#REF!,2,FALSE) ->  | G10: =IFERROR(IF(N10="","",VLOOKUP(N10,#REF!,2,FALSE)),"") ->  | H10: =IFERROR(IF(N10="","",VLOOKUP(N10,#REF!,3,FALSE)),"") ->  | I10: 5000 | M10: شهر1-2021 | N10: =IF(D10="","",CHOOSE((COUNTIF(#REF!,D10)>0)+1,"عام","شركة")) -> 
A11: 10 | E11: =VLOOKUP(D11,#REF!,2,FALSE) ->  | G11: =IFERROR(IF(N11="","",VLOOKUP(N11,#REF!,2,FALSE)),"") ->  | H11: =IFERROR(IF(N11="","",VLOOKUP(N11,#REF!,3,FALSE)),"") ->  | I11: 5000 | M11: شهر1-2021 | N11: =IF(D11="","",CHOOSE((COUNTIF(#REF!,D11)>0)+1,"عام","شركة")) -> 
A12: 11 | E12: =VLOOKUP(D12,#REF!,2,FALSE) ->  | G12: =IFERROR(IF(N12="","",VLOOKUP(N12,#REF!,2,FALSE)),"") ->  | H12: =IFERROR(IF(N12="","",VLOOKUP(N12,#REF!,3,FALSE)),"") ->  | I12: 5000 | M12: شهر1-2021 | N12: =IF(D12="","",CHOOSE((COUNTIF(#REF!,D12)>0)+1,"عام","شركة")) -> 
A13: 12 | E13: =VLOOKUP(D13,#REF!,2,FALSE) ->  | G13: =IFERROR(IF(N13="","",VLOOKUP(N13,#REF!,2,FALSE)),"") ->  | H13: =IFERROR(IF(N13="","",VLOOKUP(N13,#REF!,3,FALSE)),"") ->  | I13: 5000 | M13: شهر1-2021 | N13: =IF(D13="","",CHOOSE((COUNTIF(#REF!,D13)>0)+1,"عام","شركة")) -> 
A14: 13 | E14: =VLOOKUP(D14,#REF!,2,FALSE) ->  | G14: =IFERROR(IF(N14="","",VLOOKUP(N14,#REF!,2,FALSE)),"") ->  | H14: =IFERROR(IF(N14="","",VLOOKUP(N14,#REF!,3,FALSE)),"") ->  | I14: 5000 | M14: شهر1-2021 | N14: =IF(D14="","",CHOOSE((COUNTIF(#REF!,D14)>0)+1,"عام","شركة")) -> 
A15: 14 | E15: =VLOOKUP(D15,#REF!,2,FALSE) ->  | G15: =IFERROR(IF(N15="","",VLOOKUP(N15,#REF!,2,FALSE)),"") ->  | H15: =IFERROR(IF(N15="","",VLOOKUP(N15,#REF!,3,FALSE)),"") ->  | I15: 5000 | M15: شهر1-2021 | N15: =IF(D15="","",CHOOSE((COUNTIF(#REF!,D15)>0)+1,"عام","شركة")) -> 
A16: 15 | E16: =VLOOKUP(D16,#REF!,2,FALSE) ->  | G16: =IFERROR(IF(N16="","",VLOOKUP(N16,#REF!,2,FALSE)),"") ->  | H16: =IFERROR(IF(N16="","",VLOOKUP(N16,#REF!,3,FALSE)),"") ->  | I16: 5000 | M16: شهر1-2021 | N16: =IF(D16="","",CHOOSE((COUNTIF(#REF!,D16)>0)+1,"عام","شركة")) -> 

Sheet 3 (hidden)
A1: ت | B1: العدد | C1: التاريخ | D1: رقم السيارة | E1: اسم السائق | F1: رقم المستند | G1: الاستحقاق | H1: المندوبية | I1: المكتبية | J1: النقص | K1: مبلغ النقص | L1: صافي الاستحقاق | M1: الشهر | N1: شركة/عام | O1: الكمية | P1: الشركة | Q1: رقم المستند
A2: 1 | B2: =IF(AND(C1<>C2,C2<>""),1,B1+1) ->  | E2: =VLOOKUP(D2,#REF!,2,FALSE) ->  | G2: =IFERROR(IF(N2="","",VLOOKUP(N2,#REF!,2,FALSE)),"") ->  | H2: =IFERROR(IF(N2="","",VLOOKUP(N2,#REF!,3,FALSE)),"") ->  | I2: 5000 | L2: =G2-H2-K2 ->  | M2: شهر1-2021 | N2: =IF(D2="","",CHOOSE((COUNTIF(#REF!,D2)>0)+1,"عام","شركة")) -> 
A3: 2 | B3: =IF(AND(C2<>C3,C3<>""),1,B2+1) ->  | E3: =VLOOKUP(D3,#REF!,2,FALSE) ->  | G3: =IFERROR(IF(N3="","",VLOOKUP(N3,#REF!,2,FALSE)),"") ->  | H3: =IFERROR(IF(N3="","",VLOOKUP(N3,#REF!,3,FALSE)),"") ->  | I3: 5000 | L3: =G3-H3-K3 ->  | M3: شهر1-2021 | N3: =IF(D3="","",CHOOSE((COUNTIF(#REF!,D3)>0)+1,"عام","شركة")) -> 
A4: 3 | E4: =VLOOKUP(D4,#REF!,2,FALSE) ->  | G4: =IFERROR(IF(N4="","",VLOOKUP(N4,#REF!,2,FALSE)),"") ->  | H4: =IFERROR(IF(N4="","",VLOOKUP(N4,#REF!,3,FALSE)),"") ->  | I4: 5000 | M4: شهر1-2021 | N4: =IF(D4="","",CHOOSE((COUNTIF(#REF!,D4)>0)+1,"عام","شركة")) -> 
A5: 4 | E5: =VLOOKUP(D5,#REF!,2,FALSE) ->  | G5: =IFERROR(IF(N5="","",VLOOKUP(N5,#REF!,2,FALSE)),"") ->  | H5: =IFERROR(IF(N5="","",VLOOKUP(N5,#REF!,3,FALSE)),"") ->  | I5: 5000 | M5: شهر1-2021 | N5: =IF(D5="","",CHOOSE((COUNTIF(#REF!,D5)>0)+1,"عام","شركة")) -> 
A6: 5 | E6: =VLOOKUP(D6,#REF!,2,FALSE) ->  | G6: =IFERROR(IF(N6="","",VLOOKUP(N6,#REF!,2,FALSE)),"") ->  | H6: =IFERROR(IF(N6="","",VLOOKUP(N6,#REF!,3,FALSE)),"") ->  | I6: 5000 | M6: شهر1-2021 | N6: =IF(D6="","",CHOOSE((COUNTIF(#REF!,D6)>0)+1,"عام","شركة")) -> 
A7: 6 | E7: =VLOOKUP(D7,#REF!,2,FALSE) ->  | G7: =IFERROR(IF(N7="","",VLOOKUP(N7,#REF!,2,FALSE)),"") ->  | H7: =IFERROR(IF(N7="","",VLOOKUP(N7,#REF!,3,FALSE)),"") ->  | I7: 5000 | M7: شهر1-2021 | N7: =IF(D7="","",CHOOSE((COUNTIF(#REF!,D7)>0)+1,"عام","شركة")) -> 
A8: 7 | E8: =VLOOKUP(D8,#REF!,2,FALSE) ->  | G8: =IFERROR(IF(N8="","",VLOOKUP(N8,#REF!,2,FALSE)),"") ->  | H8: =IFERROR(IF(N8="","",VLOOKUP(N8,#REF!,3,FALSE)),"") ->  | I8: 5000 | M8: شهر1-2021 | N8: =IF(D8="","",CHOOSE((COUNTIF(#REF!,D8)>0)+1,"عام","شركة")) -> 
A9: 8 | E9: =VLOOKUP(D9,#REF!,2,FALSE) ->  | G9: =IFERROR(IF(N9="","",VLOOKUP(N9,#REF!,2,FALSE)),"") ->  | H9: =IFERROR(IF(N9="","",VLOOKUP(N9,#REF!,3,FALSE)),"") ->  | I9: 5000 | M9: شهر1-2021 | N9: =IF(D9="","",CHOOSE((COUNTIF(#REF!,D9)>0)+1,"عام","شركة")) -> 
A10: 9 | E10: =VLOOKUP(D10,#REF!,2,FALSE) ->  | G10: =IFERROR(IF(N10="","",VLOOKUP(N10,#REF!,2,FALSE)),"") ->  | H10: =IFERROR(IF(N10="","",VLOOKUP(N10,#REF!,3,FALSE)),"") ->  | I10: 5000 | M10: شهر1-2021 | N10: =IF(D10="","",CHOOSE((COUNTIF(#REF!,D10)>0)+1,"عام","شركة")) -> 
A11: 10 | E11: =VLOOKUP(D11,#REF!,2,FALSE) ->  | G11: =IFERROR(IF(N11="","",VLOOKUP(N11,#REF!,2,FALSE)),"") ->  | H11: =IFERROR(IF(N11="","",VLOOKUP(N11,#REF!,3,FALSE)),"") ->  | I11: 5000 | M11: شهر1-2021 | N11: =IF(D11="","",CHOOSE((COUNTIF(#REF!,D11)>0)+1,"عام","شركة")) -> 
A12: 11 | E12: =VLOOKUP(D12,#REF!,2,FALSE) ->  | G12: =IFERROR(IF(N12="","",VLOOKUP(N12,#REF!,2,FALSE)),"") ->  | H12: =IFERROR(IF(N12="","",VLOOKUP(N12,#REF!,3,FALSE)),"") ->  | I12: 5000 | M12: شهر1-2021 | N12: =IF(D12="","",CHOOSE((COUNTIF(#REF!,D12)>0)+1,"عام","شركة")) -> 
A13: 12 | E13: =VLOOKUP(D13,#REF!,2,FALSE) ->  | G13: =IFERROR(IF(N13="","",VLOOKUP(N13,#REF!,2,FALSE)),"") ->  | H13: =IFERROR(IF(N13="","",VLOOKUP(N13,#REF!,3,FALSE)),"") ->  | I13: 5000 | M13: شهر1-2021 | N13: =IF(D13="","",CHOOSE((COUNTIF(#REF!,D13)>0)+1,"عام","شركة")) -> 
A14: 13 | E14: =VLOOKUP(D14,#REF!,2,FALSE) ->  | G14: =IFERROR(IF(N14="","",VLOOKUP(N14,#REF!,2,FALSE)),"") ->  | H14: =IFERROR(IF(N14="","",VLOOKUP(N14,#REF!,3,FALSE)),"") ->  | I14: 5000 | M14: شهر1-2021 | N14: =IF(D14="","",CHOOSE((COUNTIF(#REF!,D14)>0)+1,"عام","شركة")) -> 
A15: 14 | E15: =VLOOKUP(D15,#REF!,2,FALSE) ->  | G15: =IFERROR(IF(N15="","",VLOOKUP(N15,#REF!,2,FALSE)),"") ->  | H15: =IFERROR(IF(N15="","",VLOOKUP(N15,#REF!,3,FALSE)),"") ->  | I15: 5000 | M15: شهر1-2021 | N15: =IF(D15="","",CHOOSE((COUNTIF(#REF!,D15)>0)+1,"عام","شركة")) -> 
A16: 15 | E16: =VLOOKUP(D16,#REF!,2,FALSE) ->  | G16: =IFERROR(IF(N16="","",VLOOKUP(N16,#REF!,2,FALSE)),"") ->  | H16: =IFERROR(IF(N16="","",VLOOKUP(N16,#REF!,3,FALSE)),"") ->  | I16: 5000 | M16: شهر1-2021 | N16: =IF(D16="","",CHOOSE((COUNTIF(#REF!,D16)>0)+1,"عام","شركة")) -> 

Sheet 4 (hidden)
A1: ت | B1: العدد | C1: التاريخ | D1: رقم السيارة | E1: اسم السائق | F1: رقم المستند | G1: الاستحقاق | H1: المندوبية | I1: المكتبية | J1: النقص | K1: مبلغ النقص | L1: صافي الاستحقاق | M1: الشهر | N1: شركة/عام | O1: الكمية | P1: الشركة | Q1: رقم المستند
A2: 1 | B2: =IF(AND(C1<>C2,C2<>""),1,B1+1) ->  | E2: =VLOOKUP(D2,#REF!,2,FALSE) ->  | G2: =IFERROR(IF(N2="","",VLOOKUP(N2,#REF!,2,FALSE)),"") ->  | H2: =IFERROR(IF(N2="","",VLOOKUP(N2,#REF!,3,FALSE)),"") ->  | I2: 5000 | L2: =G2-H2-K2 ->  | M2: شهر1-2021 | N2: =IF(D2="","",CHOOSE((COUNTIF(#REF!,D2)>0)+1,"عام","شركة")) -> 
A3: 2 | B3: =IF(AND(C2<>C3,C3<>""),1,B2+1) ->  | E3: =VLOOKUP(D3,#REF!,2,FALSE) ->  | G3: =IFERROR(IF(N3="","",VLOOKUP(N3,#REF!,2,FALSE)),"") ->  | H3: =IFERROR(IF(N3="","",VLOOKUP(N3,#REF!,3,FALSE)),"") ->  | I3: 5000 | L3: =G3-H3-K3 ->  | M3: شهر1-2021 | N3: =IF(D3="","",CHOOSE((COUNTIF(#REF!,D3)>0)+1,"عام","شركة")) -> 
A4: 3 | E4: =VLOOKUP(D4,#REF!,2,FALSE) ->  | G4: =IFERROR(IF(N4="","",VLOOKUP(N4,#REF!,2,FALSE)),"") ->  | H4: =IFERROR(IF(N4="","",VLOOKUP(N4,#REF!,3,FALSE)),"") ->  | I4: 5000 | M4: شهر1-2021 | N4: =IF(D4="","",CHOOSE((COUNTIF(#REF!,D4)>0)+1,"عام","شركة")) -> 
A5: 4 | E5: =VLOOKUP(D5,#REF!,2,FALSE) ->  | G5: =IFERROR(IF(N5="","",VLOOKUP(N5,#REF!,2,FALSE)),"") ->  | H5: =IFERROR(IF(N5="","",VLOOKUP(N5,#REF!,3,FALSE)),"") ->  | I5: 5000 | M5: شهر1-2021 | N5: =IF(D5="","",CHOOSE((COUNTIF(#REF!,D5)>0)+1,"عام","شركة")) -> 
A6: 5 | E6: =VLOOKUP(D6,#REF!,2,FALSE) ->  | G6: =IFERROR(IF(N6="","",VLOOKUP(N6,#REF!,2,FALSE)),"") ->  | H6: =IFERROR(IF(N6="","",VLOOKUP(N6,#REF!,3,FALSE)),"") ->  | I6: 5000 | M6: شهر1-2021 | N6: =IF(D6="","",CHOOSE((COUNTIF(#REF!,D6)>0)+1,"عام","شركة")) -> 
A7: 6 | E7: =VLOOKUP(D7,#REF!,2,FALSE) ->  | G7: =IFERROR(IF(N7="","",VLOOKUP(N7,#REF!,2,FALSE)),"") ->  | H7: =IFERROR(IF(N7="","",VLOOKUP(N7,#REF!,3,FALSE)),"") ->  | I7: 5000 | M7: شهر1-2021 | N7: =IF(D7="","",CHOOSE((COUNTIF(#REF!,D7)>0)+1,"عام","شركة")) -> 
A8: 7 | E8: =VLOOKUP(D8,#REF!,2,FALSE) ->  | G8: =IFERROR(IF(N8="","",VLOOKUP(N8,#REF!,2,FALSE)),"") ->  | H8: =IFERROR(IF(N8="","",VLOOKUP(N8,#REF!,3,FALSE)),"") ->  | I8: 5000 | M8: شهر1-2021 | N8: =IF(D8="","",CHOOSE((COUNTIF(#REF!,D8)>0)+1,"عام","شركة")) -> 
A9: 8 | E9: =VLOOKUP(D9,#REF!,2,FALSE) ->  | G9: =IFERROR(IF(N9="","",VLOOKUP(N9,#REF!,2,FALSE)),"") ->  | H9: =IFERROR(IF(N9="","",VLOOKUP(N9,#REF!,3,FALSE)),"") ->  | I9: 5000 | M9: شهر1-2021 | N9: =IF(D9="","",CHOOSE((COUNTIF(#REF!,D9)>0)+1,"عام","شركة")) -> 
A10: 9 | E10: =VLOOKUP(D10,#REF!,2,FALSE) ->  | G10: =IFERROR(IF(N10="","",VLOOKUP(N10,#REF!,2,FALSE)),"") ->  | H10: =IFERROR(IF(N10="","",VLOOKUP(N10,#REF!,3,FALSE)),"") ->  | I10: 5000 | M10: شهر1-2021 | N10: =IF(D10="","",CHOOSE((COUNTIF(#REF!,D10)>0)+1,"عام","شركة")) -> 
A11: 10 | E11: =VLOOKUP(D11,#REF!,2,FALSE) ->  | G11: =IFERROR(IF(N11="","",VLOOKUP(N11,#REF!,2,FALSE)),"") ->  | H11: =IFERROR(IF(N11="","",VLOOKUP(N11,#REF!,3,FALSE)),"") ->  | I11: 5000 | M11: شهر1-2021 | N11: =IF(D11="","",CHOOSE((COUNTIF(#REF!,D11)>0)+1,"عام","شركة")) -> 
A12: 11 | E12: =VLOOKUP(D12,#REF!,2,FALSE) ->  | G12: =IFERROR(IF(N12="","",VLOOKUP(N12,#REF!,2,FALSE)),"") ->  | H12: =IFERROR(IF(N12="","",VLOOKUP(N12,#REF!,3,FALSE)),"") ->  | I12: 5000 | M12: شهر1-2021 | N12: =IF(D12="","",CHOOSE((COUNTIF(#REF!,D12)>0)+1,"عام","شركة")) -> 
A13: 12 | E13: =VLOOKUP(D13,#REF!,2,FALSE) ->  | G13: =IFERROR(IF(N13="","",VLOOKUP(N13,#REF!,2,FALSE)),"") ->  | H13: =IFERROR(IF(N13="","",VLOOKUP(N13,#REF!,3,FALSE)),"") ->  | I13: 5000 | M13: شهر1-2021 | N13: =IF(D13="","",CHOOSE((COUNTIF(#REF!,D13)>0)+1,"عام","شركة")) -> 
A14: 13 | E14: =VLOOKUP(D14,#REF!,2,FALSE) ->  | G14: =IFERROR(IF(N14="","",VLOOKUP(N14,#REF!,2,FALSE)),"") ->  | H14: =IFERROR(IF(N14="","",VLOOKUP(N14,#REF!,3,FALSE)),"") ->  | I14: 5000 | M14: شهر1-2021 | N14: =IF(D14="","",CHOOSE((COUNTIF(#REF!,D14)>0)+1,"عام","شركة")) -> 
A15: 14 | E15: =VLOOKUP(D15,#REF!,2,FALSE) ->  | G15: =IFERROR(IF(N15="","",VLOOKUP(N15,#REF!,2,FALSE)),"") ->  | H15: =IFERROR(IF(N15="","",VLOOKUP(N15,#REF!,3,FALSE)),"") ->  | I15: 5000 | M15: شهر1-2021 | N15: =IF(D15="","",CHOOSE((COUNTIF(#REF!,D15)>0)+1,"عام","شركة")) -> 
A16: 15 | E16: =VLOOKUP(D16,#REF!,2,FALSE) ->  | G16: =IFERROR(IF(N16="","",VLOOKUP(N16,#REF!,2,FALSE)),"") ->  | H16: =IFERROR(IF(N16="","",VLOOKUP(N16,#REF!,3,FALSE)),"") ->  | I16: 5000 | M16: شهر1-2021 | N16: =IF(D16="","",CHOOSE((COUNTIF(#REF!,D16)>0)+1,"عام","شركة")) -> 

Sheet 5 (hidden)
A1: ت | B1: العدد | C1: التاريخ | D1: رقم السيارة | E1: اسم السائق | F1: رقم المستند | G1: الاستحقاق | H1: المندوبية | I1: المكتبية | J1: النقص | K1: مبلغ النقص | L1: صافي الاستحقاق | M1: الشهر | N1: شركة/عام | O1: الكمية | P1: الشركة | Q1: رقم المستند
A2: 1 | B2: =IF(AND(C1<>C2,C2<>""),1,B1+1) ->  | E2: =VLOOKUP(D2,#REF!,2,FALSE) ->  | G2: =IFERROR(IF(N2="","",VLOOKUP(N2,#REF!,2,FALSE)),"") ->  | H2: =IFERROR(IF(N2="","",VLOOKUP(N2,#REF!,3,FALSE)),"") ->  | I2: 5000 | L2: =G2-H2-K2 ->  | M2: شهر1-2021 | N2: =IF(D2="","",CHOOSE((COUNTIF(#REF!,D2)>0)+1,"عام","شركة")) -> 
A3: 2 | B3: =IF(AND(C2<>C3,C3<>""),1,B2+1) ->  | E3: =VLOOKUP(D3,#REF!,2,FALSE) ->  | G3: =IFERROR(IF(N3="","",VLOOKUP(N3,#REF!,2,FALSE)),"") ->  | H3: =IFERROR(IF(N3="","",VLOOKUP(N3,#REF!,3,FALSE)),"") ->  | I3: 5000 | L3: =G3-H3-K3 ->  | M3: شهر1-2021 | N3: =IF(D3="","",CHOOSE((COUNTIF(#REF!,D3)>0)+1,"عام","شركة")) -> 
A4: 3 | E4: =VLOOKUP(D4,#REF!,2,FALSE) ->  | G4: =IFERROR(IF(N4="","",VLOOKUP(N4,#REF!,2,FALSE)),"") ->  | H4: =IFERROR(IF(N4="","",VLOOKUP(N4,#REF!,3,FALSE)),"") ->  | I4: 5000 | M4: شهر1-2021 | N4: =IF(D4="","",CHOOSE((COUNTIF(#REF!,D4)>0)+1,"عام","شركة")) -> 
A5: 4 | E5: =VLOOKUP(D5,#REF!,2,FALSE) ->  | G5: =IFERROR(IF(N5="","",VLOOKUP(N5,#REF!,2,FALSE)),"") ->  | H5: =IFERROR(IF(N5="","",VLOOKUP(N5,#REF!,3,FALSE)),"") ->  | I5: 5000 | M5: شهر1-2021 | N5: =IF(D5="","",CHOOSE((COUNTIF(#REF!,D5)>0)+1,"عام","شركة")) -> 
A6: 5 | E6: =VLOOKUP(D6,#REF!,2,FALSE) ->  | G6: =IFERROR(IF(N6="","",VLOOKUP(N6,#REF!,2,FALSE)),"") ->  | H6: =IFERROR(IF(N6="","",VLOOKUP(N6,#REF!,3,FALSE)),"") ->  | I6: 5000 | M6: شهر1-2021 | N6: =IF(D6="","",CHOOSE((COUNTIF(#REF!,D6)>0)+1,"عام","شركة")) -> 
A7: 6 | E7: =VLOOKUP(D7,#REF!,2,FALSE) ->  | G7: =IFERROR(IF(N7="","",VLOOKUP(N7,#REF!,2,FALSE)),"") ->  | H7: =IFERROR(IF(N7="","",VLOOKUP(N7,#REF!,3,FALSE)),"") ->  | I7: 5000 | M7: شهر1-2021 | N7: =IF(D7="","",CHOOSE((COUNTIF(#REF!,D7)>0)+1,"عام","شركة")) -> 
A8: 7 | E8: =VLOOKUP(D8,#REF!,2,FALSE) ->  | G8: =IFERROR(IF(N8="","",VLOOKUP(N8,#REF!,2,FALSE)),"") ->  | H8: =IFERROR(IF(N8="","",VLOOKUP(N8,#REF!,3,FALSE)),"") ->  | I8: 5000 | M8: شهر1-2021 | N8: =IF(D8="","",CHOOSE((COUNTIF(#REF!,D8)>0)+1,"عام","شركة")) -> 
A9: 8 | E9: =VLOOKUP(D9,#REF!,2,FALSE) ->  | G9: =IFERROR(IF(N9="","",VLOOKUP(N9,#REF!,2,FALSE)),"") ->  | H9: =IFERROR(IF(N9="","",VLOOKUP(N9,#REF!,3,FALSE)),"") ->  | I9: 5000 | M9: شهر1-2021 | N9: =IF(D9="","",CHOOSE((COUNTIF(#REF!,D9)>0)+1,"عام","شركة")) -> 
A10: 9 | E10: =VLOOKUP(D10,#REF!,2,FALSE) ->  | G10: =IFERROR(IF(N10="","",VLOOKUP(N10,#REF!,2,FALSE)),"") ->  | H10: =IFERROR(IF(N10="","",VLOOKUP(N10,#REF!,3,FALSE)),"") ->  | I10: 5000 | M10: شهر1-2021 | N10: =IF(D10="","",CHOOSE((COUNTIF(#REF!,D10)>0)+1,"عام","شركة")) -> 
A11: 10 | E11: =VLOOKUP(D11,#REF!,2,FALSE) ->  | G11: =IFERROR(IF(N11="","",VLOOKUP(N11,#REF!,2,FALSE)),"") ->  | H11: =IFERROR(IF(N11="","",VLOOKUP(N11,#REF!,3,FALSE)),"") ->  | I11: 5000 | M11: شهر1-2021 | N11: =IF(D11="","",CHOOSE((COUNTIF(#REF!,D11)>0)+1,"عام","شركة")) -> 
A12: 11 | E12: =VLOOKUP(D12,#REF!,2,FALSE) ->  | G12: =IFERROR(IF(N12="","",VLOOKUP(N12,#REF!,2,FALSE)),"") ->  | H12: =IFERROR(IF(N12="","",VLOOKUP(N12,#REF!,3,FALSE)),"") ->  | I12: 5000 | M12: شهر1-2021 | N12: =IF(D12="","",CHOOSE((COUNTIF(#REF!,D12)>0)+1,"عام","شركة")) -> 
A13: 12 | E13: =VLOOKUP(D13,#REF!,2,FALSE) ->  | G13: =IFERROR(IF(N13="","",VLOOKUP(N13,#REF!,2,FALSE)),"") ->  | H13: =IFERROR(IF(N13="","",VLOOKUP(N13,#REF!,3,FALSE)),"") ->  | I13: 5000 | M13: شهر1-2021 | N13: =IF(D13="","",CHOOSE((COUNTIF(#REF!,D13)>0)+1,"عام","شركة")) -> 
A14: 13 | E14: =VLOOKUP(D14,#REF!,2,FALSE) ->  | G14: =IFERROR(IF(N14="","",VLOOKUP(N14,#REF!,2,FALSE)),"") ->  | H14: =IFERROR(IF(N14="","",VLOOKUP(N14,#REF!,3,FALSE)),"") ->  | I14: 5000 | M14: شهر1-2021 | N14: =IF(D14="","",CHOOSE((COUNTIF(#REF!,D14)>0)+1,"عام","شركة")) -> 
A15: 14 | E15: =VLOOKUP(D15,#REF!,2,FALSE) ->  | G15: =IFERROR(IF(N15="","",VLOOKUP(N15,#REF!,2,FALSE)),"") ->  | H15: =IFERROR(IF(N15="","",VLOOKUP(N15,#REF!,3,FALSE)),"") ->  | I15: 5000 | M15: شهر1-2021 | N15: =IF(D15="","",CHOOSE((COUNTIF(#REF!,D15)>0)+1,"عام","شركة")) -> 
A16: 15 | E16: =VLOOKUP(D16,#REF!,2,FALSE) ->  | G16: =IFERROR(IF(N16="","",VLOOKUP(N16,#REF!,2,FALSE)),"") ->  | H16: =IFERROR(IF(N16="","",VLOOKUP(N16,#REF!,3,FALSE)),"") ->  | I16: 5000 | M16: شهر1-2021 | N16: =IF(D16="","",CHOOSE((COUNTIF(#REF!,D16)>0)+1,"عام","شركة")) -> 

Sheet 6 (hidden)
A1: ت | B1: العدد | C1: التاريخ | D1: رقم السيارة | E1: اسم السائق | F1: رقم المستند | G1: الاستحقاق | H1: المندوبية | I1: المكتبية | J1: النقص | K1: مبلغ النقص | L1: صافي الاستحقاق | M1: الشهر | N1: شركة/عام | O1: الكمية | P1: الشركة | Q1: رقم المستند
A2: 1 | B2: =IF(AND(C1<>C2,C2<>""),1,B1+1) -> 1 | C2: 2021-01-06 | D2: 55193 | E2: =VLOOKUP(D2,#REF!,2,FALSE) ->  | G2: =IFERROR(IF(N2="","",VLOOKUP(N2,#REF!,2,FALSE)),"") ->  | H2: =IFERROR(IF(N2="","",VLOOKUP(N2,#REF!,3,FALSE)),"") ->  | I2: 5000 | J2: =VLOOKUP(F2,#REF!,2,FALSE) ->  | K2: =J2*750 ->  | L2: =G2-H2-K2 ->  | M2: شهر1-2021 | N2: =IF(D2="","",CHOOSE((COUNTIF(#REF!,D2)>0)+1,"عام","خاص")) ->  | P2: ابداع
A3: 2 | B3: =IF(AND(C2<>C3,C3<>""),1,B2+1) -> 2 | C3: 2021-01-06 | D3: 108755 | E3: =VLOOKUP(D3,#REF!,2,FALSE) ->  | G3: =IFERROR(IF(N3="","",VLOOKUP(N3,#REF!,2,FALSE)),"") ->  | H3: =IFERROR(IF(N3="","",VLOOKUP(N3,#REF!,3,FALSE)),"") ->  | I3: 5000 | J3: =VLOOKUP(F3,#REF!,2,FALSE) ->  | K3: =J3*750 ->  | L3: =G3-H3-K3 ->  | M3: شهر1-2021 | N3: =IF(D3="","",CHOOSE((COUNTIF(#REF!,D3)>0)+1,"عام","خاص")) ->  | P3: ابداع
A4: 3 | B4: 3 | C4: 2021-01-06 | D4: 31588 | E4: =VLOOKUP(D4,#REF!,2,FALSE) ->  | G4: =IFERROR(IF(N4="","",VLOOKUP(N4,#REF!,2,FALSE)),"") ->  | H4: =IFERROR(IF(N4="","",VLOOKUP(N4,#REF!,3,FALSE)),"") ->  | I4: 5000 | J4: =VLOOKUP(F4,#REF!,2,FALSE) ->  | M4: شهر1-2021 | N4: =IF(D4="","",CHOOSE((COUNTIF(#REF!,D4)>0)+1,"عام","خاص")) ->  | P4: ابداع
A5: 4 | B5: 4 | C5: 2021-01-06 | D5: 555196 | E5: =VLOOKUP(D5,#REF!,2,FALSE) ->  | G5: =IFERROR(IF(N5="","",VLOOKUP(N5,#REF!,2,FALSE)),"") ->  | H5: =IFERROR(IF(N5="","",VLOOKUP(N5,#REF!,3,FALSE)),"") ->  | I5: 5000 | J5: =VLOOKUP(F5,#REF!,2,FALSE) ->  | M5: شهر1-2021 | N5: =IF(D5="","",CHOOSE((COUNTIF(#REF!,D5)>0)+1,"عام","خاص")) ->  | P5: ابداع
A6: 5 | B6: 5 | C6: 2021-01-06 | D6: 36945 | E6: =VLOOKUP(D6,#REF!,2,FALSE) ->  | G6: =IFERROR(IF(N6="","",VLOOKUP(N6,#REF!,2,FALSE)),"") ->  | H6: =IFERROR(IF(N6="","",VLOOKUP(N6,#REF!,3,FALSE)),"") ->  | I6: 5000 | J6: =VLOOKUP(F6,#REF!,2,FALSE) ->  | M6: شهر1-2021 | N6: =IF(D6="","",CHOOSE((COUNTIF(#REF!,D6)>0)+1,"عام","خاص")) ->  | P6: ابداع
A7: 6 | B7: 6 | C7: 2021-01-06 | D7: 72829 | E7: =VLOOKUP(D7,#REF!,2,FALSE) ->  | G7: =IFERROR(IF(N7="","",VLOOKUP(N7,#REF!,2,FALSE)),"") ->  | H7: =IFERROR(IF(N7="","",VLOOKUP(N7,#REF!,3,FALSE)),"") ->  | I7: 5000 | J7: =VLOOKUP(F7,#REF!,2,FALSE) ->  | M7: شهر1-2021 | N7: =IF(D7="","",CHOOSE((COUNTIF(#REF!,D7)>0)+1,"عام","خاص")) ->  | P7: ابداع
A8: 7 | B8: 7 | C8: 2021-01-06 | D8: 37920 | E8: =VLOOKUP(D8,#REF!,2,FALSE) ->  | G8: =IFERROR(IF(N8="","",VLOOKUP(N8,#REF!,2,FALSE)),"") ->  | H8: =IFERROR(IF(N8="","",VLOOKUP(N8,#REF!,3,FALSE)),"") ->  | I8: 5000 | J8: =VLOOKUP(F8,#REF!,2,FALSE) ->  | M8: شهر1-2021 | N8: =IF(D8="","",CHOOSE((COUNTIF(#REF!,D8)>0)+1,"عام","خاص")) ->  | P8: ابداع
A9: 8 | B9: 8 | C9: 2021-01-06 | D9: 17391 | E9: =VLOOKUP(D9,#REF!,2,FALSE) ->  | G9: =IFERROR(IF(N9="","",VLOOKUP(N9,#REF!,2,FALSE)),"") ->  | H9: =IFERROR(IF(N9="","",VLOOKUP(N9,#REF!,3,FALSE)),"") ->  | I9: 5000 | J9: =VLOOKUP(F9,#REF!,2,FALSE) ->  | M9: شهر1-2021 | N9: =IF(D9="","",CHOOSE((COUNTIF(#REF!,D9)>0)+1,"عام","خاص")) ->  | P9: ابداع
A10: 9 | B10: 9 | C10: 2021-01-06 | D10: 559340 | E10: =VLOOKUP(D10,#REF!,2,FALSE) ->  | G10: =IFERROR(IF(N10="","",VLOOKUP(N10,#REF!,2,FALSE)),"") ->  | H10: =IFERROR(IF(N10="","",VLOOKUP(N10,#REF!,3,FALSE)),"") ->  | I10: 5000 | J10: =VLOOKUP(F10,#REF!,2,FALSE) ->  | M10: شهر1-2021 | N10: =IF(D10="","",CHOOSE((COUNTIF(#REF!,D10)>0)+1,"عام","خاص")) ->  | P10: ابداع
A11: 10 | B11: 10 | C11: 2021-01-06 | D11: 555918 | E11: =VLOOKUP(D11,#REF!,2,FALSE) ->  | G11: =IFERROR(IF(N11="","",VLOOKUP(N11,#REF!,2,FALSE)),"") ->  | H11: =IFERROR(IF(N11="","",VLOOKUP(N11,#REF!,3,FALSE)),"") ->  | I11: 5000 | J11: =VLOOKUP(F11,#REF!,2,FALSE) ->  | M11: شهر1-2021 | N11: =IF(D11="","",CHOOSE((COUNTIF(#REF!,D11)>0)+1,"عام","خاص")) ->  | P11: ابداع
A12: 11 | B12: 11 | C12: 2021-01-06 | D12: 36929 | E12: =VLOOKUP(D12,#REF!,2,FALSE) ->  | G12: =IFERROR(IF(N12="","",VLOOKUP(N12,#REF!,2,FALSE)),"") ->  | H12: =IFERROR(IF(N12="","",VLOOKUP(N12,#REF!,3,FALSE)),"") ->  | I12: 5000 | J12: =VLOOKUP(F12,#REF!,2,FALSE) ->  | M12: شهر1-2021 | N12: =IF(D12="","",CHOOSE((COUNTIF(#REF!,D12)>0)+1,"عام","خاص")) ->  | P12: ابداع
A13: 12 | B13: 12 | C13: 2021-01-06 | D13: 71852 | E13: =VLOOKUP(D13,#REF!,2,FALSE) ->  | G13: =IFERROR(IF(N13="","",VLOOKUP(N13,#REF!,2,FALSE)),"") ->  | H13: =IFERROR(IF(N13="","",VLOOKUP(N13,#REF!,3,FALSE)),"") ->  | I13: 5000 | J13: =VLOOKUP(F13,#REF!,2,FALSE) ->  | M13: شهر1-2021 | N13: =IF(D13="","",CHOOSE((COUNTIF(#REF!,D13)>0)+1,"عام","خاص")) ->  | P13: ابداع
A14: 13 | B14: 13 | C14: 2021-01-06 | D14: 558940 | E14: =VLOOKUP(D14,#REF!,2,FALSE) ->  | G14: =IFERROR(IF(N14="","",VLOOKUP(N14,#REF!,2,FALSE)),"") ->  | H14: =IFERROR(IF(N14="","",VLOOKUP(N14,#REF!,3,FALSE)),"") ->  | I14: 5000 | J14: =VLOOKUP(F14,#REF!,2,FALSE) ->  | M14: شهر1-2021 | N14: =IF(D14="","",CHOOSE((COUNTIF(#REF!,D14)>0)+1,"عام","خاص")) ->  | P14: ابداع
A15: 14 | B15: 14 | C15: 2021-01-06 | D15: 93455 | E15: =VLOOKUP(D15,#REF!,2,FALSE) ->  | G15: =IFERROR(IF(N15="","",VLOOKUP(N15,#REF!,2,FALSE)),"") ->  | H15: =IFERROR(IF(N15="","",VLOOKUP(N15,#REF!,3,FALSE)),"") ->  | I15: 5000 | J15: =VLOOKUP(F15,#REF!,2,FALSE) ->  | M15: شهر1-2021 | N15: =IF(D15="","",CHOOSE((COUNTIF(#REF!,D15)>0)+1,"عام","خاص")) ->  | P15: ابداع
A16: 15 | B16: 15 | C16: 2021-01-06 | D16: 136833 | E16: =VLOOKUP(D16,#REF!,2,FALSE) ->  | G16: =IFERROR(IF(N16="","",VLOOKUP(N16,#REF!,2,FALSE)),"") ->  | H16: =IFERROR(IF(N16="","",VLOOKUP(N16,#REF!,3,FALSE)),"") ->  | I16: 5000 | J16: =VLOOKUP(F16,#REF!,2,FALSE) ->  | M16: شهر1-2021 | N16: =IF(D16="","",CHOOSE((COUNTIF(#REF!,D16)>0)+1,"عام","خاص")) ->  | P16: ابداع
A17: 16 | B17: =IF(AND(C16<>C17,C17<>""),1,B16+1) -> 16 | C17: 2021-01-06 | D17: 188881 | E17: =VLOOKUP(D17,#REF!,2,FALSE) ->  | G17: =IFERROR(IF(N17="","",VLOOKUP(N17,#REF!,2,FALSE)),"") ->  | H17: =IFERROR(IF(N17="","",VLOOKUP(N17,#REF!,3,FALSE)),"") ->  | I17: 5000 | J17: =VLOOKUP(F17,#REF!,2,FALSE) ->  | L17: =G17-H17-K17 ->  | M17: شهر1-2021 | N17: =IF(D17="","",CHOOSE((COUNTIF(#REF!,D17)>0)+1,"عام","خاص")) ->  | P17: ابداع
A18: 1 | B18: 17 | C18: 2021-01-06 | D18: 78675 | E18: =VLOOKUP(D18,#REF!,2,FALSE) ->  | G18: =IFERROR(IF(N18="","",VLOOKUP(N18,#REF!,2,FALSE)),"") ->  | H18: =IFERROR(IF(N18="","",VLOOKUP(N18,#REF!,3,FALSE)),"") ->  | I18: 5000 | J18: =VLOOKUP(F18,#REF!,2,FALSE) ->  | M18: شهر1-2021 | N18: =IF(D18="","",CHOOSE((COUNTIF(#REF!,D18)>0)+1,"عام","خاص")) ->  | P18: جوهرة
A19: 2 | B19: 18 | C19: 2021-01-06 | D19: 4885 | E19: =VLOOKUP(D19,#REF!,2,FALSE) ->  | G19: =IFERROR(IF(N19="","",VLOOKUP(N19,#REF!,2,FALSE)),"") ->  | H19: =IFERROR(IF(N19="","",VLOOKUP(N19,#REF!,3,FALSE)),"") ->  | I19: 5000 | J19: =VLOOKUP(F19,#REF!,2,FALSE) ->  | M19: شهر1-2021 | N19: =IF(D19="","",CHOOSE((COUNTIF(#REF!,D19)>0)+1,"عام","خاص")) ->  | P19: جوهرة
A20: 3 | B20: 19 | C20: 2021-01-06 | D20: 560488 | E20: =VLOOKUP(D20,#REF!,2,FALSE) ->  | G20: =IFERROR(IF(N20="","",VLOOKUP(N20,#REF!,2,FALSE)),"") ->  | H20: =IFERROR(IF(N20="","",VLOOKUP(N20,#REF!,3,FALSE)),"") ->  | I20: 5000 | J20: =VLOOKUP(F20,#REF!,2,FALSE) ->  | M20: شهر1-2021 | N20: =IF(D20="","",CHOOSE((COUNTIF(#REF!,D20)>0)+1,"عام","خاص")) ->  | P20: جوهرة
A21: 4 | B21: 20 | C21: 2021-01-06 | D21: 61548 | E21: =VLOOKUP(D21,#REF!,2,FALSE) ->  | G21: =IFERROR(IF(N21="","",VLOOKUP(N21,#REF!,2,FALSE)),"") ->  | H21: =IFERROR(IF(N21="","",VLOOKUP(N21,#REF!,3,FALSE)),"") ->  | I21: 5000 | J21: =VLOOKUP(F21,#REF!,2,FALSE) ->  | M21: شهر1-2021 | N21: =IF(D21="","",CHOOSE((COUNTIF(#REF!,D21)>0)+1,"عام","خاص")) ->  | P21: جوهرة
A22: 5 | B22: 21 | C22: 2021-01-06 | D22: 559099 | E22: =VLOOKUP(D22,#REF!,2,FALSE) ->  | G22: =IFERROR(IF(N22="","",VLOOKUP(N22,#REF!,2,FALSE)),"") ->  | H22: =IFERROR(IF(N22="","",VLOOKUP(N22,#REF!,3,FALSE)),"") ->  | I22: 5000 | J22: =VLOOKUP(F22,#REF!,2,FALSE) ->  | M22: شهر1-2021 | N22: =IF(D22="","",CHOOSE((COUNTIF(#REF!,D22)>0)+1,"عام","خاص")) ->  | P22: جوهرة
A23: 6 | B23: 22 | C23: 2021-01-06 | D23: 558808 | E23: =VLOOKUP(D23,#REF!,2,FALSE) ->  | G23: =IFERROR(IF(N23="","",VLOOKUP(N23,#REF!,2,FALSE)),"") ->  | H23: =IFERROR(IF(N23="","",VLOOKUP(N23,#REF!,3,FALSE)),"") ->  | I23: 5000 | J23: =VLOOKUP(F23,#REF!,2,FALSE) ->  | M23: شهر1-2021 | N23: =IF(D23="","",CHOOSE((COUNTIF(#REF!,D23)>0)+1,"عام","خاص")) ->  | P23: جوهرة
A24: 7 | B24: 23 | C24: 2021-01-06 | D24: 21304 | E24: =VLOOKUP(D24,#REF!,2,FALSE) ->  | G24: =IFERROR(IF(N24="","",VLOOKUP(N24,#REF!,2,FALSE)),"") ->  | H24: =IFERROR(IF(N24="","",VLOOKUP(N24,#REF!,3,FALSE)),"") ->  | I24: 5000 | J24: =VLOOKUP(F24,#REF!,2,FALSE) ->  | M24: شهر1-2021 | N24: =IF(D24="","",CHOOSE((COUNTIF(#REF!,D24)>0)+1,"عام","خاص")) ->  | P24: جوهرة
A25: 8 | B25: 24 | C25: 2021-01-06 | D25: 10321 | E25: =VLOOKUP(D25,#REF!,2,FALSE) ->  | G25: =IFERROR(IF(N25="","",VLOOKUP(N25,#REF!,2,FALSE)),"") ->  | H25: =IFERROR(IF(N25="","",VLOOKUP(N25,#REF!,3,FALSE)),"") ->  | I25: 5000 | J25: =VLOOKUP(F25,#REF!,2,FALSE) ->  | M25: شهر1-2021 | N25: =IF(D25="","",CHOOSE((COUNTIF(#REF!,D25)>0)+1,"عام","خاص")) ->  | P25: جوهرة
A26: 9 | B26: 25 | C26: 2021-01-06 | D26: 52213 | E26: =VLOOKUP(D26,#REF!,2,FALSE) ->  | G26: =IFERROR(IF(N26="","",VLOOKUP(N26,#REF!,2,FALSE)),"") ->  | H26: =IFERROR(IF(N26="","",VLOOKUP(N26,#REF!,3,FALSE)),"") ->  | I26: 5000 | J26: =VLOOKUP(F26,#REF!,2,FALSE) ->  | M26: شهر1-2021 | N26: =IF(D26="","",CHOOSE((COUNTIF(#REF!,D26)>0)+1,"عام","خاص")) ->  | P26: جوهرة
A27: 10 | B27: 26 | C27: 2021-01-06 | D27: 561304 | E27: =VLOOKUP(D27,#REF!,2,FALSE) ->  | G27: =IFERROR(IF(N27="","",VLOOKUP(N27,#REF!,2,FALSE)),"") ->  | H27: =IFERROR(IF(N27="","",VLOOKUP(N27,#REF!,3,FALSE)),"") ->  | I27: 5000 | J27: =VLOOKUP(F27,#REF!,2,FALSE) ->  | M27: شهر1-2021 | N27: =IF(D27="","",CHOOSE((COUNTIF(#REF!,D27)>0)+1,"عام","خاص")) ->  | P27: جوهرة
A28: 11 | B28: 27 | C28: 2021-01-06 | D28: 828 | E28: =VLOOKUP(D28,#REF!,2,FALSE) ->  | G28: =IFERROR(IF(N28="","",VLOOKUP(N28,#REF!,2,FALSE)),"") ->  | H28: =IFERROR(IF(N28="","",VLOOKUP(N28,#REF!,3,FALSE)),"") ->  | I28: 5000 | J28: =VLOOKUP(F28,#REF!,2,FALSE) ->  | M28: شهر1-2021 | N28: =IF(D28="","",CHOOSE((COUNTIF(#REF!,D28)>0)+1,"عام","خاص")) ->  | P28: جوهرة
A29: 12 | B29: 28 | C29: 2021-01-06 | D29: 127237 | E29: =VLOOKUP(D29,#REF!,2,FALSE) ->  | G29: =IFERROR(IF(N29="","",VLOOKUP(N29,#REF!,2,FALSE)),"") ->  | H29: =IFERROR(IF(N29="","",VLOOKUP(N29,#REF!,3,FALSE)),"") ->  | I29: 5000 | J29: =VLOOKUP(F29,#REF!,2,FALSE) ->  | M29: شهر1-2021 | N29: =IF(D29="","",CHOOSE((COUNTIF(#REF!,D29)>0)+1,"عام","خاص")) ->  | P29: جوهرة
A30: 13 | B30: 29 | C30: 2021-01-06 | D30: 37966 | E30: =VLOOKUP(D30,#REF!,2,FALSE) ->  | G30: =IFERROR(IF(N30="","",VLOOKUP(N30,#REF!,2,FALSE)),"") ->  | H30: =IFERROR(IF(N30="","",VLOOKUP(N30,#REF!,3,FALSE)),"") ->  | I30: 5000 | J30: =VLOOKUP(F30,#REF!,2,FALSE) ->  | M30: شهر1-2021 | N30: =IF(D30="","",CHOOSE((COUNTIF(#REF!,D30)>0)+1,"عام","خاص")) ->  | P30: جوهرة
A31: 14 | B31: 30 | C31: 2021-01-06 | D31: 559661 | E31: =VLOOKUP(D31,#REF!,2,FALSE) ->  | G31: =IFERROR(IF(N31="","",VLOOKUP(N31,#REF!,2,FALSE)),"") ->  | H31: =IFERROR(IF(N31="","",VLOOKUP(N31,#REF!,3,FALSE)),"") ->  | I31: 5000 | J31: =VLOOKUP(F31,#REF!,2,FALSE) ->  | M31: شهر1-2021 | N31: =IF(D31="","",CHOOSE((COUNTIF(#REF!,D31)>0)+1,"عام","خاص")) ->  | P31: جوهرة
A32: 15 | B32: 31 | C32: 2021-01-06 | D32: 556069 | E32: =VLOOKUP(D32,#REF!,2,FALSE) ->  | G32: =IFERROR(IF(N32="","",VLOOKUP(N32,#REF!,2,FALSE)),"") ->  | H32: =IFERROR(IF(N32="","",VLOOKUP(N32,#REF!,3,FALSE)),"") ->  | I32: 5000 | J32: =VLOOKUP(F32,#REF!,2,FALSE) ->  | M32: شهر1-2021 | N32: =IF(D32="","",CHOOSE((COUNTIF(#REF!,D32)>0)+1,"عام","خاص")) ->  | P32: جوهرة
A33: 16 | B33: 32 | C33: 2021-01-06 | D33: 562749 | E33: =VLOOKUP(D33,#REF!,2,FALSE) ->  | G33: =IFERROR(IF(N33="","",VLOOKUP(N33,#REF!,2,FALSE)),"") ->  | H33: =IFERROR(IF(N33="","",VLOOKUP(N33,#REF!,3,FALSE)),"") ->  | I33: 5000 | J33: =VLOOKUP(F33,#REF!,2,FALSE) ->  | M33: شهر1-2021 | N33: =IF(D33="","",CHOOSE((COUNTIF(#REF!,D33)>0)+1,"عام","خاص")) ->  | P33: جوهرة
A34: 17 | B34: 33 | C34: 2021-01-06 | D34: 559147 | E34: =VLOOKUP(D34,#REF!,2,FALSE) ->  | G34: =IFERROR(IF(N34="","",VLOOKUP(N34,#REF!,2,FALSE)),"") ->  | H34: =IFERROR(IF(N34="","",VLOOKUP(N34,#REF!,3,FALSE)),"") ->  | I34: 5000 | J34: =VLOOKUP(F34,#REF!,2,FALSE) ->  | M34: شهر1-2021 | N34: =IF(D34="","",CHOOSE((COUNTIF(#REF!,D34)>0)+1,"عام","خاص")) ->  | P34: جوهرة
A35: 18 | B35: 34 | C35: 2021-01-06 | D35: 47754 | E35: =VLOOKUP(D35,#REF!,2,FALSE) ->  | G35: =IFERROR(IF(N35="","",VLOOKUP(N35,#REF!,2,FALSE)),"") ->  | H35: =IFERROR(IF(N35="","",VLOOKUP(N35,#REF!,3,FALSE)),"") ->  | I35: 5000 | J35: =VLOOKUP(F35,#REF!,2,FALSE) ->  | M35: شهر1-2021 | N35: =IF(D35="","",CHOOSE((COUNTIF(#REF!,D35)>0)+1,"عام","خاص")) ->  | P35: جوهرة
A36: 19 | B36: 35 | C36: 2021-01-06 | D36: 62673 | E36: =VLOOKUP(D36,#REF!,2,FALSE) ->  | G36: =IFERROR(IF(N36="","",VLOOKUP(N36,#REF!,2,FALSE)),"") ->  | H36: =IFERROR(IF(N36="","",VLOOKUP(N36,#REF!,3,FALSE)),"") ->  | I36: 5000 | J36: =VLOOKUP(F36,#REF!,2,FALSE) ->  | M36: شهر1-2021 | N36: =IF(D36="","",CHOOSE((COUNTIF(#REF!,D36)>0)+1,"عام","خاص")) ->  | P36: جوهرة
A37: 20 | B37: =IF(AND(C36<>C37,C37<>""),1,B36+1) -> 36 | C37: 2021-01-06 | D37: 192366 | E37: =VLOOKUP(D37,#REF!,2,FALSE) ->  | G37: =IFERROR(IF(N37="","",VLOOKUP(N37,#REF!,2,FALSE)),"") ->  | H37: =IFERROR(IF(N37="","",VLOOKUP(N37,#REF!,3,FALSE)),"") ->  | I37: 5000 | J37: =VLOOKUP(F37,#REF!,2,FALSE) ->  | L37: =G37-H37-K37 ->  | M37: شهر1-2021 | N37: =IF(D37="","",CHOOSE((COUNTIF(#REF!,D37)>0)+1,"عام","خاص")) ->  | P37: جوهرة
A38: 21 | B38: 37 | C38: 2021-01-06 | D38: 192292 | E38: =VLOOKUP(D38,#REF!,2,FALSE) ->  | G38: =IFERROR(IF(N38="","",VLOOKUP(N38,#REF!,2,FALSE)),"") ->  | H38: =IFERROR(IF(N38="","",VLOOKUP(N38,#REF!,3,FALSE)),"") ->  | I38: 5000 | J38: =VLOOKUP(F38,#REF!,2,FALSE) ->  | M38: شهر1-2021 | N38: =IF(D38="","",CHOOSE((COUNTIF(#REF!,D38)>0)+1,"عام","خاص")) ->  | P38: جوهرة
A39: 22 | B39: 38 | C39: 2021-01-06 | D39: 78218 | E39: =VLOOKUP(D39,#REF!,2,FALSE) ->  | G39: =IFERROR(IF(N39="","",VLOOKUP(N39,#REF!,2,FALSE)),"") ->  | H39: =IFERROR(IF(N39="","",VLOOKUP(N39,#REF!,3,FALSE)),"") ->  | I39: 5000 | J39: =VLOOKUP(F39,#REF!,2,FALSE) ->  | M39: شهر1-2021 | N39: =IF(D39="","",CHOOSE((COUNTIF(#REF!,D39)>0)+1,"عام","خاص")) ->  | P39: جوهرة
A40: 23 | B40: 39 | C40: 2021-01-06 | D40: 22087 | E40: =VLOOKUP(D40,#REF!,2,FALSE) ->  | G40: =IFERROR(IF(N40="","",VLOOKUP(N40,#REF!,2,FALSE)),"") ->  | H40: =IFERROR(IF(N40="","",VLOOKUP(N40,#REF!,3,FALSE)),"") ->  | I40: 5000 | J40: =VLOOKUP(F40,#REF!,2,FALSE) ->  | M40: شهر1-2021 | N40: =IF(D40="","",CHOOSE((COUNTIF(#REF!,D40)>0)+1,"عام","خاص")) ->  | P40: جوهرة
A41: 24 | B41: 40 | C41: 2021-01-06 | D41: 198715 | E41: =VLOOKUP(D41,#REF!,2,FALSE) ->  | G41: =IFERROR(IF(N41="","",VLOOKUP(N41,#REF!,2,FALSE)),"") ->  | H41: =IFERROR(IF(N41="","",VLOOKUP(N41,#REF!,3,FALSE)),"") ->  | I41: 5000 | J41: =VLOOKUP(F41,#REF!,2,FALSE) ->  | M41: شهر1-2021 | N41: =IF(D41="","",CHOOSE((COUNTIF(#REF!,D41)>0)+1,"عام","خاص")) ->  | P41: جوهرة
A42: 25 | B42: 41 | C42: 2021-01-06 | D42: 19188 | E42: =VLOOKUP(D42,#REF!,2,FALSE) ->  | G42: =IFERROR(IF(N42="","",VLOOKUP(N42,#REF!,2,FALSE)),"") ->  | H42: =IFERROR(IF(N42="","",VLOOKUP(N42,#REF!,3,FALSE)),"") ->  | I42: 5000 | J42: =VLOOKUP(F42,#REF!,2,FALSE) ->  | M42: شهر1-2021 | N42: =IF(D42="","",CHOOSE((COUNTIF(#REF!,D42)>0)+1,"عام","خاص")) ->  | P42: جوهرة
A43: 26 | B43: =IF(AND(C42<>C43,C43<>""),1,B42+1) -> 42 | C43: 2021-01-06 | D43: 559796 | E43: =VLOOKUP(D43,#REF!,2,FALSE) ->  | G43: =IFERROR(IF(N43="","",VLOOKUP(N43,#REF!,2,FALSE)),"") ->  | H43: =IFERROR(IF(N43="","",VLOOKUP(N43,#REF!,3,FALSE)),"") ->  | I43: 5000 | J43: =VLOOKUP(F43,#REF!,2,FALSE) ->  | L43: =G43-H43-K43 ->  | M43: شهر1-2021 | N43: =IF(D43="","",CHOOSE((COUNTIF(#REF!,D43)>0)+1,"عام","خاص")) ->  | P43: جوهرة
A44: 27 | B44: 43 | C44: 2021-01-06 | D44: 45304 | E44: =VLOOKUP(D44,#REF!,2,FALSE) ->  | G44: =IFERROR(IF(N44="","",VLOOKUP(N44,#REF!,2,FALSE)),"") ->  | H44: =IFERROR(IF(N44="","",VLOOKUP(N44,#REF!,3,FALSE)),"") ->  | I44: 5000 | J44: =VLOOKUP(F44,#REF!,2,FALSE) ->  | M44: شهر1-2021 | N44: =IF(D44="","",CHOOSE((COUNTIF(#REF!,D44)>0)+1,"عام","خاص")) ->  | P44: جوهرة
A45: 28 | B45: 44 | C45: 2021-01-06 | D45: 77873 | E45: =VLOOKUP(D45,#REF!,2,FALSE) ->  | G45: =IFERROR(IF(N45="","",VLOOKUP(N45,#REF!,2,FALSE)),"") ->  | H45: =IFERROR(IF(N45="","",VLOOKUP(N45,#REF!,3,FALSE)),"") ->  | I45: 5000 | J45: =VLOOKUP(F45,#REF!,2,FALSE) ->  | M45: شهر1-2021 | N45: =IF(D45="","",CHOOSE((COUNTIF(#REF!,D45)>0)+1,"عام","خاص")) ->  | P45: جوهرة
A46: 29 | B46: 45 | C46: 2021-01-06 | D46: 53091 | E46: =VLOOKUP(D46,#REF!,2,FALSE) ->  | G46: =IFERROR(IF(N46="","",VLOOKUP(N46,#REF!,2,FALSE)),"") ->  | H46: =IFERROR(IF(N46="","",VLOOKUP(N46,#REF!,3,FALSE)),"") ->  | I46: 5000 | J46: =VLOOKUP(F46,#REF!,2,FALSE) ->  | M46: شهر1-2021 | N46: =IF(D46="","",CHOOSE((COUNTIF(#REF!,D46)>0)+1,"عام","خاص")) ->  | P46: جوهرة
A47: 30 | B47: 46 | C47: 2021-01-06 | D47: 192794 | E47: =VLOOKUP(D47,#REF!,2,FALSE) ->  | G47: =IFERROR(IF(N47="","",VLOOKUP(N47,#REF!,2,FALSE)),"") ->  | H47: =IFERROR(IF(N47="","",VLOOKUP(N47,#REF!,3,FALSE)),"") ->  | I47: 5000 | J47: =VLOOKUP(F47,#REF!,2,FALSE) ->  | M47: شهر1-2021 | N47: =IF(D47="","",CHOOSE((COUNTIF(#REF!,D47)>0)+1,"عام","خاص")) ->  | P47: جوهرة
A48: 31 | B48: 47 | C48: 2021-01-06 | D48: 110181 | E48: =VLOOKUP(D48,#REF!,2,FALSE) ->  | G48: =IFERROR(IF(N48="","",VLOOKUP(N48,#REF!,2,FALSE)),"") ->  | H48: =IFERROR(IF(N48="","",VLOOKUP(N48,#REF!,3,FALSE)),"") ->  | I48: 5000 | J48: =VLOOKUP(F48,#REF!,2,FALSE) ->  | M48: شهر1-2021 | N48: =IF(D48="","",CHOOSE((COUNTIF(#REF!,D48)>0)+1,"عام","خاص")) ->  | P48: جوهرة
A49: 32 | B49: 48 | C49: 2021-01-06 | D49: 38949 | E49: =VLOOKUP(D49,#REF!,2,FALSE) ->  | G49: =IFERROR(IF(N49="","",VLOOKUP(N49,#REF!,2,FALSE)),"") ->  | H49: =IFERROR(IF(N49="","",VLOOKUP(N49,#REF!,3,FALSE)),"") ->  | I49: 5000 | J49: =VLOOKUP(F49,#REF!,2,FALSE) ->  | M49: شهر1-2021 | N49: =IF(D49="","",CHOOSE((COUNTIF(#REF!,D49)>0)+1,"عام","خاص")) ->  | P49: جوهرة
A50: 33 | B50: =IF(AND(C49<>C50,C50<>""),1,B49+1) -> 49 | C50: 2021-01-06 | D50: 8092 | E50: =VLOOKUP(D50,#REF!,2,FALSE) ->  | G50: =IFERROR(IF(N50="","",VLOOKUP(N50,#REF!,2,FALSE)),"") ->  | H50: =IFERROR(IF(N50="","",VLOOKUP(N50,#REF!,3,FALSE)),"") ->  | I50: 5000 | J50: =VLOOKUP(F50,#REF!,2,FALSE) ->  | L50: =G50-H50-K50 ->  | M50: شهر1-2021 | N50: =IF(D50="","",CHOOSE((COUNTIF(#REF!,D50)>0)+1,"عام","خاص")) ->  | P50: جوهرة
A51: 34 | B51: 50 | C51: 2021-01-06 | D51: 24859 | E51: =VLOOKUP(D51,#REF!,2,FALSE) ->  | G51: =IFERROR(IF(N51="","",VLOOKUP(N51,#REF!,2,FALSE)),"") ->  | H51: =IFERROR(IF(N51="","",VLOOKUP(N51,#REF!,3,FALSE)),"") ->  | I51: 5000 | J51: =VLOOKUP(F51,#REF!,2,FALSE) ->  | M51: شهر1-2021 | N51: =IF(D51="","",CHOOSE((COUNTIF(#REF!,D51)>0)+1,"عام","خاص")) ->  | P51: جوهرة
A52: 35 | B52: 51 | C52: 2021-01-06 | D52: 60940 | E52: =VLOOKUP(D52,#REF!,2,FALSE) ->  | G52: =IFERROR(IF(N52="","",VLOOKUP(N52,#REF!,2,FALSE)),"") ->  | H52: =IFERROR(IF(N52="","",VLOOKUP(N52,#REF!,3,FALSE)),"") ->  | I52: 5000 | J52: =VLOOKUP(F52,#REF!,2,FALSE) ->  | M52: شهر1-2021 | N52: =IF(D52="","",CHOOSE((COUNTIF(#REF!,D52)>0)+1,"عام","خاص")) ->  | P52: جوهرة
A53: 36 | B53: 52 | C53: 2021-01-06 | D53: 557566 | E53: =VLOOKUP(D53,#REF!,2,FALSE) ->  | G53: =IFERROR(IF(N53="","",VLOOKUP(N53,#REF!,2,FALSE)),"") ->  | H53: =IFERROR(IF(N53="","",VLOOKUP(N53,#REF!,3,FALSE)),"") ->  | I53: 5000 | J53: =VLOOKUP(F53,#REF!,2,FALSE) ->  | M53: شهر1-2021 | N53: =IF(D53="","",CHOOSE((COUNTIF(#REF!,D53)>0)+1,"عام","خاص")) ->  | P53: جوهرة
H54: =SUM(H2:H53) -> 0 | I54: =SUM(I2:I53) -> 260000
G56: 52
G57: 375000
G58: =G56*G57 -> 19500000

Sheet 7 (hidden)
A1: شركة/عام | B1: ت | C1: الشركة | D1: رقم المستند | E1: المنتوج | F1: التاريخ | G1: رقم السيارة | H1: اسم السائق | I1: الاستحقاق | J1: المندوبية | K1: المكتبية | L1: النقص | M1: مبلغ النقص | N1: صافي الاستحقاق | O1: المحطة | P1: استحقاق المحطة | Q1: الاستحقاق الكلي | R1: التوقيع | S1: 1 | T1: الشركة | U1: رقم المستند | V1: المحطات | W1: عدد النقلات بالمحطات | X1: التوقيع
A2: =IF(G2="","",CHOOSE((COUNTIF(#REF!,G2)>0)+1,"عام","خاص")) ->  | B2: =VLOOKUP(O2,#REF!,7,FALSE) ->  | C2: ابداع | D2: 1536686 | E2: كاز | F2: 2021-01-08 | G2: 31300 | H2: =VLOOKUP(G2,#REF!,2,FALSE) ->  | I2: =IFERROR(IF(A2="","",VLOOKUP(A2,#REF!,2,FALSE)),"") ->  | J2: =IFERROR(IF(A2="","",VLOOKUP(A2,#REF!,3,FALSE)),"") ->  | K2: 10000 | L2: 0 | M2: =L2*750 -> 0 | N2: =I2-J2-K2-M2 ->  | O2: الحبانية | P2: =IFERROR(IF(O2="","",VLOOKUP(O2,#REF!,6,FALSE)),"") ->  | Q2: =IFERROR(SUM(N2+P2),"") ->  | R2: واصل | T2: جوهرة | V2: =IFERROR(VLOOKUP(G2,#REF!,7,FALSE),"") ->  | W2: =COUNTIF(#REF!,'7'!G2) -> 
A3: =IF(G3="","",CHOOSE((COUNTIF(#REF!,G3)>0)+1,"عام","خاص")) ->  | B3: =VLOOKUP(O3,#REF!,7,FALSE) ->  | C3: جوهرة | D3: 1536628 | E3: كاز | F3: 2021-01-08 | G3: 42344 | H3: =VLOOKUP(G3,#REF!,2,FALSE) ->  | I3: 375000 | J3: =IFERROR(IF(A3="","",VLOOKUP(A3,#REF!,3,FALSE)),"") ->  | K3: 10000 | L3: 0 | M3: 0 | O3: هيت الجديدة | P3: 75000 | R3: واصل | T3: جوهرة | V3: =IFERROR(VLOOKUP(G3,#REF!,7,FALSE),"") ->  | W3: =COUNTIF(#REF!,'7'!G3) -> 
A4: =IF(G4="","",CHOOSE((COUNTIF(#REF!,G4)>0)+1,"عام","خاص")) ->  | B4: =VLOOKUP(O4,#REF!,7,FALSE) ->  | C4: ابداع | D4: 1536627 | E4: نفط | F4: 2021-01-08 | G4: 37575 | H4: =VLOOKUP(G4,#REF!,2,FALSE) ->  | I4: 375000 | J4: =IFERROR(IF(A4="","",VLOOKUP(A4,#REF!,3,FALSE)),"") ->  | K4: 10000 | L4: 127 | M4: 95250 | O4: الرمادي الجديدة | P4: 40000 | R4: واصل | T4: جوهرة | V4: =IFERROR(VLOOKUP(G4,#REF!,7,FALSE),"") ->  | W4: =COUNTIF(#REF!,'7'!G4) -> 
A5: =IF(G5="","",CHOOSE((COUNTIF(#REF!,G5)>0)+1,"عام","خاص")) ->  | B5: =VLOOKUP(O5,#REF!,7,FALSE) ->  | C5: ابداع | D5: 1536638 | E5: نفط | F5: 2021-01-08 | G5: 52865 | H5: =VLOOKUP(G5,#REF!,2,FALSE) ->  | I5: 375000 | J5: =IFERROR(IF(A5="","",VLOOKUP(A5,#REF!,3,FALSE)),"") ->  | K5: 10000 | M5: 0 | O5: م ت الرمادي | P5: =IFERROR(IF(O5="","",VLOOKUP(O5,#REF!,6,FALSE)),"") ->  | R5: واصل | T5: جوهرة | V5: =IFERROR(VLOOKUP(G5,#REF!,7,FALSE),"") ->  | W5: =COUNTIF(#REF!,'7'!G5) -> 
A6: =IF(G6="","",CHOOSE((COUNTIF(#REF!,G6)>0)+1,"عام","خاص")) ->  | B6: =VLOOKUP(O6,#REF!,7,FALSE) ->  | C6: ابداع | D6: 1536593 | E6: كاز | F6: 2021-01-08 | G6: 22250 | H6: =VLOOKUP(G6,#REF!,2,FALSE) ->  | I6: 375000 | J6: =IFERROR(IF(A6="","",VLOOKUP(A6,#REF!,3,FALSE)),"") ->  | K6: 10000 | L6: 250 | M6: 187500 | O6: الحبانية | P6: =IFERROR(IF(O6="","",VLOOKUP(O6,#REF!,6,FALSE)),"") ->  | R6: واصل | T6: جوهرة | V6: =IFERROR(VLOOKUP(G6,#REF!,7,FALSE),"") ->  | W6: =COUNTIF(#REF!,'7'!G6) -> 
A7: =IF(G7="","",CHOOSE((COUNTIF(#REF!,G7)>0)+1,"عام","خاص")) ->  | B7: =VLOOKUP(O7,#REF!,7,FALSE) ->  | C7: ابداع | D7: 1536592 | E7: كاز | F7: 2021-01-08 | G7: 31331 | H7: =VLOOKUP(G7,#REF!,2,FALSE) ->  | I7: 375000 | J7: =IFERROR(IF(A7="","",VLOOKUP(A7,#REF!,3,FALSE)),"") ->  | K7: 10000 | M7: 0 | O7: م ت الرمادي | P7: =IFERROR(IF(O7="","",VLOOKUP(O7,#REF!,6,FALSE)),"") ->  | R7: واصل | T7: جوهرة | V7: =IFERROR(VLOOKUP(G7,#REF!,7,FALSE),"") ->  | W7: =COUNTIF(#REF!,'7'!G7) -> 
A8: =IF(G8="","",CHOOSE((COUNTIF(#REF!,G8)>0)+1,"عام","خاص")) ->  | B8: =VLOOKUP(O8,#REF!,7,FALSE) ->  | C8: جوهرة | D8: 1536632 | E8: نفط | F8: 2021-01-08 | G8: 559301 | H8: =VLOOKUP(G8,#REF!,2,FALSE) ->  | I8: 375000 | J8: =IFERROR(IF(A8="","",VLOOKUP(A8,#REF!,3,FALSE)),"") ->  | K8: 10000 | M8: 0 | O8: الغزال | P8: 50000 | R8: واصل | T8: جوهرة | V8: =IFERROR(VLOOKUP(G8,#REF!,7,FALSE),"") ->  | W8: =COUNTIF(#REF!,'7'!G8) -> 
A9: =IF(G9="","",CHOOSE((COUNTIF(#REF!,G9)>0)+1,"عام","خاص")) ->  | B9: =VLOOKUP(O9,#REF!,7,FALSE) ->  | C9: ابداع | D9: 1536679 | E9: كاز | F9: 2021-01-08 | G9: 5203 | H9: =VLOOKUP(G9,#REF!,2,FALSE) ->  | I9: 250000 | J9: =IFERROR(IF(A9="","",VLOOKUP(A9,#REF!,3,FALSE)),"") ->  | K9: 10000 | M9: 0 | N9: =I9-J9-K9 ->  | O9: م ت الرمادي | P9: =IFERROR(IF(O9="","",VLOOKUP(O9,#REF!,6,FALSE)),"") ->  | R9: واصل | T9: جوهرة | V9: =IFERROR(VLOOKUP(G9,#REF!,7,FALSE),"") ->  | W9: =COUNTIF(#REF!,'7'!G9) -> 
A10: =IF(G10="","",CHOOSE((COUNTIF(#REF!,G10)>0)+1,"عام","خاص")) ->  | B10: =VLOOKUP(O10,#REF!,7,FALSE) ->  | C10: ابداع | D10: 1536680 | E10: نفط | F10: 2021-01-08 | G10: 14090 | H10: =VLOOKUP(G10,#REF!,2,FALSE) ->  | I10: 375000 | J10: =IFERROR(IF(A10="","",VLOOKUP(A10,#REF!,3,FALSE)),"") ->  | K10: 10000 | M10: 0 | O10: م ت الرمادي | P10: =IFERROR(IF(O10="","",VLOOKUP(O10,#REF!,6,FALSE)),"") ->  | R10: واصل | T10: جوهرة | V10: =IFERROR(VLOOKUP(G10,#REF!,7,FALSE),"") ->  | W10: =COUNTIF(#REF!,'7'!G10) -> 
A11: =IF(G11="","",CHOOSE((COUNTIF(#REF!,G11)>0)+1,"عام","خاص")) ->  | B11: =VLOOKUP(O11,#REF!,7,FALSE) ->  | C11: جوهرة | D11: 1536678 | E11: نفط | F11: 2021-01-08 | G11: 15419 | H11: =VLOOKUP(G11,#REF!,2,FALSE) ->  | I11: 0 | J11: . | K11: 0 | M11: 0 | N11: 0 | O11: سيف الانبار | P11: =IFERROR(IF(O11="","",VLOOKUP(O11,#REF!,6,FALSE)),"") ->  | R11: واصل | T11: جوهرة | V11: =IFERROR(VLOOKUP(G11,#REF!,7,FALSE),"") ->  | W11: =COUNTIF(#REF!,'7'!G11) -> 
A12: =IF(G12="","",CHOOSE((COUNTIF(#REF!,G12)>0)+1,"عام","خاص")) ->  | B12: =VLOOKUP(O12,#REF!,7,FALSE) ->  | C12: جوهرة | D12: 1536633 | E12: نفط | F12: 2021-01-08 | G12: 559768 | H12: =VLOOKUP(G12,#REF!,2,FALSE) ->  | I12: 375000 | J12: =IFERROR(IF(A12="","",VLOOKUP(A12,#REF!,3,FALSE)),"") ->  | K12: 10000 | M12: 0 | O12: هيت الجديدة | P12: 75000 | R12: واصل | T12: جوهرة | V12: =IFERROR(VLOOKUP(G12,#REF!,7,FALSE),"") ->  | W12: =COUNTIF(#REF!,'7'!G12) -> 
A13: =IF(G13="","",CHOOSE((COUNTIF(#REF!,G13)>0)+1,"عام","خاص")) ->  | B13: =VLOOKUP(O13,#REF!,7,FALSE) ->  | C13: ابداع | D13: 1536629 | E13: نفط | F13: 2021-01-08 | G13: 52778 | H13: =VLOOKUP(G13,#REF!,2,FALSE) ->  | I13: 375000 | J13: =IFERROR(IF(A13="","",VLOOKUP(A13,#REF!,3,FALSE)),"") ->  | K13: 10000 | M13: 0 | O13: الرمادي السريع | P13: =IFERROR(IF(O13="","",VLOOKUP(O13,#REF!,6,FALSE)),"") ->  | R13: واصل | T13: جوهرة | V13: =IFERROR(VLOOKUP(G13,#REF!,7,FALSE),"") ->  | W13: =COUNTIF(#REF!,'7'!G13) -> 
A14: =IF(G14="","",CHOOSE((COUNTIF(#REF!,G14)>0)+1,"عام","خاص")) ->  | B14: =VLOOKUP(O14,#REF!,7,FALSE) ->  | C14: جوهرة | D14: 1536637 | E14: نفط | F14: 2021-01-08 | G14: 192366 | H14: =VLOOKUP(G14,#REF!,2,FALSE) ->  | I14: 0 | J14: 0 | K14: 0 | M14: 0 | N14: 0 | O14: الفلوجة الجديدة | P14: =IFERROR(IF(O14="","",VLOOKUP(O14,#REF!,6,FALSE)),"") ->  | R14: واصل | T14: جوهرة | V14: =IFERROR(VLOOKUP(G14,#REF!,7,FALSE),"") ->  | W14: =COUNTIF(#REF!,'7'!G14) -> 
A15: =IF(G15="","",CHOOSE((COUNTIF(#REF!,G15)>0)+1,"عام","خاص")) ->  | B15: =VLOOKUP(O15,#REF!,7,FALSE) ->  | C15: جوهرة | D15: 1536682 | E15: نفط | F15: 2021-01-08 | G15: 77873 | H15: =VLOOKUP(G15,#REF!,2,FALSE) ->  | I15: 0 | J15: 0 | K15: 0 | M15: 0 | N15: 0 | O15: هيت الجديدة | P15: =IFERROR(IF(O15="","",VLOOKUP(O15,#REF!,6,FALSE)),"") ->  | R15: واصل | T15: جوهرة | V15: =IFERROR(VLOOKUP(G15,#REF!,7,FALSE),"") ->  | W15: =COUNTIF(#REF!,'7'!G15) -> 
A16: =IF(G16="","",CHOOSE((COUNTIF(#REF!,G16)>0)+1,"عام","خاص")) ->  | B16: =VLOOKUP(O16,#REF!,7,FALSE) ->  | C16: ابداع | D16: 1536589 | E16: نفط | F16: 2021-01-08 | G16: 104055 | H16: =VLOOKUP(G16,#REF!,2,FALSE) ->  | I16: 375000 | J16: =IFERROR(IF(A16="","",VLOOKUP(A16,#REF!,3,FALSE)),"") ->  | K16: 10000 | M16: 0 | O16: النسور | P16: =IFERROR(IF(O16="","",VLOOKUP(O16,#REF!,6,FALSE)),"") ->  | R16: واصل | T16: جوهرة | V16: =IFERROR(VLOOKUP(G16,#REF!,7,FALSE),"") ->  | W16: =COUNTIF(#REF!,'7'!G16) -> 
A17: =IF(G17="","",CHOOSE((COUNTIF(#REF!,G17)>0)+1,"عام","خاص")) ->  | B17: =VLOOKUP(O17,#REF!,7,FALSE) ->  | C17: جوهرة | D17: 1536588 | E17: نفط | F17: 2021-01-08 | G17: 192292 | H17: =VLOOKUP(G17,#REF!,2,FALSE) ->  | I17: 0 | J17: 0 | K17: 0 | M17: 0 | N17: 0 | O17: الطارق | P17: =IFERROR(IF(O17="","",VLOOKUP(O17,#REF!,6,FALSE)),"") ->  | R17: واصل | T17: جوهرة | V17: =IFERROR(VLOOKUP(G17,#REF!,7,FALSE),"") ->  | W17: =COUNTIF(#REF!,'7'!G17) -> 
A18: =IF(G18="","",CHOOSE((COUNTIF(#REF!,G18)>0)+1,"عام","خاص")) ->  | B18: =VLOOKUP(O18,#REF!,7,FALSE) ->  | C18: جوهرة | D18: 1536685 | E18: نفط | F18: 2021-01-08 | G18: 48074 | H18: =VLOOKUP(G18,#REF!,2,FALSE) ->  | I18: 0 | J18: 0 | K18: 0 | M18: 0 | N18: 0 | O18: ذراع دجلة | P18: =IFERROR(IF(O18="","",VLOOKUP(O18,#REF!,6,FALSE)),"") ->  | R18: واصل | T18: جوهرة | V18: =IFERROR(VLOOKUP(G18,#REF!,7,FALSE),"") ->  | W18: =COUNTIF(#REF!,'7'!G18) -> 
A19: =IF(G19="","",CHOOSE((COUNTIF(#REF!,G19)>0)+1,"عام","خاص")) ->  | B19: =VLOOKUP(O19,#REF!,7,FALSE) ->  | C19: ابداع | D19: 1536688 | E19: نفط | F19: 2021-01-08 | G19: 557881 | H19: =VLOOKUP(G19,#REF!,2,FALSE) ->  | I19: 375000 | J19: =IFERROR(IF(A19="","",VLOOKUP(A19,#REF!,3,FALSE)),"") ->  | K19: 10000 | M19: 0 | O19: الرمادي الجديدة | P19: =IFERROR(IF(O19="","",VLOOKUP(O19,#REF!,6,FALSE)),"") ->  | R19: واصل | T19: جوهرة | V19: =IFERROR(VLOOKUP(G19,#REF!,7,FALSE),"") ->  | W19: =COUNTIF(#REF!,'7'!G19) -> 
A20: =IF(G20="","",CHOOSE((COUNTIF(#REF!,G20)>0)+1,"عام","خاص")) ->  | B20: =VLOOKUP(O20,#REF!,7,FALSE) ->  | D20: 1536568 | E20: كاز | F20: 2021-01-07 | G20: 61548 | H20: =VLOOKUP(G20,#REF!,2,FALSE) ->  | I20: 375000 | J20: =IFERROR(IF(A20="","",VLOOKUP(A20,#REF!,3,FALSE)),"") ->  | K20: 10000 | M20: 0 | O20: الرمادي السريع | P20: =IFERROR(IF(O20="","",VLOOKUP(O20,#REF!,6,FALSE)),"") ->  | R20: واصل | T20: جوهرة | V20: =IFERROR(VLOOKUP(G20,#REF!,7,FALSE),"") ->  | W20: =COUNTIF(#REF!,'7'!G20) -> 
A21: =IF(G21="","",CHOOSE((COUNTIF(#REF!,G21)>0)+1,"عام","خاص")) ->  | B21: =VLOOKUP(O21,#REF!,7,FALSE) ->  | D21: 1536597 | E21: كاز | F21: 2021-01-08 | G21: 61548 | H21: =VLOOKUP(G21,#REF!,2,FALSE) ->  | I21: 375000 | J21: =IFERROR(IF(A21="","",VLOOKUP(A21,#REF!,3,FALSE)),"") ->  | K21: 10000 | M21: 0 | O21: الكرمة | P21: =IFERROR(IF(O21="","",VLOOKUP(O21,#REF!,6,FALSE)),"") ->  | R21: واصل | T21: جوهرة | V21: =IFERROR(VLOOKUP(G21,#REF!,7,FALSE),"") ->  | W21: =COUNTIF(#REF!,'7'!G21) -> 
A22: =IF(G22="","",CHOOSE((COUNTIF(#REF!,G22)>0)+1,"عام","خاص")) ->  | B22: =VLOOKUP(O22,#REF!,7,FALSE) ->  | D22: 1536581 | E22: نفط | F22: 2021-01-07 | G22: 559099 | H22: =VLOOKUP(G22,#REF!,2,FALSE) ->  | I22: 375000 | J22: =IFERROR(IF(A22="","",VLOOKUP(A22,#REF!,3,FALSE)),"") ->  | K22: 10000 | M22: 0 | O22: الخزرجي | P22: =IFERROR(IF(O22="","",VLOOKUP(O22,#REF!,6,FALSE)),"") ->  | R22: واصل | T22: جوهرة | V22: =IFERROR(VLOOKUP(G22,#REF!,7,FALSE),"") ->  | W22: =COUNTIF(#REF!,'7'!G22) -> 
A23: =IF(G23="","",CHOOSE((COUNTIF(#REF!,G23)>0)+1,"عام","خاص")) ->  | B23: =VLOOKUP(O23,#REF!,7,FALSE) ->  | D23: 1536599 | E23: كاز | F23: 2021-01-08 | G23: 17391 | H23: =VLOOKUP(G23,#REF!,2,FALSE) ->  | I23: 375000 | J23: =IFERROR(IF(A23="","",VLOOKUP(A23,#REF!,3,FALSE)),"") ->  | K23: 10000 | M23: 0 | O23: الفلوجة الجديدة | P23: =IFERROR(IF(O23="","",VLOOKUP(O23,#REF!,6,FALSE)),"") ->  | R23: واصل | T23: جوهرة | V23: =IFERROR(VLOOKUP(G23,#REF!,7,FALSE),"") ->  | W23: =COUNTIF(#REF!,'7'!G23) -> 
A24: =IF(G24="","",CHOOSE((COUNTIF(#REF!,G24)>0)+1,"عام","خاص")) ->  | B24: =VLOOKUP(O24,#REF!,7,FALSE) ->  | D24: 1536595 | E24: كاز | F24: 2021-01-08 | G24: 558808 | H24: =VLOOKUP(G24,#REF!,2,FALSE) ->  | I24: 375000 | J24: =IFERROR(IF(A24="","",VLOOKUP(A24,#REF!,3,FALSE)),"") ->  | K24: 10000 | M24: 0 | O24: الصقلاوية | P24: =IFERROR(IF(O24="","",VLOOKUP(O24,#REF!,6,FALSE)),"") ->  | R24: واصل | T24: جوهرة | V24: =IFERROR(VLOOKUP(G24,#REF!,7,FALSE),"") ->  | W24: =COUNTIF(#REF!,'7'!G24) -> 
A25: =IF(G25="","",CHOOSE((COUNTIF(#REF!,G25)>0)+1,"عام","خاص")) ->  | B25: =VLOOKUP(O25,#REF!,7,FALSE) ->  | D25: 1536594 | E25: نفط | F25: 2021-01-08 | G25: 559099 | H25: =VLOOKUP(G25,#REF!,2,FALSE) ->  | I25: 375000 | J25: =IFERROR(IF(A25="","",VLOOKUP(A25,#REF!,3,FALSE)),"") ->  | K25: 10000 | M25: 0 | O25: المرزوق | P25: =IFERROR(IF(O25="","",VLOOKUP(O25,#REF!,6,FALSE)),"") ->  | R25: واصل | T25: جوهرة | V25: =IFERROR(VLOOKUP(G25,#REF!,7,FALSE),"") ->  | W25: =COUNTIF(#REF!,'7'!G25) -> 
A26: =IF(G26="","",CHOOSE((COUNTIF(#REF!,G26)>0)+1,"عام","خاص")) ->  | B26: =VLOOKUP(O26,#REF!,7,FALSE) ->  | D26: 1536598 | E26: نفط | F26: 2021-01-08 | G26: 21304 | H26: =VLOOKUP(G26,#REF!,2,FALSE) ->  | I26: 375000 | J26: =IFERROR(IF(A26="","",VLOOKUP(A26,#REF!,3,FALSE)),"") ->  | K26: 10000 | M26: 0 | O26: التاج | P26: =IFERROR(IF(O26="","",VLOOKUP(O26,#REF!,6,FALSE)),"") ->  | R26: واصل | T26: جوهرة | V26: =IFERROR(VLOOKUP(G26,#REF!,7,FALSE),"") ->  | W26: =COUNTIF(#REF!,'7'!G26) -> 
A27: =IF(G27="","",CHOOSE((COUNTIF(#REF!,G27)>0)+1,"عام","خاص")) ->  | B27: =VLOOKUP(O27,#REF!,7,FALSE) ->  | D27: 1536569 | E27: نفط | F27: 2021-01-07 | G27: 558808 | H27: =VLOOKUP(G27,#REF!,2,FALSE) ->  | I27: 375000 | J27: =IFERROR(IF(A27="","",VLOOKUP(A27,#REF!,3,FALSE)),"") ->  | K27: 10000 | M27: 0 | O27: الكرمة | P27: =IFERROR(IF(O27="","",VLOOKUP(O27,#REF!,6,FALSE)),"") ->  | R27: واصل | T27: جوهرة | V27: =IFERROR(VLOOKUP(G27,#REF!,7,FALSE),"") ->  | W27: =COUNTIF(#REF!,'7'!G27) -> 
A28: =IF(G28="","",CHOOSE((COUNTIF(#REF!,G28)>0)+1,"عام","خاص")) ->  | B28: =VLOOKUP(O28,#REF!,7,FALSE) ->  | D28: 1536570 | E28: كاز | F28: 2021-01-07 | G28: 17391 | H28: =VLOOKUP(G28,#REF!,2,FALSE) ->  | I28: 375000 | J28: =IFERROR(IF(A28="","",VLOOKUP(A28,#REF!,3,FALSE)),"") ->  | K28: 10000 | M28: 0 | O28: الرمادي الجديدة | P28: =IFERROR(IF(O28="","",VLOOKUP(O28,#REF!,6,FALSE)),"") ->  | R28: واصل | T28: جوهرة | V28: =IFERROR(VLOOKUP(G28,#REF!,7,FALSE),"") ->  | W28: =COUNTIF(#REF!,'7'!G28) -> 
A29: =IF(G29="","",CHOOSE((COUNTIF(#REF!,G29)>0)+1,"عام","خاص")) ->  | B29: =VLOOKUP(O29,#REF!,7,FALSE) ->  | D29: 1536571 | E29: كاز | F29: 2021-01-07 | G29: 21304 | H29: =VLOOKUP(G29,#REF!,2,FALSE) ->  | I29: 375000 | J29: =IFERROR(IF(A29="","",VLOOKUP(A29,#REF!,3,FALSE)),"") ->  | K29: 10000 | M29: 0 | O29: الكرمة | P29: =IFERROR(IF(O29="","",VLOOKUP(O29,#REF!,6,FALSE)),"") ->  | R29: واصل | T29: جوهرة | V29: =IFERROR(VLOOKUP(G29,#REF!,7,FALSE),"") ->  | W29: =COUNTIF(#REF!,'7'!G29) -> 
A30: =IF(G30="","",CHOOSE((COUNTIF(#REF!,G30)>0)+1,"عام","خاص")) ->  | B30: =VLOOKUP(O30,#REF!,7,FALSE) ->  | D30: 1591848 | E30: كاز | F30: 2021-01-03 | G30: 17391 | H30: =VLOOKUP(G30,#REF!,2,FALSE) ->  | I30: 375000 | J30: =IFERROR(IF(A30="","",VLOOKUP(A30,#REF!,3,FALSE)),"") ->  | K30: 10000 | M30: 225000 | O30: الفلوجة الجديدة | P30: =IFERROR(IF(O30="","",VLOOKUP(O30,#REF!,6,FALSE)),"") ->  | R30: واصل | T30: جوهرة | V30: =IFERROR(VLOOKUP(G30,#REF!,7,FALSE),"") ->  | W30: =COUNTIF(#REF!,'7'!G30) -> 
A31: =IF(G31="","",CHOOSE((COUNTIF(#REF!,G31)>0)+1,"عام","خاص")) ->  | B31: =VLOOKUP(O31,#REF!,7,FALSE) ->  | D31: 1591951 | E31: كاز | F31: 2021-01-05 | G31: 17391 | H31: =VLOOKUP(G31,#REF!,2,FALSE) ->  | I31: 375000 | J31: =IFERROR(IF(A31="","",VLOOKUP(A31,#REF!,3,FALSE)),"") ->  | K31: 10000 | M31: 225000 | O31: الرمادي السريع | P31: =IFERROR(IF(O31="","",VLOOKUP(O31,#REF!,6,FALSE)),"") ->  | R31: واصل | T31: جوهرة | V31: =IFERROR(VLOOKUP(G31,#REF!,7,FALSE),"") ->  | W31: =COUNTIF(#REF!,'7'!G31) -> 
A32: =IF(G32="","",CHOOSE((COUNTIF(#REF!,G32)>0)+1,"عام","خاص")) ->  | B32: =VLOOKUP(O32,#REF!,7,FALSE) ->  | D32: 1536553 | E32: كاز | F32: 2021-01-06 | G32: 17391 | H32: =VLOOKUP(G32,#REF!,2,FALSE) ->  | I32: 375000 | J32: =IFERROR(IF(A32="","",VLOOKUP(A32,#REF!,3,FALSE)),"") ->  | K32: 10000 | M32: 225000 | O32: اسوار المدينة | P32: =IFERROR(IF(O32="","",VLOOKUP(O32,#REF!,6,FALSE)),"") ->  | R32: واصل | T32: جوهرة | V32: =IFERROR(VLOOKUP(G32,#REF!,7,FALSE),"") ->  | W32: =COUNTIF(#REF!,'7'!G32) -> 
A33: =IF(G33="","",CHOOSE((COUNTIF(#REF!,G33)>0)+1,"عام","خاص")) ->  | B33: =VLOOKUP(O33,#REF!,7,FALSE) ->  | D33: 1591784 | E33: كاز | F33: 2021-01-02 | G33: 17391 | H33: =VLOOKUP(G33,#REF!,2,FALSE) ->  | I33: 375000 | J33: =IFERROR(IF(A33="","",VLOOKUP(A33,#REF!,3,FALSE)),"") ->  | K33: 10000 | M33: 225000 | O33: الفلوجة الجديدة | P33: =IFERROR(IF(O33="","",VLOOKUP(O33,#REF!,6,FALSE)),"") ->  | R33: واصل | T33: جوهرة | V33: =IFERROR(VLOOKUP(G33,#REF!,7,FALSE),"") ->  | W33: =COUNTIF(#REF!,'7'!G33) -> 
A34: =IF(G34="","",CHOOSE((COUNTIF(#REF!,G34)>0)+1,"عام","خاص")) ->  | B34: =VLOOKUP(O34,#REF!,7,FALSE) ->  | D34: 1536617 | E34: بنزين | F34: 2021-01-07 | G34: 559661 | H34: =VLOOKUP(G34,#REF!,2,FALSE) ->  | I34: 0 | J34: 0 | K34: 0 | M34: =L34*750 -> 0 | N34: 0 | O34: الرمادي الجديدة | P34: 40000 | Q34: 40000 | R34: واصل/باقي 10 الف | T34: جوهرة | V34: =IFERROR(VLOOKUP(G34,#REF!,7,FALSE),"") ->  | W34: =COUNTIF(#REF!,'7'!G34) -> 
A35: =IF(G35="","",CHOOSE((COUNTIF(#REF!,G35)>0)+1,"عام","خاص")) ->  | B35: =VLOOKUP(O35,#REF!,7,FALSE) ->  | D35: 1536615 | E35: بنزين | F35: 2021-01-07 | G35: 42431 | H35: =VLOOKUP(G35,#REF!,2,FALSE) ->  | I35: 0 | J35: 0 | K35: 0 | M35: 0 | N35: 0 | O35: الحبانية | P35: =IFERROR(IF(O35="","",VLOOKUP(O35,#REF!,6,FALSE)),"") ->  | R35: واصل | T35: جوهرة | V35: =IFERROR(VLOOKUP(G35,#REF!,7,FALSE),"") ->  | W35: =COUNTIF(#REF!,'7'!G35) -> 
Q36: =SUM(Q2:Q35) -> 40000

Sheet 8 (hidden)
A1: شركة/عام | B1: حكومي/اهلي | C1: الشركة | D1: رقم المستند | E1: المنتوج | F1: التاريخ | G1: رقم السيارة | H1: اسم السائق | I1: الاستحقاق | J1: المندوبية | K1: المكتبية | L1: النقص | M1: مبلغ النقص | N1: صافي الاستحقاق | O1: المحطة | P1: استحقاق المحطة | Q1: الاستحقاق الكلي | R1: التوقيع
A2: =IF(G2="","",CHOOSE((COUNTIF(#REF!,G2)>0)+1,"عام","خاص")) ->  | B2: =VLOOKUP(O2,#REF!,7,FALSE) ->  | E2: بنزبن | F2: 2021-01-07 | G2: 22898 | H2: =VLOOKUP(G2,#REF!,2,FALSE) ->  | I2: 0 | J2: 0 | K2: 0 | L2: 0 | M2: =L2*750 -> 0 | N2: =I2-J2-K2-M2 -> 0 | O2: القائم | P2: =IFERROR(IF(O2="","",VLOOKUP(O2,#REF!,6,FALSE)),"") ->  | Q2: =IFERROR(SUM(N2+P2),"") ->  | R2: واصل
A3: =IF(G3="","",CHOOSE((COUNTIF(#REF!,G3)>0)+1,"عام","خاص")) ->  | B3: =VLOOKUP(O3,#REF!,7,FALSE) ->  | E3: بنزبن | F3: 2021-01-08 | G3: 22898 | H3: =VLOOKUP(G3,#REF!,2,FALSE) ->  | I3: 0 | J3: 0 | K3: 0 | L3: 0 | M3: 0 | N3: 0 | O3: الحقلانية | P3: =IFERROR(IF(O3="","",VLOOKUP(O3,#REF!,6,FALSE)),"") ->  | R3: واصل
A4: =IF(G4="","",CHOOSE((COUNTIF(#REF!,G4)>0)+1,"عام","خاص")) ->  | B4: حكومي | E4: بنزبن | F4: 2021-01-07 | G4: 44084 | H4: =VLOOKUP(G4,#REF!,2,FALSE) ->  | I4: =IFERROR(IF(A4="","",VLOOKUP(A4,#REF!,2,FALSE)),"") ->  | J4: =IFERROR(IF(A4="","",VLOOKUP(A4,#REF!,3,FALSE)),"") ->  | K4: 10000 | L4: 0 | M4: =L4*750 -> 0 | N4: =I4-J4-K4-M4 ->  | O4: 0 | P4: =IFERROR(IF(O4="","",VLOOKUP(O4,#REF!,6,FALSE)),"") ->  | Q4: 340000 | R4: واصل
A5: =IF(G5="","",CHOOSE((COUNTIF(#REF!,G5)>0)+1,"عام","خاص")) ->  | B5: =VLOOKUP(O5,#REF!,7,FALSE) ->  | E5: كاز | F5: 2021-01-08 | G5: 55127 | H5: =VLOOKUP(G5,#REF!,2,FALSE) ->  | I5: =IFERROR(IF(A5="","",VLOOKUP(A5,#REF!,2,FALSE)),"") ->  | J5: =IFERROR(IF(A5="","",VLOOKUP(A5,#REF!,3,FALSE)),"") ->  | K5: 10000 | L5: 0 | M5: 0 | O5: الحبانية | P5: =IFERROR(IF(O5="","",VLOOKUP(O5,#REF!,6,FALSE)),"") ->  | Q5: =IFERROR(SUM(N5+P5),"") ->  | R5: واصل
A6: =IF(G6="","",CHOOSE((COUNTIF(#REF!,G6)>0)+1,"عام","خاص")) ->  | B6: =VLOOKUP(O6,#REF!,7,FALSE) ->  | E6: نفط | F6: 2021-01-09 | G6: 86890 | H6: =VLOOKUP(G6,#REF!,2,FALSE) ->  | I6: =IFERROR(IF(A6="","",VLOOKUP(A6,#REF!,2,FALSE)),"") ->  | J6: =IFERROR(IF(A6="","",VLOOKUP(A6,#REF!,3,FALSE)),"") ->  | K6: 10000 | L6: 0 | M6: 0 | O6: المنتصر بالله | P6: 0 | R6: واصل
A7: =IF(G7="","",CHOOSE((COUNTIF(#REF!,G7)>0)+1,"عام","خاص")) ->  | B7: =VLOOKUP(O7,#REF!,7,FALSE) ->  | E7: نفط | F7: 2021-01-08 | G7: 58522 | H7: =VLOOKUP(G7,#REF!,2,FALSE) ->  | I7: =IFERROR(IF(A7="","",VLOOKUP(A7,#REF!,2,FALSE)),"") ->  | J7: =IFERROR(IF(A7="","",VLOOKUP(A7,#REF!,3,FALSE)),"") ->  | K7: 10000 | L7: 0 | M7: 0 | O7: البركة | P7: =IFERROR(IF(O7="","",VLOOKUP(O7,#REF!,6,FALSE)),"") ->  | R7: واصل
A8: =IF(G8="","",CHOOSE((COUNTIF(#REF!,G8)>0)+1,"عام","خاص")) ->  | B8: =VLOOKUP(O8,#REF!,7,FALSE) ->  | E8: كاز | F8: 2021-01-09 | G8: 119366 | H8: =VLOOKUP(G8,#REF!,2,FALSE) ->  | I8: =IFERROR(IF(A8="","",VLOOKUP(A8,#REF!,2,FALSE)),"") ->  | J8: =IFERROR(IF(A8="","",VLOOKUP(A8,#REF!,3,FALSE)),"") ->  | K8: 10000 | L8: 0 | M8: 0 | O8: م ت الفلوجة | P8: =IFERROR(IF(O8="","",VLOOKUP(O8,#REF!,6,FALSE)),"") ->  | R8: واصل
A9: =IF(G9="","",CHOOSE((COUNTIF(#REF!,G9)>0)+1,"عام","خاص")) ->  | B9: =VLOOKUP(O9,#REF!,7,FALSE) ->  | E9: نفط | F9: 2021-01-09 | G9: 63259 | H9: =VLOOKUP(G9,#REF!,2,FALSE) ->  | I9: =IFERROR(IF(A9="","",VLOOKUP(A9,#REF!,2,FALSE)),"") ->  | J9: =IFERROR(IF(A9="","",VLOOKUP(A9,#REF!,3,FALSE)),"") ->  | K9: 10000 | L9: 0 | M9: 0 | O9: اسوار المدينة | P9: =IFERROR(IF(O9="","",VLOOKUP(O9,#REF!,6,FALSE)),"") ->  | R9: واصل
A10: =IF(G10="","",CHOOSE((COUNTIF(#REF!,G10)>0)+1,"عام","خاص")) ->  | B10: =VLOOKUP(O10,#REF!,7,FALSE) ->  | E10: نفط | F10: 2021-01-09 | G10: 562842 | H10: =VLOOKUP(G10,#REF!,2,FALSE) ->  | I10: =IFERROR(IF(A10="","",VLOOKUP(A10,#REF!,2,FALSE)),"") ->  | J10: =IFERROR(IF(A10="","",VLOOKUP(A10,#REF!,3,FALSE)),"") ->  | K10: 10000 | L10: 0 | M10: 0 | O10: م ت الرمادي | P10: =IFERROR(IF(O10="","",VLOOKUP(O10,#REF!,6,FALSE)),"") ->  | R10: واصل
A11: =IF(G11="","",CHOOSE((COUNTIF(#REF!,G11)>0)+1,"عام","خاص")) ->  | B11: =VLOOKUP(O11,#REF!,7,FALSE) ->  | E11: كاز | F11: 2021-01-08 | G11: 77879 | H11: =VLOOKUP(G11,#REF!,2,FALSE) ->  | I11: =IFERROR(IF(A11="","",VLOOKUP(A11,#REF!,2,FALSE)),"") ->  | J11: =IFERROR(IF(A11="","",VLOOKUP(A11,#REF!,3,FALSE)),"") ->  | K11: 10000 | L11: 0 | M11: 0 | O11: م ت الفلوجة | P11: =IFERROR(IF(O11="","",VLOOKUP(O11,#REF!,6,FALSE)),"") ->  | R11: واصل
A12: =IF(G12="","",CHOOSE((COUNTIF(#REF!,G12)>0)+1,"عام","خاص")) ->  | B12: =VLOOKUP(O12,#REF!,7,FALSE) ->  | E12: نفط | F12: 2021-01-08 | G12: 123837 | H12: =VLOOKUP(G12,#REF!,2,FALSE) ->  | I12: =IFERROR(IF(A12="","",VLOOKUP(A12,#REF!,2,FALSE)),"") ->  | J12: =IFERROR(IF(A12="","",VLOOKUP(A12,#REF!,3,FALSE)),"") ->  | K12: 10000 | L12: 0 | M12: 0 | O12: عطارد | P12: =IFERROR(IF(O12="","",VLOOKUP(O12,#REF!,6,FALSE)),"") ->  | R12: واصل
A13: =IF(G13="","",CHOOSE((COUNTIF(#REF!,G13)>0)+1,"عام","خاص")) ->  | B13: =VLOOKUP(O13,#REF!,7,FALSE) ->  | E13: كاز | F13: 2021-01-07 | G13: 4885 | H13: =VLOOKUP(G13,#REF!,2,FALSE) ->  | I13: =IFERROR(IF(A13="","",VLOOKUP(A13,#REF!,2,FALSE)),"") ->  | J13: =IFERROR(IF(A13="","",VLOOKUP(A13,#REF!,3,FALSE)),"") ->  | K13: 10000 | L13: 0 | M13: 225000 | O13: م ت الفلوجة | P13: =IFERROR(IF(O13="","",VLOOKUP(O13,#REF!,6,FALSE)),"") ->  | R13: واصل
A14: =IF(G14="","",CHOOSE((COUNTIF(#REF!,G14)>0)+1,"عام","خاص")) ->  | B14: =VLOOKUP(O14,#REF!,7,FALSE) ->  | E14: كاز | F14: 2021-01-09 | G14: 559099 | H14: =VLOOKUP(G14,#REF!,2,FALSE) ->  | I14: =IFERROR(IF(A14="","",VLOOKUP(A14,#REF!,2,FALSE)),"") ->  | J14: =IFERROR(IF(A14="","",VLOOKUP(A14,#REF!,3,FALSE)),"") ->  | K14: 10000 | L14: 0 | M14: 0 | O14: تاج الجزيرة | P14: =IFERROR(IF(O14="","",VLOOKUP(O14,#REF!,6,FALSE)),"") ->  | R14: واصل
A15: =IF(G15="","",CHOOSE((COUNTIF(#REF!,G15)>0)+1,"عام","خاص")) ->  | B15: =VLOOKUP(O15,#REF!,7,FALSE) ->  | E15: نفط | F15: 2021-01-09 | G15: 21304 | H15: =VLOOKUP(G15,#REF!,2,FALSE) ->  | I15: =IFERROR(IF(A15="","",VLOOKUP(A15,#REF!,2,FALSE)),"") ->  | J15: =IFERROR(IF(A15="","",VLOOKUP(A15,#REF!,3,FALSE)),"") ->  | K15: 10000 | L15: 0 | M15: 0 | O15: الكوثر | P15: =IFERROR(IF(O15="","",VLOOKUP(O15,#REF!,6,FALSE)),"") ->  | R15: واصل
A16: =IF(G16="","",CHOOSE((COUNTIF(#REF!,G16)>0)+1,"عام","خاص")) ->  | B16: =VLOOKUP(O16,#REF!,7,FALSE) ->  | E16: كاز | F16: 2021-01-09 | G16: 558808 | H16: =VLOOKUP(G16,#REF!,2,FALSE) ->  | I16: =IFERROR(IF(A16="","",VLOOKUP(A16,#REF!,2,FALSE)),"") ->  | J16: =IFERROR(IF(A16="","",VLOOKUP(A16,#REF!,3,FALSE)),"") ->  | K16: 10000 | L16: 0 | M16: 0 | O16: الرمادي الجديدة | P16: =IFERROR(IF(O16="","",VLOOKUP(O16,#REF!,6,FALSE)),"") ->  | R16: واصل
A17: =IF(G17="","",CHOOSE((COUNTIF(#REF!,G17)>0)+1,"عام","خاص")) ->  | B17: =VLOOKUP(O17,#REF!,7,FALSE) ->  | E17: كاز | F17: 2021-01-09 | G17: 17391 | H17: =VLOOKUP(G17,#REF!,2,FALSE) ->  | I17: =IFERROR(IF(A17="","",VLOOKUP(A17,#REF!,2,FALSE)),"") ->  | J17: =IFERROR(IF(A17="","",VLOOKUP(A17,#REF!,3,FALSE)),"") ->  | K17: 10000 | L17: 0 | M17: 0 | O17: الفلوجة الجديدة | P17: =IFERROR(IF(O17="","",VLOOKUP(O17,#REF!,6,FALSE)),"") ->  | R17: واصل
A18: =IF(G18="","",CHOOSE((COUNTIF(#REF!,G18)>0)+1,"عام","خاص")) ->  | B18: =VLOOKUP(O18,#REF!,7,FALSE) ->  | E18: كاز | F18: 2021-01-09 | G18: 61548 | H18: =VLOOKUP(G18,#REF!,2,FALSE) ->  | I18: =IFERROR(IF(A18="","",VLOOKUP(A18,#REF!,2,FALSE)),"") ->  | J18: =IFERROR(IF(A18="","",VLOOKUP(A18,#REF!,3,FALSE)),"") ->  | K18: 10000 | L18: 0 | M18: 0 | O18: الكرمة | P18: =IFERROR(IF(O18="","",VLOOKUP(O18,#REF!,6,FALSE)),"") ->  | R18: واصل
A19: =IF(G19="","",CHOOSE((COUNTIF(#REF!,G19)>0)+1,"عام","خاص")) ->  | B19: =VLOOKUP(O19,#REF!,7,FALSE) ->  | E19: كاز | F19: 2021-01-09 | G19: 38230 | H19: =VLOOKUP(G19,#REF!,2,FALSE) ->  | I19: =IFERROR(IF(A19="","",VLOOKUP(A19,#REF!,2,FALSE)),"") ->  | J19: =IFERROR(IF(A19="","",VLOOKUP(A19,#REF!,3,FALSE)),"") ->  | K19: 10000 | L19: 0 | M19: 0 | O19: م ت الفلوجة | P19: =IFERROR(IF(O19="","",VLOOKUP(O19,#REF!,6,FALSE)),"") ->  | R19: واصل
A20: =IF(G20="","",CHOOSE((COUNTIF(#REF!,G20)>0)+1,"عام","خاص")) ->  | B20: =VLOOKUP(O20,#REF!,7,FALSE) ->  | E20: نفط | F20: 2021-01-07 | G20: 193004 | H20: =VLOOKUP(G20,#REF!,2,FALSE) ->  | I20: =IFERROR(IF(A20="","",VLOOKUP(A20,#REF!,2,FALSE)),"") ->  | J20: =IFERROR(IF(A20="","",VLOOKUP(A20,#REF!,3,FALSE)),"") ->  | K20: 10000 | L20: 227 | M20: 170250 | O20: الرمادي الجديدة | P20: =IFERROR(IF(O20="","",VLOOKUP(O20,#REF!,6,FALSE)),"") ->  | R20: واصل
A21: =IF(G21="","",CHOOSE((COUNTIF(#REF!,G21)>0)+1,"عام","خاص")) ->  | B21: =VLOOKUP(O21,#REF!,7,FALSE) ->  | E21: نفط | F21: 2021-01-09 | G21: 35184 | H21: =VLOOKUP(G21,#REF!,2,FALSE) ->  | I21: =IFERROR(IF(A21="","",VLOOKUP(A21,#REF!,2,FALSE)),"") ->  | J21: =IFERROR(IF(A21="","",VLOOKUP(A21,#REF!,3,FALSE)),"") ->  | K21: 10000 | L21: 0 | M21: 0 | O21: الميلاد | P21: =IFERROR(IF(O21="","",VLOOKUP(O21,#REF!,6,FALSE)),"") ->  | R21: واصل
A22: =IF(G22="","",CHOOSE((COUNTIF(#REF!,G22)>0)+1,"عام","خاص")) ->  | B22: =VLOOKUP(O22,#REF!,7,FALSE) ->  | E22: بنزبن | F22: 2021-01-08 | G22: 60940 | H22: =VLOOKUP(G22,#REF!,2,FALSE) ->  | I22: 0 | J22: 0 | K22: 0 | L22: 0 | M22: 0 | N22: 0 | O22: الجبل | P22: =IFERROR(IF(O22="","",VLOOKUP(O22,#REF!,6,FALSE)),"") ->  | R22: واصل
A23: =IF(G23="","",CHOOSE((COUNTIF(#REF!,G23)>0)+1,"عام","خاص")) ->  | B23: =VLOOKUP(O23,#REF!,7,FALSE) ->  | E23: بنزبن | F23: 2021-01-07 | G23: 15139 | H23: =VLOOKUP(G23,#REF!,2,FALSE) ->  | I23: 0 | J23: 0 | K23: 0 | L23: 0 | M23: 0 | N23: 0 | O23: الرمادي السريع | P23: =IFERROR(IF(O23="","",VLOOKUP(O23,#REF!,6,FALSE)),"") ->  | R23: واصل
A24: =IF(G24="","",CHOOSE((COUNTIF(#REF!,G24)>0)+1,"عام","خاص")) ->  | B24: =VLOOKUP(O24,#REF!,7,FALSE) ->  | E24: نفط | F24: 2021-01-07 | G24: 65345 | H24: =VLOOKUP(G24,#REF!,2,FALSE) ->  | I24: =IFERROR(IF(A24="","",VLOOKUP(A24,#REF!,2,FALSE)),"") ->  | J24: =IFERROR(IF(A24="","",VLOOKUP(A24,#REF!,3,FALSE)),"") ->  | K24: 10000 | L24: 0 | M24: 0 | O24: جبل النور | P24: =IFERROR(IF(O24="","",VLOOKUP(O24,#REF!,6,FALSE)),"") ->  | R24: واصل
A25: =IF(G25="","",CHOOSE((COUNTIF(#REF!,G25)>0)+1,"عام","خاص")) ->  | B25: =VLOOKUP(O25,#REF!,7,FALSE) ->  | E25: نفط | F25: 2021-01-09 | G25: 51383 | H25: =VLOOKUP(G25,#REF!,2,FALSE) ->  | I25: =IFERROR(IF(A25="","",VLOOKUP(A25,#REF!,2,FALSE)),"") ->  | J25: =IFERROR(IF(A25="","",VLOOKUP(A25,#REF!,3,FALSE)),"") ->  | K25: 10000 | L25: 0 | M25: 0 | O25: م ت الفلوجة | P25: =IFERROR(IF(O25="","",VLOOKUP(O25,#REF!,6,FALSE)),"") ->  | R25: واصل
A26: =IF(G26="","",CHOOSE((COUNTIF(#REF!,G26)>0)+1,"عام","خاص")) ->  | B26: =VLOOKUP(O26,#REF!,7,FALSE) ->  | E26: نفط | F26: 2021-01-09 | G26: 7727 | H26: =VLOOKUP(G26,#REF!,2,FALSE) ->  | I26: =IFERROR(IF(A26="","",VLOOKUP(A26,#REF!,2,FALSE)),"") ->  | J26: =IFERROR(IF(A26="","",VLOOKUP(A26,#REF!,3,FALSE)),"") ->  | K26: 10000 | L26: 0 | M26: 0 | O26: س الغربية | P26: =IFERROR(IF(O26="","",VLOOKUP(O26,#REF!,6,FALSE)),"") ->  | R26: واصل
A27: =IF(G27="","",CHOOSE((COUNTIF(#REF!,G27)>0)+1,"عام","خاص")) ->  | B27: =VLOOKUP(O27,#REF!,7,FALSE) ->  | E27: نفط | F27: 2021-01-09 | G27: 71852 | H27: =VLOOKUP(G27,#REF!,2,FALSE) ->  | I27: =IFERROR(IF(A27="","",VLOOKUP(A27,#REF!,2,FALSE)),"") ->  | J27: =IFERROR(IF(A27="","",VLOOKUP(A27,#REF!,3,FALSE)),"") ->  | K27: 10000 | L27: 0 | M27: 0 | O27: هيت الجديدة | P27: =IFERROR(IF(O27="","",VLOOKUP(O27,#REF!,6,FALSE)),"") ->  | R27: واصل
A28: =IF(G28="","",CHOOSE((COUNTIF(#REF!,G28)>0)+1,"عام","خاص")) ->  | B28: =VLOOKUP(O28,#REF!,7,FALSE) ->  | E28: بنزين | F28: 2021-01-08 | G28: 147054 | H28: =VLOOKUP(G28,#REF!,2,FALSE) ->  | I28: 0 | J28: 0 | K28: 0 | L28: 0 | M28: 0 | N28: 0 | O28: الرمادي القديمة | P28: =IFERROR(IF(O28="","",VLOOKUP(O28,#REF!,6,FALSE)),"") ->  | R28: واصل
A29: =IF(G29="","",CHOOSE((COUNTIF(#REF!,G29)>0)+1,"عام","خاص")) ->  | B29: =VLOOKUP(O29,#REF!,7,FALSE) ->  | E29: بنزين | F29: 2021-01-08 | G29: 39505 | H29: =VLOOKUP(G29,#REF!,2,FALSE) ->  | I29: 0 | J29: 0 | K29: 0 | L29: 0 | M29: 0 | N29: 0 | O29: الرمادي القديمة | P29: =IFERROR(IF(O29="","",VLOOKUP(O29,#REF!,6,FALSE)),"") ->  | R29: واصل
A30: =IF(G30="","",CHOOSE((COUNTIF(#REF!,G30)>0)+1,"عام","خاص")) ->  | B30: =VLOOKUP(O30,#REF!,7,FALSE) ->  | E30: بنزين | F30: 2021-01-07 | G30: 39505 | H30: =VLOOKUP(G30,#REF!,2,FALSE) ->  | I30: 0 | J30: 0 | K30: 0 | L30: 0 | M30: 0 | N30: 0 | O30: الرمادي القديمة | P30: =IFERROR(IF(O30="","",VLOOKUP(O30,#REF!,6,FALSE)),"") ->  | R30: واصل
A31: =IF(G31="","",CHOOSE((COUNTIF(#REF!,G31)>0)+1,"عام","خاص")) ->  | B31: =VLOOKUP(O31,#REF!,7,FALSE) ->  | E31: بنزبن | F31: 2021-01-09 | G31: 39505 | H31: =VLOOKUP(G31,#REF!,2,FALSE) ->  | I31: 0 | J31: 0 | K31: 0 | L31: 0 | M31: 0 | N31: 0 | O31: الرمادي القديمة | P31: =IFERROR(IF(O31="","",VLOOKUP(O31,#REF!,6,FALSE)),"") ->  | R31: واصل
A32: =IF(G32="","",CHOOSE((COUNTIF(#REF!,G32)>0)+1,"عام","خاص")) ->  | B32: =VLOOKUP(O32,#REF!,7,FALSE) ->  | E32: كاز | F32: 2021-01-09 | G32: 559010 | H32: =VLOOKUP(G32,#REF!,2,FALSE) ->  | I32: =IFERROR(IF(A32="","",VLOOKUP(A32,#REF!,2,FALSE)),"") ->  | J32: =IFERROR(IF(A32="","",VLOOKUP(A32,#REF!,3,FALSE)),"") ->  | K32: 10000 | L32: 0 | M32: 0 | O32: الكرمة | P32: =IFERROR(IF(O32="","",VLOOKUP(O32,#REF!,6,FALSE)),"") ->  | R32: واصل
A33: =IF(G33="","",CHOOSE((COUNTIF(#REF!,G33)>0)+1,"عام","خاص")) ->  | B33: =VLOOKUP(O33,#REF!,7,FALSE) ->  | E33: كاز | F33: 2021-01-07 | G33: 559010 | H33: =VLOOKUP(G33,#REF!,2,FALSE) ->  | I33: =IFERROR(IF(A33="","",VLOOKUP(A33,#REF!,2,FALSE)),"") ->  | J33: =IFERROR(IF(A33="","",VLOOKUP(A33,#REF!,3,FALSE)),"") ->  | K33: 10000 | L33: 0 | M33: 0 | O33: الحبانية | P33: =IFERROR(IF(O33="","",VLOOKUP(O33,#REF!,6,FALSE)),"") ->  | R33: واصل
A34: =IF(G34="","",CHOOSE((COUNTIF(#REF!,G34)>0)+1,"عام","خاص")) ->  | B34: =VLOOKUP(O34,#REF!,7,FALSE) ->  | E34: كاز | F34: 2021-01-09 | G34: 29686 | H34: =VLOOKUP(G34,#REF!,2,FALSE) ->  | I34: =IFERROR(IF(A34="","",VLOOKUP(A34,#REF!,2,FALSE)),"") ->  | J34: =IFERROR(IF(A34="","",VLOOKUP(A34,#REF!,3,FALSE)),"") ->  | K34: 10000 | L34: 0 | M34: 0 | O34: م ت الفلوجة | P34: =IFERROR(IF(O34="","",VLOOKUP(O34,#REF!,6,FALSE)),"") ->  | R34: واصل | S34: 350000 | T34: =Q34-S34 -> 
A35: =IF(G35="","",CHOOSE((COUNTIF(#REF!,G35)>0)+1,"عام","خاص")) ->  | B35: =VLOOKUP(O35,#REF!,7,FALSE) ->  | E35: كاز | F35: 2021-01-08 | G35: 200262 | H35: =VLOOKUP(G35,#REF!,2,FALSE) ->  | I35: =IFERROR(IF(A35="","",VLOOKUP(A35,#REF!,2,FALSE)),"") ->  | J35: =IFERROR(IF(A35="","",VLOOKUP(A35,#REF!,3,FALSE)),"") ->  | K35: 10000 | L35: 0 | M35: 0 | O35: الصقلاوية | P35: =IFERROR(IF(O35="","",VLOOKUP(O35,#REF!,6,FALSE)),"") ->  | R35: واصل
A36: =IF(G36="","",CHOOSE((COUNTIF(#REF!,G36)>0)+1,"عام","خاص")) ->  | B36: =VLOOKUP(O36,#REF!,7,FALSE) ->  | E36: كاز | F36: 2021-01-08 | G36: 16489 | H36: =VLOOKUP(G36,#REF!,2,FALSE) ->  | I36: =IFERROR(IF(A36="","",VLOOKUP(A36,#REF!,2,FALSE)),"") ->  | J36: =IFERROR(IF(A36="","",VLOOKUP(A36,#REF!,3,FALSE)),"") ->  | K36: 10000 | L36: 0 | M36: 0 | O36: الصقلاوية | P36: =IFERROR(IF(O36="","",VLOOKUP(O36,#REF!,6,FALSE)),"") ->  | R36: واصل
A37: =IF(G37="","",CHOOSE((COUNTIF(#REF!,G37)>0)+1,"عام","خاص")) ->  | B37: =VLOOKUP(O37,#REF!,7,FALSE) ->  | H37: =VLOOKUP(G37,#REF!,2,FALSE) ->  | I37: =IFERROR(IF(A37="","",VLOOKUP(A37,#REF!,2,FALSE)),"") ->  | J37: =IFERROR(IF(A37="","",VLOOKUP(A37,#REF!,3,FALSE)),"") ->  | K37: 10000 | L37: 0 | M37: 0 | P37: =IFERROR(IF(O37="","",VLOOKUP(O37,#REF!,6,FALSE)),"") ->  | Q37: =SUM(Q2:Q36) -> 340000
A38: =IF(G38="","",CHOOSE((COUNTIF(#REF!,G38)>0)+1,"عام","خاص")) ->  | B38: =VLOOKUP(O38,#REF!,7,FALSE) ->  | H38: =VLOOKUP(G38,#REF!,2,FALSE) ->  | I38: =IFERROR(IF(A38="","",VLOOKUP(A38,#REF!,2,FALSE)),"") ->  | J38: =IFERROR(IF(A38="","",VLOOKUP(A38,#REF!,3,FALSE)),"") ->  | K38: 10000 | L38: 0 | M38: 0 | P38: =IFERROR(IF(O38="","",VLOOKUP(O38,#REF!,6,FALSE)),"") -> 
A39: =IF(G39="","",CHOOSE((COUNTIF(#REF!,G39)>0)+1,"عام","خاص")) ->  | B39: =VLOOKUP(O39,#REF!,7,FALSE) ->  | H39: =VLOOKUP(G39,#REF!,2,FALSE) ->  | I39: =IFERROR(IF(A39="","",VLOOKUP(A39,#REF!,2,FALSE)),"") ->  | J39: =IFERROR(IF(A39="","",VLOOKUP(A39,#REF!,3,FALSE)),"") ->  | K39: 10000 | L39: 0 | M39: 0 | P39: =IFERROR(IF(O39="","",VLOOKUP(O39,#REF!,6,FALSE)),"") -> 
A40: =IF(G40="","",CHOOSE((COUNTIF(#REF!,G40)>0)+1,"عام","خاص")) ->  | B40: =VLOOKUP(O40,#REF!,7,FALSE) ->  | H40: =VLOOKUP(G40,#REF!,2,FALSE) ->  | I40: =IFERROR(IF(A40="","",VLOOKUP(A40,#REF!,2,FALSE)),"") ->  | J40: =IFERROR(IF(A40="","",VLOOKUP(A40,#REF!,3,FALSE)),"") ->  | K40: 10000 | L40: 0 | M40: 0 | P40: =IFERROR(IF(O40="","",VLOOKUP(O40,#REF!,6,FALSE)),"") -> 
A41: =IF(G41="","",CHOOSE((COUNTIF(#REF!,G41)>0)+1,"عام","خاص")) ->  | B41: =VLOOKUP(O41,#REF!,7,FALSE) ->  | H41: =VLOOKUP(G41,#REF!,2,FALSE) ->  | I41: =IFERROR(IF(A41="","",VLOOKUP(A41,#REF!,2,FALSE)),"") ->  | J41: =IFERROR(IF(A41="","",VLOOKUP(A41,#REF!,3,FALSE)),"") ->  | K41: 10000 | L41: 0 | M41: 0 | P41: =IFERROR(IF(O41="","",VLOOKUP(O41,#REF!,6,FALSE)),"") -> 
A42: =IF(G42="","",CHOOSE((COUNTIF(#REF!,G42)>0)+1,"عام","خاص")) ->  | B42: =VLOOKUP(O42,#REF!,7,FALSE) ->  | H42: =VLOOKUP(G42,#REF!,2,FALSE) ->  | I42: =IFERROR(IF(A42="","",VLOOKUP(A42,#REF!,2,FALSE)),"") ->  | J42: =IFERROR(IF(A42="","",VLOOKUP(A42,#REF!,3,FALSE)),"") ->  | K42: 10000 | L42: 0 | M42: 0 | P42: =IFERROR(IF(O42="","",VLOOKUP(O42,#REF!,6,FALSE)),"") -> 
A43: =IF(G43="","",CHOOSE((COUNTIF(#REF!,G43)>0)+1,"عام","خاص")) ->  | B43: =VLOOKUP(O43,#REF!,7,FALSE) ->  | H43: =VLOOKUP(G43,#REF!,2,FALSE) ->  | I43: =IFERROR(IF(A43="","",VLOOKUP(A43,#REF!,2,FALSE)),"") ->  | J43: =IFERROR(IF(A43="","",VLOOKUP(A43,#REF!,3,FALSE)),"") ->  | K43: 10000 | L43: 0 | M43: 0 | P43: =IFERROR(IF(O43="","",VLOOKUP(O43,#REF!,6,FALSE)),"") -> 
A44: =IF(G44="","",CHOOSE((COUNTIF(#REF!,G44)>0)+1,"عام","خاص")) ->  | B44: =VLOOKUP(O44,#REF!,7,FALSE) ->  | H44: =VLOOKUP(G44,#REF!,2,FALSE) ->  | I44: =IFERROR(IF(A44="","",VLOOKUP(A44,#REF!,2,FALSE)),"") ->  | J44: =IFERROR(IF(A44="","",VLOOKUP(A44,#REF!,3,FALSE)),"") ->  | K44: 10000 | L44: 0 | M44: 0 | P44: =IFERROR(IF(O44="","",VLOOKUP(O44,#REF!,6,FALSE)),"") -> 
A45: =IF(G45="","",CHOOSE((COUNTIF(#REF!,G45)>0)+1,"عام","خاص")) ->  | B45: =VLOOKUP(O45,#REF!,7,FALSE) ->  | H45: =VLOOKUP(G45,#REF!,2,FALSE) ->  | I45: =IFERROR(IF(A45="","",VLOOKUP(A45,#REF!,2,FALSE)),"") ->  | J45: =IFERROR(IF(A45="","",VLOOKUP(A45,#REF!,3,FALSE)),"") ->  | K45: 10000 | L45: 0 | M45: 0 | P45: =IFERROR(IF(O45="","",VLOOKUP(O45,#REF!,6,FALSE)),"") -> 
A46: =IF(G46="","",CHOOSE((COUNTIF(#REF!,G46)>0)+1,"عام","خاص")) ->  | B46: =VLOOKUP(O46,#REF!,7,FALSE) ->  | H46: =VLOOKUP(G46,#REF!,2,FALSE) ->  | I46: =IFERROR(IF(A46="","",VLOOKUP(A46,#REF!,2,FALSE)),"") ->  | J46: =IFERROR(IF(A46="","",VLOOKUP(A46,#REF!,3,FALSE)),"") ->  | K46: 10000 | L46: 0 | M46: 0 | P46: =IFERROR(IF(O46="","",VLOOKUP(O46,#REF!,6,FALSE)),"") -> 
A47: =IF(G47="","",CHOOSE((COUNTIF(#REF!,G47)>0)+1,"عام","خاص")) ->  | B47: =VLOOKUP(O47,#REF!,7,FALSE) ->  | H47: =VLOOKUP(G47,#REF!,2,FALSE) ->  | I47: =IFERROR(IF(A47="","",VLOOKUP(A47,#REF!,2,FALSE)),"") ->  | J47: =IFERROR(IF(A47="","",VLOOKUP(A47,#REF!,3,FALSE)),"") ->  | K47: 10000 | L47: 0 | M47: 0 | P47: =IFERROR(IF(O47="","",VLOOKUP(O47,#REF!,6,FALSE)),"") -> 
A48: =IF(G48="","",CHOOSE((COUNTIF(#REF!,G48)>0)+1,"عام","خاص")) ->  | B48: =VLOOKUP(O48,#REF!,7,FALSE) ->  | H48: =VLOOKUP(G48,#REF!,2,FALSE) ->  | I48: =IFERROR(IF(A48="","",VLOOKUP(A48,#REF!,2,FALSE)),"") ->  | J48: =IFERROR(IF(A48="","",VLOOKUP(A48,#REF!,3,FALSE)),"") ->  | K48: 10000 | L48: 0 | M48: 0 | P48: =IFERROR(IF(O48="","",VLOOKUP(O48,#REF!,6,FALSE)),"") -> 
A49: =IF(G49="","",CHOOSE((COUNTIF(#REF!,G49)>0)+1,"عام","خاص")) ->  | B49: =VLOOKUP(O49,#REF!,7,FALSE) ->  | H49: =VLOOKUP(G49,#REF!,2,FALSE) ->  | I49: =IFERROR(IF(A49="","",VLOOKUP(A49,#REF!,2,FALSE)),"") ->  | J49: =IFERROR(IF(A49="","",VLOOKUP(A49,#REF!,3,FALSE)),"") ->  | K49: 10000 | L49: 0 | M49: 0 | P49: =IFERROR(IF(O49="","",VLOOKUP(O49,#REF!,6,FALSE)),"") -> 
A50: =IF(G50="","",CHOOSE((COUNTIF(#REF!,G50)>0)+1,"عام","خاص")) ->  | B50: =VLOOKUP(O50,#REF!,7,FALSE) ->  | H50: =VLOOKUP(G50,#REF!,2,FALSE) ->  | I50: =IFERROR(IF(A50="","",VLOOKUP(A50,#REF!,2,FALSE)),"") ->  | J50: =IFERROR(IF(A50="","",VLOOKUP(A50,#REF!,3,FALSE)),"") ->  | K50: 10000 | L50: 0 | M50: 0 | P50: =IFERROR(IF(O50="","",VLOOKUP(O50,#REF!,6,FALSE)),"") -> 
A51: =IF(G51="","",CHOOSE((COUNTIF(#REF!,G51)>0)+1,"عام","خاص")) ->  | B51: =VLOOKUP(O51,#REF!,7,FALSE) ->  | H51: =VLOOKUP(G51,#REF!,2,FALSE) ->  | I51: =IFERROR(IF(A51="","",VLOOKUP(A51,#REF!,2,FALSE)),"") ->  | J51: =IFERROR(IF(A51="","",VLOOKUP(A51,#REF!,3,FALSE)),"") ->  | K51: 10000 | L51: 0 | M51: 0 | P51: =IFERROR(IF(O51="","",VLOOKUP(O51,#REF!,6,FALSE)),"") -> 
A52: =IF(G52="","",CHOOSE((COUNTIF(#REF!,G52)>0)+1,"عام","خاص")) ->  | B52: =VLOOKUP(O52,#REF!,7,FALSE) ->  | H52: =VLOOKUP(G52,#REF!,2,FALSE) ->  | I52: =IFERROR(IF(A52="","",VLOOKUP(A52,#REF!,2,FALSE)),"") ->  | J52: =IFERROR(IF(A52="","",VLOOKUP(A52,#REF!,3,FALSE)),"") ->  | K52: 10000 | L52: 0 | M52: 0 | P52: =IFERROR(IF(O52="","",VLOOKUP(O52,#REF!,6,FALSE)),"") -> 
A53: =IF(G53="","",CHOOSE((COUNTIF(#REF!,G53)>0)+1,"عام","خاص")) ->  | B53: =VLOOKUP(O53,#REF!,7,FALSE) ->  | H53: =VLOOKUP(G53,#REF!,2,FALSE) ->  | I53: =IFERROR(IF(A53="","",VLOOKUP(A53,#REF!,2,FALSE)),"") ->  | J53: =IFERROR(IF(A53="","",VLOOKUP(A53,#REF!,3,FALSE)),"") ->  | K53: 10000 | L53: 0 | M53: 0 | P53: =IFERROR(IF(O53="","",VLOOKUP(O53,#REF!,6,FALSE)),"") -> 
A54: =IF(G54="","",CHOOSE((COUNTIF(#REF!,G54)>0)+1,"عام","خاص")) ->  | B54: =VLOOKUP(O54,#REF!,7,FALSE) ->  | H54: =VLOOKUP(G54,#REF!,2,FALSE) ->  | I54: =IFERROR(IF(A54="","",VLOOKUP(A54,#REF!,2,FALSE)),"") ->  | J54: =IFERROR(IF(A54="","",VLOOKUP(A54,#REF!,3,FALSE)),"") ->  | K54: 10000 | L54: 0 | M54: 0 | P54: =IFERROR(IF(O54="","",VLOOKUP(O54,#REF!,6,FALSE)),"") -> 
A55: =IF(G55="","",CHOOSE((COUNTIF(#REF!,G55)>0)+1,"عام","خاص")) ->  | B55: =VLOOKUP(O55,#REF!,7,FALSE) ->  | H55: =VLOOKUP(G55,#REF!,2,FALSE) ->  | I55: =IFERROR(IF(A55="","",VLOOKUP(A55,#REF!,2,FALSE)),"") ->  | J55: =IFERROR(IF(A55="","",VLOOKUP(A55,#REF!,3,FALSE)),"") ->  | K55: 10000 | L55: 0 | M55: 0 | P55: =IFERROR(IF(O55="","",VLOOKUP(O55,#REF!,6,FALSE)),"") -> 
A56: =IF(G56="","",CHOOSE((COUNTIF(#REF!,G56)>0)+1,"عام","خاص")) ->  | B56: =VLOOKUP(O56,#REF!,7,FALSE) ->  | H56: =VLOOKUP(G56,#REF!,2,FALSE) ->  | I56: =IFERROR(IF(A56="","",VLOOKUP(A56,#REF!,2,FALSE)),"") ->  | J56: =IFERROR(IF(A56="","",VLOOKUP(A56,#REF!,3,FALSE)),"") ->  | K56: 10000 | L56: 0 | M56: 0 | P56: =IFERROR(IF(O56="","",VLOOKUP(O56,#REF!,6,FALSE)),"") -> 
A57: =IF(G57="","",CHOOSE((COUNTIF(#REF!,G57)>0)+1,"عام","خاص")) ->  | B57: =VLOOKUP(O57,#REF!,7,FALSE) ->  | H57: =VLOOKUP(G57,#REF!,2,FALSE) ->  | I57: =IFERROR(IF(A57="","",VLOOKUP(A57,#REF!,2,FALSE)),"") ->  | J57: =IFERROR(IF(A57="","",VLOOKUP(A57,#REF!,3,FALSE)),"") ->  | K57: 10000 | L57: 0 | M57: 0 | P57: =IFERROR(IF(O57="","",VLOOKUP(O57,#REF!,6,FALSE)),"") -> 
A58: =IF(G58="","",CHOOSE((COUNTIF(#REF!,G58)>0)+1,"عام","خاص")) ->  | B58: =VLOOKUP(O58,#REF!,7,FALSE) ->  | H58: =VLOOKUP(G58,#REF!,2,FALSE) ->  | I58: =IFERROR(IF(A58="","",VLOOKUP(A58,#REF!,2,FALSE)),"") ->  | J58: =IFERROR(IF(A58="","",VLOOKUP(A58,#REF!,3,FALSE)),"") ->  | K58: 10000 | L58: 0 | M58: 0 | P58: =IFERROR(IF(O58="","",VLOOKUP(O58,#REF!,6,FALSE)),"") -> 
A59: =IF(G59="","",CHOOSE((COUNTIF(#REF!,G59)>0)+1,"عام","خاص")) ->  | B59: =VLOOKUP(O59,#REF!,7,FALSE) ->  | H59: =VLOOKUP(G59,#REF!,2,FALSE) ->  | I59: =IFERROR(IF(A59="","",VLOOKUP(A59,#REF!,2,FALSE)),"") ->  | J59: =IFERROR(IF(A59="","",VLOOKUP(A59,#REF!,3,FALSE)),"") ->  | K59: 10000 | L59: 0 | M59: 0 | P59: =IFERROR(IF(O59="","",VLOOKUP(O59,#REF!,6,FALSE)),"") -> 
A60: =IF(G60="","",CHOOSE((COUNTIF(#REF!,G60)>0)+1,"عام","خاص")) ->  | B60: =VLOOKUP(O60,#REF!,7,FALSE) ->  | H60: =VLOOKUP(G60,#REF!,2,FALSE) ->  | I60: =IFERROR(IF(A60="","",VLOOKUP(A60,#REF!,2,FALSE)),"") ->  | J60: =IFERROR(IF(A60="","",VLOOKUP(A60,#REF!,3,FALSE)),"") ->  | K60: 10000 | L60: 0 | M60: 0 | P60: =IFERROR(IF(O60="","",VLOOKUP(O60,#REF!,6,FALSE)),"") -> 
A61: =IF(G61="","",CHOOSE((COUNTIF(#REF!,G61)>0)+1,"عام","خاص")) ->  | B61: =VLOOKUP(O61,#REF!,7,FALSE) ->  | H61: =VLOOKUP(G61,#REF!,2,FALSE) ->  | I61: =IFERROR(IF(A61="","",VLOOKUP(A61,#REF!,2,FALSE)),"") ->  | J61: =IFERROR(IF(A61="","",VLOOKUP(A61,#REF!,3,FALSE)),"") ->  | K61: 10000 | L61: 0 | M61: 0 | P61: =IFERROR(IF(O61="","",VLOOKUP(O61,#REF!,6,FALSE)),"") -> 
A62: =IF(G62="","",CHOOSE((COUNTIF(#REF!,G62)>0)+1,"عام","خاص")) ->  | B62: =VLOOKUP(O62,#REF!,7,FALSE) ->  | H62: =VLOOKUP(G62,#REF!,2,FALSE) ->  | I62: =IFERROR(IF(A62="","",VLOOKUP(A62,#REF!,2,FALSE)),"") ->  | J62: =IFERROR(IF(A62="","",VLOOKUP(A62,#REF!,3,FALSE)),"") ->  | K62: 10000 | L62: 0 | M62: 0 | P62: =IFERROR(IF(O62="","",VLOOKUP(O62,#REF!,6,FALSE)),"") -> 
A63: =IF(G63="","",CHOOSE((COUNTIF(#REF!,G63)>0)+1,"عام","خاص")) ->  | B63: =VLOOKUP(O63,#REF!,7,FALSE) ->  | H63: =VLOOKUP(G63,#REF!,2,FALSE) ->  | I63: =IFERROR(IF(A63="","",VLOOKUP(A63,#REF!,2,FALSE)),"") ->  | J63: =IFERROR(IF(A63="","",VLOOKUP(A63,#REF!,3,FALSE)),"") ->  | K63: 10000 | L63: 0 | M63: 0 | P63: =IFERROR(IF(O63="","",VLOOKUP(O63,#REF!,6,FALSE)),"") -> 
A64: =IF(G64="","",CHOOSE((COUNTIF(#REF!,G64)>0)+1,"عام","خاص")) ->  | B64: =VLOOKUP(O64,#REF!,7,FALSE) ->  | H64: =VLOOKUP(G64,#REF!,2,FALSE) ->  | I64: =IFERROR(IF(A64="","",VLOOKUP(A64,#REF!,2,FALSE)),"") ->  | J64: =IFERROR(IF(A64="","",VLOOKUP(A64,#REF!,3,FALSE)),"") ->  | K64: 10000 | L64: 0 | M64: 0 | P64: =IFERROR(IF(O64="","",VLOOKUP(O64,#REF!,6,FALSE)),"") -> 
A65: =IF(G65="","",CHOOSE((COUNTIF(#REF!,G65)>0)+1,"عام","خاص")) ->  | B65: =VLOOKUP(O65,#REF!,7,FALSE) ->  | H65: =VLOOKUP(G65,#REF!,2,FALSE) ->  | I65: =IFERROR(IF(A65="","",VLOOKUP(A65,#REF!,2,FALSE)),"") ->  | J65: =IFERROR(IF(A65="","",VLOOKUP(A65,#REF!,3,FALSE)),"") ->  | K65: 10000 | L65: 0 | M65: 0 | P65: =IFERROR(IF(O65="","",VLOOKUP(O65,#REF!,6,FALSE)),"") -> 
A66: =IF(G66="","",CHOOSE((COUNTIF(#REF!,G66)>0)+1,"عام","خاص")) ->  | B66: =VLOOKUP(O66,#REF!,7,FALSE) ->  | H66: =VLOOKUP(G66,#REF!,2,FALSE) ->  | I66: =IFERROR(IF(A66="","",VLOOKUP(A66,#REF!,2,FALSE)),"") ->  | J66: =IFERROR(IF(A66="","",VLOOKUP(A66,#REF!,3,FALSE)),"") ->  | K66: 10000 | L66: 0 | M66: 0 | P66: =IFERROR(IF(O66="","",VLOOKUP(O66,#REF!,6,FALSE)),"") -> 
A67: =IF(G67="","",CHOOSE((COUNTIF(#REF!,G67)>0)+1,"عام","خاص")) ->  | B67: =VLOOKUP(O67,#REF!,7,FALSE) ->  | H67: =VLOOKUP(G67,#REF!,2,FALSE) ->  | I67: =IFERROR(IF(A67="","",VLOOKUP(A67,#REF!,2,FALSE)),"") ->  | J67: =IFERROR(IF(A67="","",VLOOKUP(A67,#REF!,3,FALSE)),"") ->  | K67: 10000 | L67: 0 | M67: 0 | P67: =IFERROR(IF(O67="","",VLOOKUP(O67,#REF!,6,FALSE)),"") -> 
A68: =IF(G68="","",CHOOSE((COUNTIF(#REF!,G68)>0)+1,"عام","خاص")) ->  | B68: =VLOOKUP(O68,#REF!,7,FALSE) ->  | H68: =VLOOKUP(G68,#REF!,2,FALSE) ->  | I68: =IFERROR(IF(A68="","",VLOOKUP(A68,#REF!,2,FALSE)),"") ->  | J68: =IFERROR(IF(A68="","",VLOOKUP(A68,#REF!,3,FALSE)),"") ->  | K68: 10000 | L68: 0 | M68: =L68*750 -> 0 | N68: =I68-J68-K68-M68 ->  | P68: =IFERROR(IF(O68="","",VLOOKUP(O68,#REF!,6,FALSE)),"") ->  | Q68: =IFERROR(SUM(N68+P68),"") -> 
A69: =IF(G69="","",CHOOSE((COUNTIF(#REF!,G69)>0)+1,"عام","خاص")) ->  | B69: =VLOOKUP(O69,#REF!,7,FALSE) ->  | H69: =VLOOKUP(G69,#REF!,2,FALSE) ->  | I69: =IFERROR(IF(A69="","",VLOOKUP(A69,#REF!,2,FALSE)),"") ->  | J69: =IFERROR(IF(A69="","",VLOOKUP(A69,#REF!,3,FALSE)),"") ->  | K69: 10000 | L69: 0 | M69: 0 | P69: =IFERROR(IF(O69="","",VLOOKUP(O69,#REF!,6,FALSE)),"") -> 

Sheet 9 (hidden)
A1: شركة/عام | B1: حكومي/اهلي | C1: الشركة | D1: رقم المستند | E1: المنتوج | F1: التاريخ | G1: رقم السيارة | H1: اسم السائق | I1: الاستحقاق | J1: المندوبية | K1: المكتبية | L1: النقص | M1: مبلغ النقص | N1: صافي الاستحقاق | O1: المحطة | P1: استحقاق المحطة | Q1: الاستحقاق الكلي | R1: التوقيع
A2: =IF(G2="","",CHOOSE((COUNTIF(#REF!,G2)>0)+1,"عام","خاص")) ->  | B2: مستودع | C2: جوهرة | D2: 1567543 | E2: بنزين | F2: 2021-01-07 | G2: 100256 | H2: =VLOOKUP(G2,#REF!,2,FALSE) ->  | I2: =IFERROR(IF(A2="","",VLOOKUP(A2,#REF!,2,FALSE)),"") ->  | J2: =IFERROR(IF(A2="","",VLOOKUP(A2,#REF!,3,FALSE)),"") ->  | K2: 10000 | L2: 45 | M2: =L2*750 -> 33750 | N2: =I2-J2-K2-M2 ->  | P2: =IFERROR(IF(O2="","",VLOOKUP(O2,#REF!,6,FALSE)),"") ->  | Q2: 306250
A3: =IF(G3="","",CHOOSE((COUNTIF(#REF!,G3)>0)+1,"عام","خاص")) ->  | B3: مستودع | C3: جوهرة | D3: 1567585 | E3: بنزين | F3: 2021-01-07 | G3: 48662 | H3: =VLOOKUP(G3,#REF!,2,FALSE) ->  | I3: =IFERROR(IF(A3="","",VLOOKUP(A3,#REF!,2,FALSE)),"") ->  | J3: =IFERROR(IF(A3="","",VLOOKUP(A3,#REF!,3,FALSE)),"") ->  | K3: 10000 | L3: 10 | M3: 7500 | P3: =IFERROR(IF(O3="","",VLOOKUP(O3,#REF!,6,FALSE)),"") ->  | Q3: 332500
A4: =IF(G4="","",CHOOSE((COUNTIF(#REF!,G4)>0)+1,"عام","خاص")) ->  | B4: مستودع | C4: جوهرة | D4: 1567592 | E4: بنزين | F4: 2021-01-07 | G4: 109036 | H4: =VLOOKUP(G4,#REF!,2,FALSE) ->  | I4: =IFERROR(IF(A4="","",VLOOKUP(A4,#REF!,2,FALSE)),"") ->  | J4: =IFERROR(IF(A4="","",VLOOKUP(A4,#REF!,3,FALSE)),"") ->  | K4: 10000 | L4: 71 | M4: =L4*750 -> 53250 | N4: =I4-J4-K4-M4 ->  | P4: =IFERROR(IF(O4="","",VLOOKUP(O4,#REF!,6,FALSE)),"") ->  | Q4: 171750
A5: =IF(G5="","",CHOOSE((COUNTIF(#REF!,G5)>0)+1,"عام","خاص")) ->  | B5: مستودع | C5: جوهرة | D5: 1567540 | E5: بنزين | F5: 2021-01-07 | G5: 44084 | H5: =VLOOKUP(G5,#REF!,2,FALSE) ->  | I5: =IFERROR(IF(A5="","",VLOOKUP(A5,#REF!,2,FALSE)),"") ->  | J5: =IFERROR(IF(A5="","",VLOOKUP(A5,#REF!,3,FALSE)),"") ->  | K5: 10000 | L5: 0 | M5: 0 | P5: =IFERROR(IF(O5="","",VLOOKUP(O5,#REF!,6,FALSE)),"") ->  | Q5: 340000
A6: =IF(G6="","",CHOOSE((COUNTIF(#REF!,G6)>0)+1,"عام","خاص")) ->  | B6: مستودع | C6: جوهرة | D6: 1586376 | E6: بنزين | F6: 2021-01-07 | G6: 50466 | H6: =VLOOKUP(G6,#REF!,2,FALSE) ->  | I6: =IFERROR(IF(A6="","",VLOOKUP(A6,#REF!,2,FALSE)),"") ->  | J6: =IFERROR(IF(A6="","",VLOOKUP(A6,#REF!,3,FALSE)),"") ->  | K6: 10000 | L6: 0 | M6: 0 | P6: =IFERROR(IF(O6="","",VLOOKUP(O6,#REF!,6,FALSE)),"") ->  | Q6: 340000
A7: =IF(G7="","",CHOOSE((COUNTIF(#REF!,G7)>0)+1,"عام","خاص")) ->  | B7: مستودع | C7: جوهرة | D7: 1567547 | E7: بنزين | F7: 2021-01-07 | G7: 35951 | H7: =VLOOKUP(G7,#REF!,2,FALSE) ->  | I7: =IFERROR(IF(A7="","",VLOOKUP(A7,#REF!,2,FALSE)),"") ->  | J7: =IFERROR(IF(A7="","",VLOOKUP(A7,#REF!,3,FALSE)),"") ->  | K7: 10000 | L7: 0 | M7: 0 | P7: =IFERROR(IF(O7="","",VLOOKUP(O7,#REF!,6,FALSE)),"") ->  | Q7: 340000
A8: =IF(G8="","",CHOOSE((COUNTIF(#REF!,G8)>0)+1,"عام","خاص")) ->  | B8: مستودع | C8: ابداع | D8: 1567763 | E8: بنزين | F8: 2021-01-07 | G8: 145268 | H8: =VLOOKUP(G8,#REF!,2,FALSE) ->  | I8: =IFERROR(IF(A8="","",VLOOKUP(A8,#REF!,2,FALSE)),"") ->  | J8: =IFERROR(IF(A8="","",VLOOKUP(A8,#REF!,3,FALSE)),"") ->  | K8: 10000 | L8: 257 | M8: 192750 | P8: =IFERROR(IF(O8="","",VLOOKUP(O8,#REF!,6,FALSE)),"") ->  | Q8: 32250
A9: =IF(G9="","",CHOOSE((COUNTIF(#REF!,G9)>0)+1,"عام","خاص")) ->  | B9: مستودع | C9: ابداع | D9: 1567597 | E9: بنزين | F9: 2021-01-07 | G9: 31588 | H9: =VLOOKUP(G9,#REF!,2,FALSE) ->  | I9: =IFERROR(IF(A9="","",VLOOKUP(A9,#REF!,2,FALSE)),"") ->  | J9: =IFERROR(IF(A9="","",VLOOKUP(A9,#REF!,3,FALSE)),"") ->  | K9: 10000 | L9: 0 | M9: 0 | P9: =IFERROR(IF(O9="","",VLOOKUP(O9,#REF!,6,FALSE)),"") ->  | Q9: 340000
A10: =IF(G10="","",CHOOSE((COUNTIF(#REF!,G10)>0)+1,"عام","خاص")) ->  | B10: =VLOOKUP(O10,#REF!,7,FALSE) ->  | E10: كاز | F10: 2021-01-08 | G10: 55017 | H10: =VLOOKUP(G10,#REF!,2,FALSE) ->  | I10: =IFERROR(IF(A10="","",VLOOKUP(A10,#REF!,2,FALSE)),"") ->  | J10: =IFERROR(IF(A10="","",VLOOKUP(A10,#REF!,3,FALSE)),"") ->  | K10: 10000 | L10: 0 | M10: 0 | O10: الحبانية | P10: =IFERROR(IF(O10="","",VLOOKUP(O10,#REF!,6,FALSE)),"") ->  | Q10: =IFERROR(SUM(N10+P10),"") ->  | R10: واصل
A11: =IF(G11="","",CHOOSE((COUNTIF(#REF!,G11)>0)+1,"عام","خاص")) ->  | B11: =VLOOKUP(O11,#REF!,7,FALSE) ->  | E11: كاز | F11: 2021-01-09 | G11: 55017 | H11: =VLOOKUP(G11,#REF!,2,FALSE) ->  | I11: =IFERROR(IF(A11="","",VLOOKUP(A11,#REF!,2,FALSE)),"") ->  | J11: =IFERROR(IF(A11="","",VLOOKUP(A11,#REF!,3,FALSE)),"") ->  | K11: 10000 | L11: 0 | M11: 0 | O11: الحبانية | P11: =IFERROR(IF(O11="","",VLOOKUP(O11,#REF!,6,FALSE)),"") ->  | R11: واصل
A12: =IF(G12="","",CHOOSE((COUNTIF(#REF!,G12)>0)+1,"عام","خاص")) ->  | B12: =VLOOKUP(O12,#REF!,7,FALSE) ->  | E12: كاز | F12: 2021-01-07 | G12: 110181 | H12: =VLOOKUP(G12,#REF!,2,FALSE) ->  | I12: =IFERROR(IF(A12="","",VLOOKUP(A12,#REF!,2,FALSE)),"") ->  | J12: =IFERROR(IF(A12="","",VLOOKUP(A12,#REF!,3,FALSE)),"") ->  | K12: 10000 | L12: 0 | M12: 0 | O12: هيت الجديدة | P12: =IFERROR(IF(O12="","",VLOOKUP(O12,#REF!,6,FALSE)),"") ->  | R12: واصل
A13: =IF(G13="","",CHOOSE((COUNTIF(#REF!,G13)>0)+1,"عام","خاص")) ->  | B13: =VLOOKUP(O13,#REF!,7,FALSE) ->  | E13: نفط | F13: 2021-01-07 | G13: 38949 | H13: =VLOOKUP(G13,#REF!,2,FALSE) ->  | I13: =IFERROR(IF(A13="","",VLOOKUP(A13,#REF!,2,FALSE)),"") ->  | J13: =IFERROR(IF(A13="","",VLOOKUP(A13,#REF!,3,FALSE)),"") ->  | K13: 10000 | L13: 0 | M13: 0 | O13: الرمادي السريع | P13: =IFERROR(IF(O13="","",VLOOKUP(O13,#REF!,6,FALSE)),"") ->  | R13: واصل
A14: =IF(G14="","",CHOOSE((COUNTIF(#REF!,G14)>0)+1,"عام","خاص")) ->  | B14: =VLOOKUP(O14,#REF!,7,FALSE) ->  | E14: كاز | F14: 2021-01-07 | G14: 19188 | H14: =VLOOKUP(G14,#REF!,2,FALSE) ->  | I14: =IFERROR(IF(A14="","",VLOOKUP(A14,#REF!,2,FALSE)),"") ->  | J14: =IFERROR(IF(A14="","",VLOOKUP(A14,#REF!,3,FALSE)),"") ->  | K14: 10000 | L14: 0 | M14: 0 | O14: هيت الجديدة | P14: =IFERROR(IF(O14="","",VLOOKUP(O14,#REF!,6,FALSE)),"") ->  | R14: واصل
A15: =IF(G15="","",CHOOSE((COUNTIF(#REF!,G15)>0)+1,"عام","خاص")) ->  | B15: =VLOOKUP(O15,#REF!,7,FALSE) ->  | E15: بنزين | F15: 2021-01-08 | G15: 19188 | H15: =VLOOKUP(G15,#REF!,2,FALSE) ->  | I15: 0 | J15: 0 | K15: 0 | L15: 0 | M15: 0 | N15: 0 | O15: الفلوجة الجديدة | P15: =IFERROR(IF(O15="","",VLOOKUP(O15,#REF!,6,FALSE)),"") ->  | R15: واصل
A16: =IF(G16="","",CHOOSE((COUNTIF(#REF!,G16)>0)+1,"عام","خاص")) ->  | B16: =VLOOKUP(O16,#REF!,7,FALSE) ->  | E16: بنزين | F16: 2021-01-09 | G16: 10415 | H16: =VLOOKUP(G16,#REF!,2,FALSE) ->  | I16: 0 | J16: 0 | K16: 0 | L16: 0 | M16: 0 | N16: 0 | O16: الفلوجة الجديدة | P16: =IFERROR(IF(O16="","",VLOOKUP(O16,#REF!,6,FALSE)),"") ->  | R16: واصل
A17: =IF(G17="","",CHOOSE((COUNTIF(#REF!,G17)>0)+1,"عام","خاص")) ->  | B17: =VLOOKUP(O17,#REF!,7,FALSE) ->  | D17: 1536703 | E17: بنزين | F17: 2021-01-09 | G17: 197684 | H17: =VLOOKUP(G17,#REF!,2,FALSE) ->  | I17: 0 | J17: 0 | K17: 0 | L17: 0 | M17: 0 | N17: 0 | O17: هيت الجديدة | P17: =IFERROR(IF(O17="","",VLOOKUP(O17,#REF!,6,FALSE)),"") ->  | R17: واصل
A18: =IF(G18="","",CHOOSE((COUNTIF(#REF!,G18)>0)+1,"عام","خاص")) ->  | B18: =VLOOKUP(O18,#REF!,7,FALSE) ->  | D18: 1536618 | E18: بنزين | F18: 2021-01-07 | G18: 197684 | H18: =VLOOKUP(G18,#REF!,2,FALSE) ->  | I18: 0 | J18: 0 | K18: 0 | L18: 0 | M18: 0 | N18: 0 | O18: هيت الجديدة | P18: =IFERROR(IF(O18="","",VLOOKUP(O18,#REF!,6,FALSE)),"") ->  | R18: واصل
A19: =IF(G19="","",CHOOSE((COUNTIF(#REF!,G19)>0)+1,"عام","خاص")) ->  | B19: =VLOOKUP(O19,#REF!,7,FALSE) ->  | D19: 1536660 | E19: بنزين | F19: 2021-01-08 | G19: 197684 | H19: =VLOOKUP(G19,#REF!,2,FALSE) ->  | I19: 0 | J19: 0 | K19: 0 | L19: 0 | M19: 0 | N19: 0 | O19: هيت الجديدة | P19: =IFERROR(IF(O19="","",VLOOKUP(O19,#REF!,6,FALSE)),"") ->  | R19: واصل
A20: =IF(G20="","",CHOOSE((COUNTIF(#REF!,G20)>0)+1,"عام","خاص")) ->  | B20: =VLOOKUP(O20,#REF!,7,FALSE) ->  | D20: 1536614 | E20: بنزين | F20: 2021-01-07 | G20: 6123 | H20: =VLOOKUP(G20,#REF!,2,FALSE) ->  | I20: 0 | J20: 0 | K20: 0 | L20: 0 | M20: 0 | N20: 0 | O20: الفلوجة الجديدة | P20: =IFERROR(IF(O20="","",VLOOKUP(O20,#REF!,6,FALSE)),"") ->  | R20: واصل
A21: =IF(G21="","",CHOOSE((COUNTIF(#REF!,G21)>0)+1,"عام","خاص")) ->  | B21: =VLOOKUP(O21,#REF!,7,FALSE) ->  | D21: 1536734 | E21: كاز | F21: 2021-01-10 | G21: 6123 | H21: =VLOOKUP(G21,#REF!,2,FALSE) ->  | I21: =IFERROR(IF(A21="","",VLOOKUP(A21,#REF!,2,FALSE)),"") ->  | J21: =IFERROR(IF(A21="","",VLOOKUP(A21,#REF!,3,FALSE)),"") ->  | K21: 10000 | L21: 0 | M21: 0 | O21: رماح الانبار | P21: =IFERROR(IF(O21="","",VLOOKUP(O21,#REF!,6,FALSE)),"") ->  | R21: واصل
A22: =IF(G22="","",CHOOSE((COUNTIF(#REF!,G22)>0)+1,"عام","خاص")) ->  | B22: =VLOOKUP(O22,#REF!,7,FALSE) ->  | D22: 1536650 | E22: نفط | F22: 2021-01-09 | G22: 93455 | H22: =VLOOKUP(G22,#REF!,2,FALSE) ->  | I22: =IFERROR(IF(A22="","",VLOOKUP(A22,#REF!,2,FALSE)),"") ->  | J22: =IFERROR(IF(A22="","",VLOOKUP(A22,#REF!,3,FALSE)),"") ->  | K22: 10000 | L22: 0 | M22: 0 | O22: الصقلاوية | P22: =IFERROR(IF(O22="","",VLOOKUP(O22,#REF!,6,FALSE)),"") ->  | R22: واصل
A23: =IF(G23="","",CHOOSE((COUNTIF(#REF!,G23)>0)+1,"عام","خاص")) ->  | B23: =VLOOKUP(O23,#REF!,7,FALSE) ->  | D23: 1536730 | E23: كاز | F23: 2021-01-10 | G23: 31300 | H23: =VLOOKUP(G23,#REF!,2,FALSE) ->  | I23: =IFERROR(IF(A23="","",VLOOKUP(A23,#REF!,2,FALSE)),"") ->  | J23: =IFERROR(IF(A23="","",VLOOKUP(A23,#REF!,3,FALSE)),"") ->  | K23: 10000 | L23: 0 | M23: 0 | O23: المانع | P23: =IFERROR(IF(O23="","",VLOOKUP(O23,#REF!,6,FALSE)),"") ->  | R23: واصل
A24: =IF(G24="","",CHOOSE((COUNTIF(#REF!,G24)>0)+1,"عام","خاص")) ->  | B24: =VLOOKUP(O24,#REF!,7,FALSE) ->  | D24: 1536706 | E24: بنزين | F24: 2021-01-09 | G24: 42431 | H24: =VLOOKUP(G24,#REF!,2,FALSE) ->  | I24: 0 | J24: 0 | K24: 0 | L24: 0 | M24: 0 | N24: 0 | O24: الرطبة | P24: =IFERROR(IF(O24="","",VLOOKUP(O24,#REF!,6,FALSE)),"") ->  | R24: واصل
A25: =IF(G25="","",CHOOSE((COUNTIF(#REF!,G25)>0)+1,"عام","خاص")) ->  | B25: =VLOOKUP(O25,#REF!,7,FALSE) ->  | D25: 1536677 | E25: نفط | F25: 2021-01-08 | G25: 108755 | H25: =VLOOKUP(G25,#REF!,2,FALSE) ->  | I25: =IFERROR(IF(A25="","",VLOOKUP(A25,#REF!,2,FALSE)),"") ->  | J25: =IFERROR(IF(A25="","",VLOOKUP(A25,#REF!,3,FALSE)),"") ->  | K25: 10000 | L25: 0 | M25: 0 | O25: الوئام | P25: =IFERROR(IF(O25="","",VLOOKUP(O25,#REF!,6,FALSE)),"") ->  | R25: واصل
A26: =IF(G26="","",CHOOSE((COUNTIF(#REF!,G26)>0)+1,"عام","خاص")) ->  | B26: =VLOOKUP(O26,#REF!,7,FALSE) ->  | D26: 1536635 | E26: نفط | F26: 2021-01-08 | G26: 18275 | H26: =VLOOKUP(G26,#REF!,2,FALSE) ->  | I26: =IFERROR(IF(A26="","",VLOOKUP(A26,#REF!,2,FALSE)),"") ->  | J26: =IFERROR(IF(A26="","",VLOOKUP(A26,#REF!,3,FALSE)),"") ->  | K26: 10000 | L26: 0 | M26: 0 | O26: العيساوي | P26: =IFERROR(IF(O26="","",VLOOKUP(O26,#REF!,6,FALSE)),"") ->  | R26: واصل
A27: =IF(G27="","",CHOOSE((COUNTIF(#REF!,G27)>0)+1,"عام","خاص")) ->  | B27: =VLOOKUP(O27,#REF!,7,FALSE) ->  | D27: 1536727 | E27: نفط | F27: 2021-01-08 | G27: 72237 | H27: =VLOOKUP(G27,#REF!,2,FALSE) ->  | I27: =IFERROR(IF(A27="","",VLOOKUP(A27,#REF!,2,FALSE)),"") ->  | J27: =IFERROR(IF(A27="","",VLOOKUP(A27,#REF!,3,FALSE)),"") ->  | K27: 10000 | L27: 0 | M27: 0 | O27: الفلوجة الجديدة | P27: =IFERROR(IF(O27="","",VLOOKUP(O27,#REF!,6,FALSE)),"") ->  | R27: واصل
A28: =IF(G28="","",CHOOSE((COUNTIF(#REF!,G28)>0)+1,"عام","خاص")) ->  | B28: =VLOOKUP(O28,#REF!,7,FALSE) ->  | D28: 1536697 | E28: نفط | F28: 2021-01-09 | G28: 75567 | H28: =VLOOKUP(G28,#REF!,2,FALSE) ->  | I28: =IFERROR(IF(A28="","",VLOOKUP(A28,#REF!,2,FALSE)),"") ->  | J28: =IFERROR(IF(A28="","",VLOOKUP(A28,#REF!,3,FALSE)),"") ->  | K28: 10000 | L28: 0 | M28: 0 | O28: المحيط | P28: =IFERROR(IF(O28="","",VLOOKUP(O28,#REF!,6,FALSE)),"") ->  | R28: واصل
A29: =IF(G29="","",CHOOSE((COUNTIF(#REF!,G29)>0)+1,"عام","خاص")) ->  | B29: =VLOOKUP(O29,#REF!,7,FALSE) ->  | D29: 1536704 | E29: بنزين | F29: 2021-01-09 | G29: 15051 | H29: =VLOOKUP(G29,#REF!,2,FALSE) ->  | I29: 0 | J29: 0 | K29: 0 | L29: 0 | M29: 0 | N29: 0 | O29: الكرمة | P29: =IFERROR(IF(O29="","",VLOOKUP(O29,#REF!,6,FALSE)),"") ->  | R29: واصل
A30: =IF(G30="","",CHOOSE((COUNTIF(#REF!,G30)>0)+1,"عام","خاص")) ->  | B30: =VLOOKUP(O30,#REF!,7,FALSE) ->  | D30: 1536737 | E30: نفط | F30: 2021-01-10 | G30: 61798 | H30: =VLOOKUP(G30,#REF!,2,FALSE) ->  | I30: =IFERROR(IF(A30="","",VLOOKUP(A30,#REF!,2,FALSE)),"") ->  | J30: =IFERROR(IF(A30="","",VLOOKUP(A30,#REF!,3,FALSE)),"") ->  | K30: 10000 | L30: 0 | M30: 0 | O30: الاوائل | P30: =IFERROR(IF(O30="","",VLOOKUP(O30,#REF!,6,FALSE)),"") ->  | R30: واصل
A31: =IF(G31="","",CHOOSE((COUNTIF(#REF!,G31)>0)+1,"عام","خاص")) ->  | B31: =VLOOKUP(O31,#REF!,7,FALSE) ->  | D31: 1536716 | E31: بنزين | F31: 2021-01-10 | G31: 44084 | H31: =VLOOKUP(G31,#REF!,2,FALSE) ->  | I31: 0 | J31: 0 | K31: 0 | L31: 0 | M31: 0 | N31: 0 | O31: الصقلاوية | P31: =IFERROR(IF(O31="","",VLOOKUP(O31,#REF!,6,FALSE)),"") ->  | R31: واصل
A32: =IF(G32="","",CHOOSE((COUNTIF(#REF!,G32)>0)+1,"عام","خاص")) ->  | B32: =VLOOKUP(O32,#REF!,7,FALSE) ->  | D32: 1536711 | E32: بنزين | F32: 2021-01-09 | G32: 44084 | H32: =VLOOKUP(G32,#REF!,2,FALSE) ->  | O32: الصقلاوية | P32: =IFERROR(IF(O32="","",VLOOKUP(O32,#REF!,6,FALSE)),"") ->  | R32: واصل
Q33: =SUM(Q2:Q32) -> 2202750

Sheet 10 (hidden)
A1: شركة/عام | B1: حكومي/اهلي | C1: الشركة | D1: رقم المستند | E1: المنتوج | F1: التاريخ | G1: رقم السيارة | H1: اسم السائق | I1: الاستحقاق | J1: المندوبية | K1: المكتبية | L1: النقص | M1: مبلغ النقص | N1: صافي الاستحقاق | O1: المحطة | P1: استحقاق المحطة | Q1: الاستحقاق الكلي | R1: التوقيع
A2: =IF(G2="","",CHOOSE((COUNTIF(#REF!,G2)>0)+1,"عام","خاص")) ->  | B2: مستودع | C2: =VLOOKUP(D2,#REF!,12,FALSE) ->  | D2: 1567545 | E2: بنزين | F2: =VLOOKUP(D2,#REF!,6,FALSE) ->  | G2: =VLOOKUP(D2,#REF!,3,FALSE) ->  | H2: =VLOOKUP(D2,#REF!,2,FALSE) ->  | I2: =IFERROR(IF(A2="","",VLOOKUP(A2,#REF!,2,FALSE)),"") ->  | J2: =IFERROR(IF(A2="","",VLOOKUP(A2,#REF!,3,FALSE)),"") ->  | K2: 10000 | L2: =VLOOKUP(D2,#REF!,11,FALSE) ->  | M2: =L2*750 ->  | N2: =I2-J2-K2-M2 ->  | O2: 0 | P2: 0 | Q2: =IFERROR(SUM(N2+P2),"") -> 
A3: =IF(G3="","",CHOOSE((COUNTIF(#REF!,G3)>0)+1,"عام","خاص")) ->  | B3: مستودع | C3: =VLOOKUP(D3,#REF!,12,FALSE) ->  | D3: 1567530 | E3: بنزين | F3: =VLOOKUP(D3,#REF!,6,FALSE) ->  | G3: =VLOOKUP(D3,#REF!,3,FALSE) ->  | H3: =VLOOKUP(D3,#REF!,2,FALSE) ->  | I3: =IFERROR(IF(A3="","",VLOOKUP(A3,#REF!,2,FALSE)),"") ->  | J3: =IFERROR(IF(A3="","",VLOOKUP(A3,#REF!,3,FALSE)),"") ->  | K3: 10000 | L3: =VLOOKUP(D3,#REF!,11,FALSE) ->  | M3: =L3*750 ->  | O3: 0 | P3: 0 | R3: 125000 | S3: =Q3-R3 -> 
A4: =IF(G4="","",CHOOSE((COUNTIF(#REF!,G4)>0)+1,"عام","خاص")) ->  | C4: =VLOOKUP(D4,#REF!,12,FALSE) ->  | D4: 1586377 | E4: بنزين | F4: =VLOOKUP(D4,#REF!,6,FALSE) ->  | G4: =VLOOKUP(D4,#REF!,3,FALSE) ->  | H4: =VLOOKUP(D4,#REF!,2,FALSE) ->  | I4: =IFERROR(IF(A4="","",VLOOKUP(A4,#REF!,2,FALSE)),"") ->  | J4: =IFERROR(IF(A4="","",VLOOKUP(A4,#REF!,3,FALSE)),"") ->  | K4: 10000 | L4: =VLOOKUP(D4,#REF!,11,FALSE) ->  | O4: 0 | P4: 0 | R4: واصل
A5: =IF(G5="","",CHOOSE((COUNTIF(#REF!,G5)>0)+1,"عام","خاص")) ->  | C5: =VLOOKUP(D5,#REF!,12,FALSE) ->  | D5: 1586378 | E5: بنزين | F5: =VLOOKUP(D5,#REF!,6,FALSE) ->  | G5: =VLOOKUP(D5,#REF!,3,FALSE) ->  | H5: =VLOOKUP(D5,#REF!,2,FALSE) ->  | I5: =IFERROR(IF(A5="","",VLOOKUP(A5,#REF!,2,FALSE)),"") ->  | J5: =IFERROR(IF(A5="","",VLOOKUP(A5,#REF!,3,FALSE)),"") ->  | K5: 10000 | L5: =VLOOKUP(D5,#REF!,11,FALSE) ->  | O5: 0 | P5: 0 | R5: واصل
A6: =IF(G6="","",CHOOSE((COUNTIF(#REF!,G6)>0)+1,"عام","خاص")) ->  | C6: =VLOOKUP(D6,#REF!,12,FALSE) ->  | D6: 1586433 | E6: بنزين | F6: =VLOOKUP(D6,#REF!,6,FALSE) ->  | G6: =VLOOKUP(D6,#REF!,3,FALSE) ->  | H6: =VLOOKUP(D6,#REF!,2,FALSE) ->  | I6: =IFERROR(IF(A6="","",VLOOKUP(A6,#REF!,2,FALSE)),"") ->  | J6: =IFERROR(IF(A6="","",VLOOKUP(A6,#REF!,3,FALSE)),"") ->  | K6: 10000 | L6: =VLOOKUP(D6,#REF!,11,FALSE) ->  | O6: 0 | P6: 0 | R6: واصل
A7: =IF(G7="","",CHOOSE((COUNTIF(#REF!,G7)>0)+1,"عام","خاص")) ->  | C7: =VLOOKUP(D7,#REF!,12,FALSE) ->  | D7: 1739992 | E7: بنزين | F7: =VLOOKUP(D7,#REF!,6,FALSE) ->  | G7: =VLOOKUP(D7,#REF!,3,FALSE) ->  | H7: =VLOOKUP(D7,#REF!,2,FALSE) ->  | I7: =IFERROR(IF(A7="","",VLOOKUP(A7,#REF!,2,FALSE)),"") ->  | J7: =IFERROR(IF(A7="","",VLOOKUP(A7,#REF!,3,FALSE)),"") ->  | K7: 10000 | L7: =VLOOKUP(D7,#REF!,11,FALSE) ->  | O7: 0 | P7: 0 | R7: واصل
A8: =IF(G8="","",CHOOSE((COUNTIF(#REF!,G8)>0)+1,"عام","خاص")) ->  | C8: =VLOOKUP(D8,#REF!,12,FALSE) ->  | D8: 1739988 | E8: بنزين | F8: =VLOOKUP(D8,#REF!,6,FALSE) ->  | G8: =VLOOKUP(D8,#REF!,3,FALSE) ->  | H8: =VLOOKUP(D8,#REF!,2,FALSE) ->  | I8: =IFERROR(IF(A8="","",VLOOKUP(A8,#REF!,2,FALSE)),"") ->  | J8: =IFERROR(IF(A8="","",VLOOKUP(A8,#REF!,3,FALSE)),"") ->  | K8: 10000 | L8: =VLOOKUP(D8,#REF!,11,FALSE) ->  | O8: 0 | P8: 0 | R8: واصل
A9: =IF(G9="","",CHOOSE((COUNTIF(#REF!,G9)>0)+1,"عام","خاص")) ->  | C9: =VLOOKUP(D9,#REF!,12,FALSE) ->  | D9: 1580697 | E9: بنزين | F9: =VLOOKUP(D9,#REF!,6,FALSE) ->  | G9: =VLOOKUP(D9,#REF!,3,FALSE) ->  | H9: =VLOOKUP(D9,#REF!,2,FALSE) ->  | I9: =IFERROR(IF(A9="","",VLOOKUP(A9,#REF!,2,FALSE)),"") ->  | J9: =IFERROR(IF(A9="","",VLOOKUP(A9,#REF!,3,FALSE)),"") ->  | K9: 10000 | L9: =VLOOKUP(D9,#REF!,11,FALSE) ->  | O9: 0 | P9: 0 | R9: واصل
A10: =IF(G10="","",CHOOSE((COUNTIF(#REF!,G10)>0)+1,"عام","خاص")) ->  | C10: =VLOOKUP(D10,#REF!,12,FALSE) ->  | D10: 1739993 | E10: بنزين | F10: =VLOOKUP(D10,#REF!,6,FALSE) ->  | G10: =VLOOKUP(D10,#REF!,3,FALSE) ->  | H10: =VLOOKUP(D10,#REF!,2,FALSE) ->  | I10: =IFERROR(IF(A10="","",VLOOKUP(A10,#REF!,2,FALSE)),"") ->  | J10: =IFERROR(IF(A10="","",VLOOKUP(A10,#REF!,3,FALSE)),"") ->  | K10: 10000 | L10: =VLOOKUP(D10,#REF!,11,FALSE) ->  | O10: 0 | P10: 0 | R10: واصل
A11: =IF(G11="","",CHOOSE((COUNTIF(#REF!,G11)>0)+1,"عام","خاص")) ->  | C11: =VLOOKUP(D11,#REF!,12,FALSE) ->  | D11: 1580665 | E11: بنزين | F11: =VLOOKUP(D11,#REF!,6,FALSE) ->  | G11: =VLOOKUP(D11,#REF!,3,FALSE) ->  | H11: =VLOOKUP(D11,#REF!,2,FALSE) ->  | I11: =IFERROR(IF(A11="","",VLOOKUP(A11,#REF!,2,FALSE)),"") ->  | J11: =IFERROR(IF(A11="","",VLOOKUP(A11,#REF!,3,FALSE)),"") ->  | K11: 10000 | L11: =VLOOKUP(D11,#REF!,11,FALSE) ->  | O11: 0 | P11: 0 | R11: واصل
A12: =IF(G12="","",CHOOSE((COUNTIF(#REF!,G12)>0)+1,"عام","خاص")) ->  | C12: =VLOOKUP(D12,#REF!,12,FALSE) ->  | D12: 1580690 | E12: بنزين | F12: =VLOOKUP(D12,#REF!,6,FALSE) ->  | G12: =VLOOKUP(D12,#REF!,3,FALSE) ->  | H12: =VLOOKUP(D12,#REF!,2,FALSE) ->  | I12: =IFERROR(IF(A12="","",VLOOKUP(A12,#REF!,2,FALSE)),"") ->  | J12: =IFERROR(IF(A12="","",VLOOKUP(A12,#REF!,3,FALSE)),"") ->  | K12: 10000 | L12: =VLOOKUP(D12,#REF!,11,FALSE) ->  | O12: 0 | P12: 0 | R12: واصل
A13: =IF(G13="","",CHOOSE((COUNTIF(#REF!,G13)>0)+1,"عام","خاص")) ->  | C13: =VLOOKUP(D13,#REF!,12,FALSE) ->  | D13: 1580691 | E13: بنزين | F13: =VLOOKUP(D13,#REF!,6,FALSE) ->  | G13: =VLOOKUP(D13,#REF!,3,FALSE) ->  | H13: =VLOOKUP(D13,#REF!,2,FALSE) ->  | I13: =IFERROR(IF(A13="","",VLOOKUP(A13,#REF!,2,FALSE)),"") ->  | J13: =IFERROR(IF(A13="","",VLOOKUP(A13,#REF!,3,FALSE)),"") ->  | K13: 10000 | L13: =VLOOKUP(D13,#REF!,11,FALSE) ->  | O13: 0 | P13: 0 | R13: واصل
A14: =IF(G14="","",CHOOSE((COUNTIF(#REF!,G14)>0)+1,"عام","خاص")) ->  | C14: =VLOOKUP(D14,#REF!,12,FALSE) ->  | D14: 1739981 | E14: بنزين | F14: =VLOOKUP(D14,#REF!,6,FALSE) ->  | G14: =VLOOKUP(D14,#REF!,3,FALSE) ->  | H14: =VLOOKUP(G14,#REF!,2,FALSE) ->  | I14: =IFERROR(IF(A14="","",VLOOKUP(A14,#REF!,2,FALSE)),"") ->  | J14: =IFERROR(IF(A14="","",VLOOKUP(A14,#REF!,3,FALSE)),"") ->  | K14: 10000 | L14: =VLOOKUP(D14,#REF!,11,FALSE) ->  | O14: 0 | P14: 0 | R14: واصل
A15: =IF(G15="","",CHOOSE((COUNTIF(#REF!,G15)>0)+1,"عام","خاص")) ->  | C15: =VLOOKUP(D15,#REF!,12,FALSE) ->  | D15: 1739982 | E15: بنزين | F15: =VLOOKUP(D15,#REF!,6,FALSE) ->  | G15: =VLOOKUP(D15,#REF!,3,FALSE) ->  | H15: =VLOOKUP(G15,#REF!,2,FALSE) ->  | I15: =IFERROR(IF(A15="","",VLOOKUP(A15,#REF!,2,FALSE)),"") ->  | J15: =IFERROR(IF(A15="","",VLOOKUP(A15,#REF!,3,FALSE)),"") ->  | K15: 10000 | L15: =VLOOKUP(D15,#REF!,11,FALSE) ->  | O15: 0 | P15: 0 | R15: واصل
A16: =IF(G16="","",CHOOSE((COUNTIF(#REF!,G16)>0)+1,"عام","خاص")) ->  | C16: =VLOOKUP(D16,#REF!,12,FALSE) ->  | D16: 1567772 | E16: بنزين | F16: =VLOOKUP(D16,#REF!,6,FALSE) ->  | G16: =VLOOKUP(D16,#REF!,3,FALSE) ->  | H16: =VLOOKUP(G16,#REF!,2,FALSE) ->  | I16: =IFERROR(IF(A16="","",VLOOKUP(A16,#REF!,2,FALSE)),"") ->  | J16: =IFERROR(IF(A16="","",VLOOKUP(A16,#REF!,3,FALSE)),"") ->  | K16: 10000 | L16: =VLOOKUP(D16,#REF!,11,FALSE) ->  | O16: 0 | P16: 0 | R16: واصل
A17: =IF(G17="","",CHOOSE((COUNTIF(#REF!,G17)>0)+1,"عام","خاص")) ->  | C17: =VLOOKUP(D17,#REF!,12,FALSE) ->  | D17: 1567532 | E17: بنزين | F17: =VLOOKUP(D17,#REF!,6,FALSE) ->  | G17: =VLOOKUP(D17,#REF!,3,FALSE) ->  | H17: =VLOOKUP(G17,#REF!,2,FALSE) ->  | I17: =IFERROR(IF(A17="","",VLOOKUP(A17,#REF!,2,FALSE)),"") ->  | J17: =IFERROR(IF(A17="","",VLOOKUP(A17,#REF!,3,FALSE)),"") ->  | K17: 10000 | L17: =VLOOKUP(D17,#REF!,11,FALSE) ->  | O17: 0 | P17: 0 | R17: واصل
A18: =IF(G18="","",CHOOSE((COUNTIF(#REF!,G18)>0)+1,"عام","خاص")) ->  | C18: =VLOOKUP(D18,#REF!,12,FALSE) ->  | D18: 1586432 | E18: بنزين | F18: =VLOOKUP(D18,#REF!,6,FALSE) ->  | G18: =VLOOKUP(D18,#REF!,3,FALSE) ->  | H18: =VLOOKUP(G18,#REF!,2,FALSE) ->  | I18: =IFERROR(IF(A18="","",VLOOKUP(A18,#REF!,2,FALSE)),"") ->  | J18: =IFERROR(IF(A18="","",VLOOKUP(A18,#REF!,3,FALSE)),"") ->  | K18: 10000 | L18: =VLOOKUP(D18,#REF!,11,FALSE) ->  | O18: 0 | P18: 0 | R18: واصل
A19: =IF(G19="","",CHOOSE((COUNTIF(#REF!,G19)>0)+1,"عام","خاص")) ->  | C19: =VLOOKUP(D19,#REF!,12,FALSE) ->  | D19: 1739984 | E19: بنزين | F19: =VLOOKUP(D19,#REF!,6,FALSE) ->  | G19: =VLOOKUP(D19,#REF!,3,FALSE) ->  | H19: =VLOOKUP(G19,#REF!,2,FALSE) ->  | I19: =IFERROR(IF(A19="","",VLOOKUP(A19,#REF!,2,FALSE)),"") ->  | J19: =IFERROR(IF(A19="","",VLOOKUP(A19,#REF!,3,FALSE)),"") ->  | K19: 10000 | L19: =VLOOKUP(D19,#REF!,11,FALSE) ->  | O19: 0 | P19: 0 | R19: واصل
A20: =IF(G20="","",CHOOSE((COUNTIF(#REF!,G20)>0)+1,"عام","خاص")) ->  | C20: =VLOOKUP(D20,#REF!,12,FALSE) ->  | D20: 1739986 | E20: بنزين | F20: =VLOOKUP(D20,#REF!,6,FALSE) ->  | G20: =VLOOKUP(D20,#REF!,3,FALSE) ->  | H20: =VLOOKUP(G20,#REF!,2,FALSE) ->  | I20: =IFERROR(IF(A20="","",VLOOKUP(A20,#REF!,2,FALSE)),"") ->  | J20: =IFERROR(IF(A20="","",VLOOKUP(A20,#REF!,3,FALSE)),"") ->  | K20: 10000 | L20: =VLOOKUP(D20,#REF!,11,FALSE) ->  | O20: 0 | P20: 0 | R20: 125000 | S20: =Q20-R20 -> 
A21: =IF(G21="","",CHOOSE((COUNTIF(#REF!,G21)>0)+1,"عام","خاص")) ->  | C21: =VLOOKUP(D21,#REF!,12,FALSE) ->  | D21: 1739987 | E21: بنزين | F21: =VLOOKUP(D21,#REF!,6,FALSE) ->  | G21: =VLOOKUP(D21,#REF!,3,FALSE) ->  | H21: =VLOOKUP(G21,#REF!,2,FALSE) ->  | I21: =IFERROR(IF(A21="","",VLOOKUP(A21,#REF!,2,FALSE)),"") ->  | J21: =IFERROR(IF(A21="","",VLOOKUP(A21,#REF!,3,FALSE)),"") ->  | K21: 10000 | L21: =VLOOKUP(D21,#REF!,11,FALSE) ->  | O21: 0 | P21: 0 | R21: واصل
A22: =IF(G22="","",CHOOSE((COUNTIF(#REF!,G22)>0)+1,"عام","خاص")) ->  | C22: =VLOOKUP(D22,#REF!,12,FALSE) ->  | D22: 1739990 | E22: بنزين | F22: =VLOOKUP(D22,#REF!,6,FALSE) ->  | G22: =VLOOKUP(D22,#REF!,3,FALSE) ->  | H22: =VLOOKUP(G22,#REF!,2,FALSE) ->  | I22: =IFERROR(IF(A22="","",VLOOKUP(A22,#REF!,2,FALSE)),"") ->  | J22: =IFERROR(IF(A22="","",VLOOKUP(A22,#REF!,3,FALSE)),"") ->  | K22: 10000 | L22: =VLOOKUP(D22,#REF!,11,FALSE) ->  | O22: 0 | P22: 0 | R22: واصل
A23: =IF(G23="","",CHOOSE((COUNTIF(#REF!,G23)>0)+1,"عام","خاص")) ->  | C23: =VLOOKUP(D23,#REF!,12,FALSE) ->  | D23: 1580616 | E23: بنزين | F23: =VLOOKUP(D23,#REF!,6,FALSE) ->  | G23: =VLOOKUP(D23,#REF!,3,FALSE) ->  | H23: =VLOOKUP(G23,#REF!,2,FALSE) ->  | I23: =IFERROR(IF(A23="","",VLOOKUP(A23,#REF!,2,FALSE)),"") ->  | J23: =IFERROR(IF(A23="","",VLOOKUP(A23,#REF!,3,FALSE)),"") ->  | K23: 10000 | L23: =VLOOKUP(D23,#REF!,11,FALSE) ->  | O23: 0 | P23: 0 | R23: واصل
A24: =IF(G24="","",CHOOSE((COUNTIF(#REF!,G24)>0)+1,"عام","خاص")) ->  | C24: =VLOOKUP(D24,#REF!,12,FALSE) ->  | D24: 1567550 | E24: بنزين | F24: =VLOOKUP(D24,#REF!,6,FALSE) ->  | G24: =VLOOKUP(D24,#REF!,3,FALSE) ->  | H24: =VLOOKUP(G24,#REF!,2,FALSE) ->  | I24: =IFERROR(IF(A24="","",VLOOKUP(A24,#REF!,2,FALSE)),"") ->  | J24: =IFERROR(IF(A24="","",VLOOKUP(A24,#REF!,3,FALSE)),"") ->  | K24: 10000 | L24: =VLOOKUP(D24,#REF!,11,FALSE) ->  | O24: 0 | P24: 0 | R24: واصل
A25: =IF(G25="","",CHOOSE((COUNTIF(#REF!,G25)>0)+1,"عام","خاص")) ->  | C25: =VLOOKUP(D25,#REF!,12,FALSE) ->  | D25: 1567774 | E25: بنزين | F25: =VLOOKUP(D25,#REF!,6,FALSE) ->  | G25: =VLOOKUP(D25,#REF!,3,FALSE) ->  | H25: =VLOOKUP(G25,#REF!,2,FALSE) ->  | I25: =IFERROR(IF(A25="","",VLOOKUP(A25,#REF!,2,FALSE)),"") ->  | J25: =IFERROR(IF(A25="","",VLOOKUP(A25,#REF!,3,FALSE)),"") ->  | K25: 10000 | L25: =VLOOKUP(D25,#REF!,11,FALSE) ->  | O25: 0 | P25: 0 | R25: واصل
A26: =IF(G26="","",CHOOSE((COUNTIF(#REF!,G26)>0)+1,"عام","خاص")) ->  | C26: =VLOOKUP(D26,#REF!,12,FALSE) ->  | D26: 1586431 | E26: بنزين | F26: =VLOOKUP(D26,#REF!,6,FALSE) ->  | G26: =VLOOKUP(D26,#REF!,3,FALSE) ->  | H26: =VLOOKUP(G26,#REF!,2,FALSE) ->  | I26: =IFERROR(IF(A26="","",VLOOKUP(A26,#REF!,2,FALSE)),"") ->  | J26: =IFERROR(IF(A26="","",VLOOKUP(A26,#REF!,3,FALSE)),"") ->  | K26: 10000 | L26: =VLOOKUP(D26,#REF!,11,FALSE) ->  | O26: 0 | P26: 0 | R26: واصل
A27: =IF(G27="","",CHOOSE((COUNTIF(#REF!,G27)>0)+1,"عام","خاص")) ->  | C27: =VLOOKUP(D27,#REF!,12,FALSE) ->  | D27: 1586430 | E27: بنزين | F27: =VLOOKUP(D27,#REF!,6,FALSE) ->  | G27: =VLOOKUP(D27,#REF!,3,FALSE) ->  | H27: =VLOOKUP(G27,#REF!,2,FALSE) ->  | I27: =IFERROR(IF(A27="","",VLOOKUP(A27,#REF!,2,FALSE)),"") ->  | J27: =IFERROR(IF(A27="","",VLOOKUP(A27,#REF!,3,FALSE)),"") ->  | K27: 10000 | L27: =VLOOKUP(D27,#REF!,11,FALSE) ->  | O27: 0 | P27: 0 | R27: واصل
A28: =IF(G28="","",CHOOSE((COUNTIF(#REF!,G28)>0)+1,"عام","خاص")) ->  | C28: =VLOOKUP(D28,#REF!,12,FALSE) ->  | D28: 1567549 | E28: بنزين | F28: =VLOOKUP(D28,#REF!,6,FALSE) ->  | G28: =VLOOKUP(D28,#REF!,3,FALSE) ->  | H28: =VLOOKUP(G28,#REF!,2,FALSE) ->  | I28: =IFERROR(IF(A28="","",VLOOKUP(A28,#REF!,2,FALSE)),"") ->  | J28: =IFERROR(IF(A28="","",VLOOKUP(A28,#REF!,3,FALSE)),"") ->  | K28: 10000 | L28: =VLOOKUP(D28,#REF!,11,FALSE) ->  | O28: 0 | P28: 0 | R28: واصل
A29: =IF(G29="","",CHOOSE((COUNTIF(#REF!,G29)>0)+1,"عام","خاص")) ->  | D29: 1536725 | E29: بنزين | F29: 2021-01-10 | G29: 22898 | H29: =VLOOKUP(G29,#REF!,2,FALSE) ->  | I29: 0 | J29: 0 | K29: 0 | L29: 0 | M29: 0 | N29: 0 | O29: البساط الاخضر | P29: =IFERROR(IF(O29="","",VLOOKUP(O29,#REF!,6,FALSE)),"") ->  | Q29: 350000 | R29: واصل
A30: =IF(G30="","",CHOOSE((COUNTIF(#REF!,G30)>0)+1,"عام","خاص")) ->  | D30: 1536800 | E30: نفط | F30: 2021-01-11 | G30: 72038 | H30: =VLOOKUP(G30,#REF!,2,FALSE) ->  | I30: =IFERROR(IF(A30="","",VLOOKUP(A30,#REF!,2,FALSE)),"") ->  | J30: =IFERROR(IF(A30="","",VLOOKUP(A30,#REF!,3,FALSE)),"") ->  | K30: 10000 | L30: 0 | M30: 0 | O30: الحبانية | P30: =IFERROR(IF(O30="","",VLOOKUP(O30,#REF!,6,FALSE)),"") ->  | Q30: =IFERROR(SUM(N30+P30),"") ->  | R30: واصل
A31: =IF(G31="","",CHOOSE((COUNTIF(#REF!,G31)>0)+1,"عام","خاص")) ->  | D31: 1536777 | E31: بنزين | F31: 2021-01-10 | G31: 47008 | H31: =VLOOKUP(G31,#REF!,2,FALSE) ->  | I31: =IFERROR(IF(A31="","",VLOOKUP(A31,#REF!,2,FALSE)),"") ->  | J31: =IFERROR(IF(A31="","",VLOOKUP(A31,#REF!,3,FALSE)),"") ->  | K31: 10000 | L31: 0 | M31: =L31*750 -> 0 | O31: الرمادي الجديدة | P31: =IFERROR(IF(O31="","",VLOOKUP(O31,#REF!,6,FALSE)),"") ->  | R31: واصل
A32: =IF(G32="","",CHOOSE((COUNTIF(#REF!,G32)>0)+1,"عام","خاص")) ->  | D32: 1536732 | E32: كاز | F32: 2021-01-10 | G32: 5181 | H32: =VLOOKUP(G32,#REF!,2,FALSE) ->  | I32: =IFERROR(IF(A32="","",VLOOKUP(A32,#REF!,2,FALSE)),"") ->  | J32: =IFERROR(IF(A32="","",VLOOKUP(A32,#REF!,3,FALSE)),"") ->  | K32: 10000 | L32: 0 | M32: 0 | O32: الرمادي الجديدة | P32: =IFERROR(IF(O32="","",VLOOKUP(O32,#REF!,6,FALSE)),"") ->  | R32: واصل
A33: =IF(G33="","",CHOOSE((COUNTIF(#REF!,G33)>0)+1,"عام","خاص")) ->  | D33: 1536793 | E33: نفط | F33: 2021-01-11 | G33: 555196 | H33: =VLOOKUP(G33,#REF!,2,FALSE) ->  | I33: =IFERROR(IF(A33="","",VLOOKUP(A33,#REF!,2,FALSE)),"") ->  | J33: =IFERROR(IF(A33="","",VLOOKUP(A33,#REF!,3,FALSE)),"") ->  | K33: 10000 | L33: 0 | M33: 0 | O33: الرمادي السريع | P33: =IFERROR(IF(O33="","",VLOOKUP(O33,#REF!,6,FALSE)),"") ->  | R33: واصل
A34: =IF(G34="","",CHOOSE((COUNTIF(#REF!,G34)>0)+1,"عام","خاص")) ->  | D34: 1536743 | E34: نفط | F34: 2021-01-10 | G34: 37004 | H34: =VLOOKUP(G34,#REF!,2,FALSE) ->  | I34: =IFERROR(IF(A34="","",VLOOKUP(A34,#REF!,2,FALSE)),"") ->  | J34: =IFERROR(IF(A34="","",VLOOKUP(A34,#REF!,3,FALSE)),"") ->  | K34: 10000 | L34: 0 | M34: =L34*750 -> 0 | N34: =I34-J34-K34-M34 ->  | O34: الرمادي السريع | P34: =IFERROR(IF(O34="","",VLOOKUP(O34,#REF!,6,FALSE)),"") ->  | R34: واصل
A35: =IF(G35="","",CHOOSE((COUNTIF(#REF!,G35)>0)+1,"عام","خاص")) ->  | D35: 1536726 | E35: نفط | F35: 2021-01-09 | G35: 559340 | H35: =VLOOKUP(G35,#REF!,2,FALSE) ->  | I35: =IFERROR(IF(A35="","",VLOOKUP(A35,#REF!,2,FALSE)),"") ->  | J35: =IFERROR(IF(A35="","",VLOOKUP(A35,#REF!,3,FALSE)),"") ->  | K35: 10000 | L35: 0 | M35: =L35*750 -> 0 | O35: الصقلاوية | P35: =IFERROR(IF(O35="","",VLOOKUP(O35,#REF!,6,FALSE)),"") ->  | R35: واصل
A36: =IF(G36="","",CHOOSE((COUNTIF(#REF!,G36)>0)+1,"عام","خاص")) ->  | D36: 1536788 | E36: نفط | F36: 2021-01-11 | G36: 559099 | H36: =VLOOKUP(G36,#REF!,2,FALSE) ->  | I36: =IFERROR(IF(A36="","",VLOOKUP(A36,#REF!,2,FALSE)),"") ->  | J36: =IFERROR(IF(A36="","",VLOOKUP(A36,#REF!,3,FALSE)),"") ->  | K36: 10000 | L36: 0 | M36: 0 | O36: الصوفية | P36: =IFERROR(IF(O36="","",VLOOKUP(O36,#REF!,6,FALSE)),"") ->  | R36: واصل
A37: =IF(G37="","",CHOOSE((COUNTIF(#REF!,G37)>0)+1,"عام","خاص")) ->  | D37: 1536749 | E37: بنزين | F37: 2021-01-10 | G37: 52865 | H37: =VLOOKUP(G37,#REF!,2,FALSE) ->  | I37: =IFERROR(IF(A37="","",VLOOKUP(A37,#REF!,2,FALSE)),"") ->  | J37: =IFERROR(IF(A37="","",VLOOKUP(A37,#REF!,3,FALSE)),"") ->  | K37: 10000 | L37: 0 | M37: =L37*750 -> 0 | O37: العالمية | P37: =IFERROR(IF(O37="","",VLOOKUP(O37,#REF!,6,FALSE)),"") ->  | R37: واصل
A38: =IF(G38="","",CHOOSE((COUNTIF(#REF!,G38)>0)+1,"عام","خاص")) ->  | D38: 1536778 | E38: نفط | F38: 2021-01-10 | G38: 78675 | H38: =VLOOKUP(G38,#REF!,2,FALSE) ->  | I38: =IFERROR(IF(A38="","",VLOOKUP(A38,#REF!,2,FALSE)),"") ->  | J38: =IFERROR(IF(A38="","",VLOOKUP(A38,#REF!,3,FALSE)),"") ->  | K38: 10000 | L38: 0 | M38: 0 | O38: العراق الجديد | P38: =IFERROR(IF(O38="","",VLOOKUP(O38,#REF!,6,FALSE)),"") ->  | R38: واصل
A39: =IF(G39="","",CHOOSE((COUNTIF(#REF!,G39)>0)+1,"عام","خاص")) ->  | D39: 1536789 | E39: نفط | F39: 2021-01-10 | G39: 19188 | H39: =VLOOKUP(G39,#REF!,2,FALSE) ->  | I39: =IFERROR(IF(A39="","",VLOOKUP(A39,#REF!,2,FALSE)),"") ->  | J39: =IFERROR(IF(A39="","",VLOOKUP(A39,#REF!,3,FALSE)),"") ->  | K39: 10000 | L39: 0 | M39: 0 | O39: الفتح المبين | P39: =IFERROR(IF(O39="","",VLOOKUP(O39,#REF!,6,FALSE)),"") ->  | R39: 150000 | S39: =Q39-R39 -> 
A40: =IF(G40="","",CHOOSE((COUNTIF(#REF!,G40)>0)+1,"عام","خاص")) ->  | D40: 1536702 | E40: بنزين | F40: 2021-01-09 | G40: 562749 | H40: =VLOOKUP(G40,#REF!,2,FALSE) ->  | I40: 0 | J40: 0 | K40: 0 | L40: 0 | M40: =L40*750 -> 0 | N40: 0 | O40: الفرات | P40: =IFERROR(IF(O40="","",VLOOKUP(O40,#REF!,6,FALSE)),"") ->  | R40: واصل
A41: =IF(G41="","",CHOOSE((COUNTIF(#REF!,G41)>0)+1,"عام","خاص")) ->  | D41: 1536744 | E41: نفط | F41: 2021-01-10 | G41: 558808 | H41: =VLOOKUP(G41,#REF!,2,FALSE) ->  | I41: =IFERROR(IF(A41="","",VLOOKUP(A41,#REF!,2,FALSE)),"") ->  | J41: =IFERROR(IF(A41="","",VLOOKUP(A41,#REF!,3,FALSE)),"") ->  | K41: 10000 | L41: 0 | M41: 0 | O41: الفراجي | P41: =IFERROR(IF(O41="","",VLOOKUP(O41,#REF!,6,FALSE)),"") ->  | R41: واصل
A42: =IF(G42="","",CHOOSE((COUNTIF(#REF!,G42)>0)+1,"عام","خاص")) ->  | D42: 1536733 | E42: كاز | F42: 2021-01-10 | G42: 50152 | H42: =VLOOKUP(G42,#REF!,2,FALSE) ->  | I42: =IFERROR(IF(A42="","",VLOOKUP(A42,#REF!,2,FALSE)),"") ->  | J42: =IFERROR(IF(A42="","",VLOOKUP(A42,#REF!,3,FALSE)),"") ->  | K42: 10000 | L42: 0 | M42: =L42*750 -> 0 | O42: الفلوجة الجديدة | P42: =IFERROR(IF(O42="","",VLOOKUP(O42,#REF!,6,FALSE)),"") ->  | R42: واصل
A43: =IF(G43="","",CHOOSE((COUNTIF(#REF!,G43)>0)+1,"عام","خاص")) ->  | D43: 1536712 | E43: بنزين | F43: 2021-01-09 | G43: 22898 | H43: =VLOOKUP(G43,#REF!,2,FALSE) ->  | I43: 0 | J43: 0 | K43: 0 | L43: 0 | M43: =L43*750 -> 0 | N43: 0 | O43: القائم | P43: =IFERROR(IF(O43="","",VLOOKUP(O43,#REF!,6,FALSE)),"") ->  | Q43: 350000 | R43: واصل
A44: =IF(G44="","",CHOOSE((COUNTIF(#REF!,G44)>0)+1,"عام","خاص")) ->  | D44: 1536782 | E44: كاز | F44: 2021-01-11 | G44: 21304 | H44: =VLOOKUP(G44,#REF!,2,FALSE) ->  | I44: =IFERROR(IF(A44="","",VLOOKUP(A44,#REF!,2,FALSE)),"") ->  | J44: =IFERROR(IF(A44="","",VLOOKUP(A44,#REF!,3,FALSE)),"") ->  | K44: 10000 | L44: 0 | M44: 0 | O44: الكرمة | P44: =IFERROR(IF(O44="","",VLOOKUP(O44,#REF!,6,FALSE)),"") ->  | Q44: =IFERROR(SUM(N44+P44),"") ->  | R44: واصل
A45: =IF(G45="","",CHOOSE((COUNTIF(#REF!,G45)>0)+1,"عام","خاص")) ->  | D45: 1536684 | E45: نفط | F45: 2021-01-08 | G45: 36945 | H45: =VLOOKUP(G45,#REF!,2,FALSE) ->  | I45: =IFERROR(IF(A45="","",VLOOKUP(A45,#REF!,2,FALSE)),"") ->  | J45: =IFERROR(IF(A45="","",VLOOKUP(A45,#REF!,3,FALSE)),"") ->  | K45: 10000 | L45: 0 | M45: =L45*750 -> 0 | O45: الكرمة | P45: =IFERROR(IF(O45="","",VLOOKUP(O45,#REF!,6,FALSE)),"") ->  | R45: واصل
A46: =IF(G46="","",CHOOSE((COUNTIF(#REF!,G46)>0)+1,"عام","خاص")) ->  | D46: 1536745 | E46: نفط | F46: 2021-01-10 | G46: 17391 | H46: =VLOOKUP(G46,#REF!,2,FALSE) ->  | I46: =IFERROR(IF(A46="","",VLOOKUP(A46,#REF!,2,FALSE)),"") ->  | J46: =IFERROR(IF(A46="","",VLOOKUP(A46,#REF!,3,FALSE)),"") ->  | K46: 10000 | L46: 0 | M46: =L46*750 -> 0 | O46: الورار | P46: 7000 | R46: واصل
A47: =IF(G47="","",CHOOSE((COUNTIF(#REF!,G47)>0)+1,"عام","خاص")) ->  | D47: 1536590 | E47: نفط | F47: 2021-01-08 | G47: 39059 | H47: =VLOOKUP(G47,#REF!,2,FALSE) ->  | I47: =IFERROR(IF(A47="","",VLOOKUP(A47,#REF!,2,FALSE)),"") ->  | J47: =IFERROR(IF(A47="","",VLOOKUP(A47,#REF!,3,FALSE)),"") ->  | K47: 10000 | L47: 0 | M47: 0 | O47: خير البوادي | P47: =IFERROR(IF(O47="","",VLOOKUP(O47,#REF!,6,FALSE)),"") ->  | R47: واصل
A48: =IF(G48="","",CHOOSE((COUNTIF(#REF!,G48)>0)+1,"عام","خاص")) ->  | D48: 1536740 | E48: نفط | F48: 2021-01-10 | G48: 52726 | H48: =VLOOKUP(G48,#REF!,2,FALSE) ->  | I48: =IFERROR(IF(A48="","",VLOOKUP(A48,#REF!,2,FALSE)),"") ->  | J48: =IFERROR(IF(A48="","",VLOOKUP(A48,#REF!,3,FALSE)),"") ->  | K48: 10000 | L48: 0 | M48: 0 | O48: رماح الانبار | P48: =IFERROR(IF(O48="","",VLOOKUP(O48,#REF!,6,FALSE)),"") ->  | R48: واصل
A49: =IF(G49="","",CHOOSE((COUNTIF(#REF!,G49)>0)+1,"عام","خاص")) ->  | D49: 1536746 | E49: نفط | F49: 2021-01-10 | G49: 61548 | H49: =VLOOKUP(G49,#REF!,2,FALSE) ->  | I49: =IFERROR(IF(A49="","",VLOOKUP(A49,#REF!,2,FALSE)),"") ->  | J49: =IFERROR(IF(A49="","",VLOOKUP(A49,#REF!,3,FALSE)),"") ->  | K49: 10000 | L49: 0 | M49: 0 | O49: عبدالله | P49: =IFERROR(IF(O49="","",VLOOKUP(O49,#REF!,6,FALSE)),"") ->  | R49: واصل
A50: =IF(G50="","",CHOOSE((COUNTIF(#REF!,G50)>0)+1,"عام","خاص")) ->  | D50: 1536705 | E50: بنزين | F50: 2021-01-09 | G50: 6013 | H50: =VLOOKUP(G50,#REF!,2,FALSE) ->  | I50: 0 | J50: 0 | K50: 0 | L50: 0 | M50: 0 | N50: 0 | O50: كبيسة | P50: =IFERROR(IF(O50="","",VLOOKUP(O50,#REF!,6,FALSE)),"") ->  | R50: واصل
A51: =IF(G51="","",CHOOSE((COUNTIF(#REF!,G51)>0)+1,"عام","خاص")) ->  | D51: 1536791 | E51: نفط | F51: 2021-01-11 | G51: 559340 | H51: =VLOOKUP(G51,#REF!,2,FALSE) ->  | I51: =IFERROR(IF(A51="","",VLOOKUP(A51,#REF!,2,FALSE)),"") ->  | J51: =IFERROR(IF(A51="","",VLOOKUP(A51,#REF!,3,FALSE)),"") ->  | K51: 10000 | L51: 0 | M51: 0 | O51: كيلو 18 | P51: =IFERROR(IF(O51="","",VLOOKUP(O51,#REF!,6,FALSE)),"") ->  | R51: واصل
A52: =IF(G52="","",CHOOSE((COUNTIF(#REF!,G52)>0)+1,"عام","خاص")) ->  | D52: 1536750 | E52: نفط | F52: 2021-01-10 | G52: 52778 | H52: =VLOOKUP(G52,#REF!,2,FALSE) ->  | I52: =IFERROR(IF(A52="","",VLOOKUP(A52,#REF!,2,FALSE)),"") ->  | J52: =IFERROR(IF(A52="","",VLOOKUP(A52,#REF!,3,FALSE)),"") ->  | K52: 10000 | L52: 0 | M52: =L52*750 -> 0 | O52: م ت الرمادي | P52: =IFERROR(IF(O52="","",VLOOKUP(O52,#REF!,6,FALSE)),"") ->  | R52: واصل
A53: =IF(G53="","",CHOOSE((COUNTIF(#REF!,G53)>0)+1,"عام","خاص")) ->  | D53: 1536786 | E53: نفط | F53: 2021-01-11 | G53: 558402 | H53: =VLOOKUP(G53,#REF!,2,FALSE) ->  | I53: =IFERROR(IF(A53="","",VLOOKUP(A53,#REF!,2,FALSE)),"") ->  | J53: =IFERROR(IF(A53="","",VLOOKUP(A53,#REF!,3,FALSE)),"") ->  | K53: 10000 | L53: 0 | M53: 0 | O53: م ت الفلوجة | P53: =IFERROR(IF(O53="","",VLOOKUP(O53,#REF!,6,FALSE)),"") ->  | R53: واصل
A54: =IF(G54="","",CHOOSE((COUNTIF(#REF!,G54)>0)+1,"عام","خاص")) ->  | D54: 1536781 | E54: كاز | F54: 2021-01-11 | G54: 93455 | H54: =VLOOKUP(G54,#REF!,2,FALSE) ->  | I54: =IFERROR(IF(A54="","",VLOOKUP(A54,#REF!,2,FALSE)),"") ->  | J54: =IFERROR(IF(A54="","",VLOOKUP(A54,#REF!,3,FALSE)),"") ->  | K54: 10000 | L54: 0 | M54: 0 | O54: م ت الفلوجة | P54: =IFERROR(IF(O54="","",VLOOKUP(O54,#REF!,6,FALSE)),"") ->  | R54: واصل
A55: =IF(G55="","",CHOOSE((COUNTIF(#REF!,G55)>0)+1,"عام","خاص")) ->  | D55: 1536739 | E55: كاز | F55: 2021-01-10 | G55: 193134 | H55: =VLOOKUP(G55,#REF!,2,FALSE) ->  | I55: =IFERROR(IF(A55="","",VLOOKUP(A55,#REF!,2,FALSE)),"") ->  | J55: =IFERROR(IF(A55="","",VLOOKUP(A55,#REF!,3,FALSE)),"") ->  | K55: 10000 | L55: 0 | M55: =L55*750 -> 0 | O55: م ت الفلوجة | P55: =IFERROR(IF(O55="","",VLOOKUP(O55,#REF!,6,FALSE)),"") ->  | R55: واصل
A56: =IF(G56="","",CHOOSE((COUNTIF(#REF!,G56)>0)+1,"عام","خاص")) ->  | D56: 1536738 | E56: نفط | F56: 2021-01-07 | G56: 557566 | H56: =VLOOKUP(G56,#REF!,2,FALSE) ->  | I56: =IFERROR(IF(A56="","",VLOOKUP(A56,#REF!,2,FALSE)),"") ->  | J56: =IFERROR(IF(A56="","",VLOOKUP(A56,#REF!,3,FALSE)),"") ->  | K56: 10000 | L56: 0 | M56: =L56*750 -> 0 | O56: مها البادية | P56: =IFERROR(IF(O56="","",VLOOKUP(O56,#REF!,6,FALSE)),"") ->  | R56: واصل
A57: =IF(G57="","",CHOOSE((COUNTIF(#REF!,G57)>0)+1,"عام","خاص")) ->  | D57: 1536645 | E57: كاز | F57: 2021-01-08 | G57: 559288 | H57: =VLOOKUP(G57,#REF!,2,FALSE) ->  | I57: =IFERROR(IF(A57="","",VLOOKUP(A57,#REF!,2,FALSE)),"") ->  | J57: =IFERROR(IF(A57="","",VLOOKUP(A57,#REF!,3,FALSE)),"") ->  | K57: 10000 | L57: 0 | M57: 0 | O57: الفلوجة الجديدة | P57: =IFERROR(IF(O57="","",VLOOKUP(O57,#REF!,6,FALSE)),"") ->  | R57: واصل
Q58: =SUM(Q2:Q57) -> 700000

Sheet 11 (hidden)
A1: شركة/عام | B1: حكومي/اهلي | C1: الشركة | D1: رقم المستند | E1: المنتوج | F1: التاريخ | G1: رقم السيارة | H1: اسم السائق | I1: الاستحقاق | J1: المندوبية | K1: المكتبية | L1: النقص | M1: مبلغ النقص | N1: صافي الاستحقاق | O1: المحطة | P1: استحقاق المحطة | Q1: الاستحقاق الكلي | R1: التوقيع | S1: الحالة
A2: =IF(G2="","",CHOOSE((COUNTIF(#REF!,G2)>0)+1,"عام","خاص")) ->  | C2: جوهرة | D2: 1567534 | E2: بنزين | F2: 2021-01-07 | G2: 19422 | H2: =VLOOKUP(G2,#REF!,2,FALSE) ->  | I2: =IFERROR(IF(A2="","",VLOOKUP(A2,#REF!,2,FALSE)),"") ->  | J2: 25000 | K2: 10000 | L2: 0 | M2: =L2*750 -> 0 | N2: =I2-J2-K2-M2 ->  | P2: 0 | Q2: =IFERROR(SUM(N2+P2),"") ->  | R2: واصل | S2: استلم
A3: =IF(G3="","",CHOOSE((COUNTIF(#REF!,G3)>0)+1,"عام","خاص")) ->  | C3: جوهرة | D3: 1567539 | E3: بنزين | F3: 2021-01-07 | G3: 12536 | H3: =VLOOKUP(G3,#REF!,2,FALSE) ->  | I3: =IFERROR(IF(A3="","",VLOOKUP(A3,#REF!,2,FALSE)),"") ->  | J3: 25000 | K3: 10000 | L3: 0 | M3: 0 | P3: 0 | R3: واصل | S3: استلم
A4: =IF(G4="","",CHOOSE((COUNTIF(#REF!,G4)>0)+1,"عام","خاص")) ->  | C4: ابداع | D4: 1567542 | E4: بنزين | F4: 2021-01-07 | G4: 18760 | H4: =VLOOKUP(G4,#REF!,2,FALSE) ->  | I4: =IFERROR(IF(A4="","",VLOOKUP(A4,#REF!,2,FALSE)),"") ->  | J4: 25000 | K4: 10000 | L4: 88 | M4: 66000 | P4: 0 | R4: واصل | S4: استلم
A5: =IF(G5="","",CHOOSE((COUNTIF(#REF!,G5)>0)+1,"عام","خاص")) ->  | C5: جوهرة | D5: 1739978 | E5: بنزين | F5: 2021-01-08 | G5: 64805 | H5: =VLOOKUP(G5,#REF!,2,FALSE) ->  | I5: =IFERROR(IF(A5="","",VLOOKUP(A5,#REF!,2,FALSE)),"") ->  | J5: 25000 | K5: 10000 | L5: 0 | M5: 0 | P5: 0 | R5: واصل | S5: استلم
A6: =IF(G6="","",CHOOSE((COUNTIF(#REF!,G6)>0)+1,"عام","خاص")) ->  | C6: جوهرة | D6: 1739980 | E6: بنزين | F6: 2021-01-08 | G6: 49991 | H6: =VLOOKUP(G6,#REF!,2,FALSE) ->  | I6: =IFERROR(IF(A6="","",VLOOKUP(A6,#REF!,2,FALSE)),"") ->  | J6: 25000 | K6: 10000 | L6: 0 | M6: 0 | P6: 0 | R6: واصل | S6: استلم
A7: =IF(G7="","",CHOOSE((COUNTIF(#REF!,G7)>0)+1,"عام","خاص")) ->  | C7: ابداع | D7: 1739995 | E7: بنزين | F7: 2021-01-08 | G7: 65345 | H7: =VLOOKUP(G7,#REF!,2,FALSE) ->  | I7: =IFERROR(IF(A7="","",VLOOKUP(A7,#REF!,2,FALSE)),"") ->  | J7: 25000 | K7: 10000 | L7: 0 | M7: 0 | P7: 0 | R7: واصل | S7: استلم
A8: =IF(G8="","",CHOOSE((COUNTIF(#REF!,G8)>0)+1,"عام","خاص")) ->  | C8: ابداع | D8: 1580652 | E8: بنزين | F8: 2021-01-09 | G8: 14090 | H8: =VLOOKUP(G8,#REF!,2,FALSE) ->  | I8: =IFERROR(IF(A8="","",VLOOKUP(A8,#REF!,2,FALSE)),"") ->  | J8: 25000 | K8: 10000 | L8: 0 | M8: 0 | P8: 0 | R8: واصل | S8: استلم
A9: =IF(G9="","",CHOOSE((COUNTIF(#REF!,G9)>0)+1,"عام","خاص")) ->  | C9: ابداع | D9: 1580669 | E9: بنزين | F9: 2021-01-09 | G9: 136833 | H9: =VLOOKUP(G9,#REF!,2,FALSE) ->  | I9: =IFERROR(IF(A9="","",VLOOKUP(A9,#REF!,2,FALSE)),"") ->  | J9: 25000 | K9: 10000 | L9: 0 | M9: 0 | P9: 0 | R9: واصل | S9: استلم
A10: =IF(G10="","",CHOOSE((COUNTIF(#REF!,G10)>0)+1,"عام","خاص")) ->  | C10: ابداع | D10: 1536779 | E10: كاز | F10: 2021-01-11 | G10: 14090 | H10: =VLOOKUP(G10,#REF!,2,FALSE) ->  | I10: =IFERROR(IF(A10="","",VLOOKUP(A10,#REF!,2,FALSE)),"") ->  | J10: 25000 | K10: 10000 | L10: 0 | M10: 0 | O10: م ت الفلوجة | P10: =IFERROR(IF(O10="","",VLOOKUP(O10,#REF!,6,FALSE)),"") ->  | R10: واصل | S10: استلم
A11: =IF(G11="","",CHOOSE((COUNTIF(#REF!,G11)>0)+1,"عام","خاص")) ->  | C11: ابداع | D11: 1536765 | E11: بنزين | F11: 2021-01-11 | G11: 50466 | H11: =VLOOKUP(G11,#REF!,2,FALSE) ->  | I11: 0 | J11: 0 | K11: 0 | M11: 0 | N11: 0 | O11: القائم | P11: =IFERROR(IF(O11="","",VLOOKUP(O11,#REF!,6,FALSE)),"") ->  | R11: واصل | S11: استلم
A12: =IF(G12="","",CHOOSE((COUNTIF(#REF!,G12)>0)+1,"عام","خاص")) ->  | C12: ابداع | D12: 1536780 | E12: كاز | F12: 2021-01-11 | G12: 15946 | H12: =VLOOKUP(G12,#REF!,2,FALSE) ->  | I12: =IFERROR(IF(A12="","",VLOOKUP(A12,#REF!,2,FALSE)),"") ->  | J12: 25000 | K12: 10000 | M12: 0 | O12: الرمادي الجديدة | P12: =IFERROR(IF(O12="","",VLOOKUP(O12,#REF!,6,FALSE)),"") ->  | R12: واصل | S12: استلم
A13: =IF(G13="","",CHOOSE((COUNTIF(#REF!,G13)>0)+1,"عام","خاص")) ->  | C13: ابداع | D13: 1536827 | E13: كاز | F13: 2021-01-11 | G13: 65345 | H13: =VLOOKUP(G13,#REF!,2,FALSE) ->  | I13: =IFERROR(IF(A13="","",VLOOKUP(A13,#REF!,2,FALSE)),"") ->  | J13: 25000 | K13: 10000 | M13: 0 | O13: الرمادي السريع | P13: =IFERROR(IF(O13="","",VLOOKUP(O13,#REF!,6,FALSE)),"") ->  | R13: واصل | S13: استلم
A14: =IF(G14="","",CHOOSE((COUNTIF(#REF!,G14)>0)+1,"عام","خاص")) ->  | C14: جوهرة | D14: 1536785 | E14: نفط | F14: 2021-01-11 | G14: 90487 | H14: =VLOOKUP(G14,#REF!,2,FALSE) ->  | I14: =IFERROR(IF(A14="","",VLOOKUP(A14,#REF!,2,FALSE)),"") ->  | J14: 25000 | K14: 10000 | M14: 0 | O14: الخالدية | P14: =IFERROR(IF(O14="","",VLOOKUP(O14,#REF!,6,FALSE)),"") ->  | R14: واصل | S14: استلم
A15: =IF(G15="","",CHOOSE((COUNTIF(#REF!,G15)>0)+1,"عام","خاص")) ->  | C15: ابداع | D15: 1536846 | E15: نفط | F15: 2021-01-12 | G15: 18539 | H15: =VLOOKUP(G15,#REF!,2,FALSE) ->  | I15: =IFERROR(IF(A15="","",VLOOKUP(A15,#REF!,2,FALSE)),"") ->  | J15: 25000 | K15: 10000 | M15: 0 | O15: الميلاد | P15: =IFERROR(IF(O15="","",VLOOKUP(O15,#REF!,6,FALSE)),"") ->  | R15: واصل | S15: استلم
A16: =IF(G16="","",CHOOSE((COUNTIF(#REF!,G16)>0)+1,"عام","خاص")) ->  | C16: ابداع | D16: 1536747 | E16: نفط | F16: 2021-01-10 | G16: 58522 | H16: =VLOOKUP(G16,#REF!,2,FALSE) ->  | I16: =IFERROR(IF(A16="","",VLOOKUP(A16,#REF!,2,FALSE)),"") ->  | J16: 25000 | K16: 10000 | L16: 0 | M16: 0 | O16: م ت الفلوجة | P16: =IFERROR(IF(O16="","",VLOOKUP(O16,#REF!,6,FALSE)),"") ->  | R16: واصل | S16: استلم
A17: =IF(G17="","",CHOOSE((COUNTIF(#REF!,G17)>0)+1,"عام","خاص")) ->  | C17: جوهرة | D17: 1536858 | E17: كاز | F17: 2021-01-12 | G17: 48074 | H17: =VLOOKUP(G17,#REF!,2,FALSE) ->  | I17: =IFERROR(IF(A17="","",VLOOKUP(A17,#REF!,2,FALSE)),"") ->  | J17: 25000 | K17: 10000 | M17: 0 | O17: م ت الرمادي | P17: =IFERROR(IF(O17="","",VLOOKUP(O17,#REF!,6,FALSE)),"") ->  | R17: واصل | S17: استلم
A18: =IF(G18="","",CHOOSE((COUNTIF(#REF!,G18)>0)+1,"عام","خاص")) ->  | C18: جوهرة | D18: 1536736 | E18: كاز | F18: 2021-01-10 | G18: 124161 | H18: =VLOOKUP(G18,#REF!,2,FALSE) ->  | I18: =IFERROR(IF(A18="","",VLOOKUP(A18,#REF!,2,FALSE)),"") ->  | J18: 25000 | K18: 10000 | M18: 0 | O18: م ت الفلوجة | P18: =IFERROR(IF(O18="","",VLOOKUP(O18,#REF!,6,FALSE)),"") ->  | R18: واصل | S18: استلم
A19: =IF(G19="","",CHOOSE((COUNTIF(#REF!,G19)>0)+1,"عام","خاص")) ->  | C19: ابداع | D19: 1536835 | E19: نفط | F19: 2021-01-12 | G19: 559340 | H19: =VLOOKUP(G19,#REF!,2,FALSE) ->  | I19: =IFERROR(IF(A19="","",VLOOKUP(A19,#REF!,2,FALSE)),"") ->  | J19: 25000 | K19: 10000 | M19: 0 | O19: الصقلاوية | P19: =IFERROR(IF(O19="","",VLOOKUP(O19,#REF!,6,FALSE)),"") ->  | R19: واصل | S19: استلم
A20: =IF(G20="","",CHOOSE((COUNTIF(#REF!,G20)>0)+1,"عام","خاص")) ->  | C20: جوهرة | D20: 1536853 | E20: كاز | F20: 2021-01-12 | G20: 25706 | H20: =VLOOKUP(G20,#REF!,2,FALSE) ->  | I20: =IFERROR(IF(A20="","",VLOOKUP(A20,#REF!,2,FALSE)),"") ->  | J20: 25000 | K20: 10000 | M20: 0 | O20: الصقلاوية | P20: =IFERROR(IF(O20="","",VLOOKUP(O20,#REF!,6,FALSE)),"") ->  | R20: واصل | S20: استلم
A21: =IF(G21="","",CHOOSE((COUNTIF(#REF!,G21)>0)+1,"عام","خاص")) ->  | C21: جوهرة | D21: 1536784 | E21: كاز | F21: 2021-01-11 | G21: 104816 | H21: =VLOOKUP(G21,#REF!,2,FALSE) ->  | I21: =IFERROR(IF(A21="","",VLOOKUP(A21,#REF!,2,FALSE)),"") ->  | J21: 25000 | K21: 10000 | M21: 0 | O21: الرمادي الجديدة | P21: =IFERROR(IF(O21="","",VLOOKUP(O21,#REF!,6,FALSE)),"") ->  | R21: واصل | S21: استلم
A22: =IF(G22="","",CHOOSE((COUNTIF(#REF!,G22)>0)+1,"عام","خاص")) ->  | C22: ابداع | D22: 1536842 | E22: نفط | F22: 2021-01-10 | G22: 16489 | H22: =VLOOKUP(G22,#REF!,2,FALSE) ->  | I22: =IFERROR(IF(A22="","",VLOOKUP(A22,#REF!,2,FALSE)),"") ->  | J22: 25000 | K22: 10000 | M22: 0 | O22: الرمادي الجديدة | P22: =IFERROR(IF(O22="","",VLOOKUP(O22,#REF!,6,FALSE)),"") ->  | R22: واصل | S22: استلم
A23: =IF(G23="","",CHOOSE((COUNTIF(#REF!,G23)>0)+1,"عام","خاص")) ->  | C23: جوهرة | D23: 1536856 | E23: نفط | F23: 2021-01-12 | G23: 559796 | H23: =VLOOKUP(G23,#REF!,2,FALSE) ->  | I23: =IFERROR(IF(A23="","",VLOOKUP(A23,#REF!,2,FALSE)),"") ->  | J23: 25000 | K23: 10000 | M23: 0 | O23: النافع | P23: =IFERROR(IF(O23="","",VLOOKUP(O23,#REF!,6,FALSE)),"") ->  | R23: واصل | S23: استلم
A24: =IF(G24="","",CHOOSE((COUNTIF(#REF!,G24)>0)+1,"عام","خاص")) ->  | C24: ابداع | D24: 1536795 | E24: نفط | F24: 2021-01-11 | G24: 108755 | H24: =VLOOKUP(G24,#REF!,2,FALSE) ->  | I24: =IFERROR(IF(A24="","",VLOOKUP(A24,#REF!,2,FALSE)),"") ->  | J24: 25000 | K24: 10000 | M24: 0 | O24: م ت الفلوجة | P24: =IFERROR(IF(O24="","",VLOOKUP(O24,#REF!,6,FALSE)),"") ->  | R24: واصل | S24: استلم
A25: =IF(G25="","",CHOOSE((COUNTIF(#REF!,G25)>0)+1,"عام","خاص")) ->  | C25: ابداع | D25: 1536776 | E25: نفط | F25: 2021-01-10 | G25: 145268 | H25: =VLOOKUP(G25,#REF!,2,FALSE) ->  | I25: =IFERROR(IF(A25="","",VLOOKUP(A25,#REF!,2,FALSE)),"") ->  | J25: 25000 | K25: 10000 | M25: 0 | O25: الصقلاوية | P25: =IFERROR(IF(O25="","",VLOOKUP(O25,#REF!,6,FALSE)),"") ->  | R25: واصل | S25: استلم
A26: =IF(G26="","",CHOOSE((COUNTIF(#REF!,G26)>0)+1,"عام","خاص")) ->  | C26: ابداع | D26: 1536799 | E26: نفط | F26: 2021-01-11 | G26: 36929 | H26: =VLOOKUP(G26,#REF!,2,FALSE) ->  | I26: =IFERROR(IF(A26="","",VLOOKUP(A26,#REF!,2,FALSE)),"") ->  | J26: 25000 | K26: 10000 | M26: 0 | O26: عطارد | P26: =IFERROR(IF(O26="","",VLOOKUP(O26,#REF!,6,FALSE)),"") ->  | R26: واصل | S26: استلم
A27: =IF(G27="","",CHOOSE((COUNTIF(#REF!,G27)>0)+1,"عام","خاص")) ->  | C27: ابداع | D27: 1536803 | E27: بنزين | F27: 2021-01-11 | G27: 7727 | H27: =VLOOKUP(G27,#REF!,2,FALSE) ->  | I27: 0 | J27: 0 | K27: 0 | M27: 0 | N27: 0 | O27: الرمادي الجديدة | P27: =IFERROR(IF(O27="","",VLOOKUP(O27,#REF!,6,FALSE)),"") ->  | R27: واصل | S27: استلم
A28: =IF(G28="","",CHOOSE((COUNTIF(#REF!,G28)>0)+1,"عام","خاص")) ->  | C28: ابداع | D28: 1536767 | E28: بنزين | F28: 2021-01-11 | G28: 7727 | H28: =VLOOKUP(G28,#REF!,2,FALSE) ->  | I28: 0 | J28: 0 | K28: 0 | M28: 0 | N28: 0 | O28: الرمادي الجديدة | P28: =IFERROR(IF(O28="","",VLOOKUP(O28,#REF!,6,FALSE)),"") ->  | R28: واصل | S28: استلم
A29: =IF(G29="","",CHOOSE((COUNTIF(#REF!,G29)>0)+1,"عام","خاص")) ->  | C29: ابداع | D29: 1536831 | E29: نفط | F29: 2021-01-10 | G29: 136833 | H29: =VLOOKUP(G29,#REF!,2,FALSE) ->  | I29: =IFERROR(IF(A29="","",VLOOKUP(A29,#REF!,2,FALSE)),"") ->  | J29: 25000 | K29: 10000 | M29: 0 | O29: م ت الرمادي | P29: =IFERROR(IF(O29="","",VLOOKUP(O29,#REF!,6,FALSE)),"") ->  | R29: واصل | S29: استلم
A30: =IF(G30="","",CHOOSE((COUNTIF(#REF!,G30)>0)+1,"عام","خاص")) ->  | C30: ابداع | D30: 1536790 | E30: نفط | F30: 2021-01-11 | G30: 31588 | H30: =VLOOKUP(G30,#REF!,2,FALSE) ->  | I30: =IFERROR(IF(A30="","",VLOOKUP(A30,#REF!,2,FALSE)),"") ->  | J30: 25000 | K30: 10000 | M30: 0 | O30: دار السلام | P30: =IFERROR(IF(O30="","",VLOOKUP(O30,#REF!,6,FALSE)),"") ->  | R30: واصل | S30: استلم
A31: =IF(G31="","",CHOOSE((COUNTIF(#REF!,G31)>0)+1,"عام","خاص")) ->  | C31: ابداع | D31: 1536832 | E31: نفط | F31: 2021-01-10 | G31: 22250 | H31: =VLOOKUP(G31,#REF!,2,FALSE) ->  | I31: =IFERROR(IF(A31="","",VLOOKUP(A31,#REF!,2,FALSE)),"") ->  | J31: 25000 | K31: 10000 | M31: 0 | O31: العيساوي | P31: =IFERROR(IF(O31="","",VLOOKUP(O31,#REF!,6,FALSE)),"") ->  | R31: واصل | S31: استلم
A32: =IF(G32="","",CHOOSE((COUNTIF(#REF!,G32)>0)+1,"عام","خاص")) ->  | C32: ابداع | D32: 1536701 | E32: بنزين | F32: 2021-01-09 | G32: 559661 | H32: =VLOOKUP(G32,#REF!,2,FALSE) ->  | I32: 0 | J32: 0 | K32: 0 | M32: 0 | N32: 0 | O32: الرمادي الجديدة | P32: =IFERROR(IF(O32="","",VLOOKUP(O32,#REF!,6,FALSE)),"") ->  | R32: واصل | S32: استلم
A33: =IF(G33="","",CHOOSE((COUNTIF(#REF!,G33)>0)+1,"عام","خاص")) ->  | C33: ابداع | D33: 1536752 | E33: بنزين | F33: 2021-01-10 | G33: 559661 | H33: =VLOOKUP(G33,#REF!,2,FALSE) ->  | I33: 0 | J33: 0 | K33: 0 | M33: 0 | N33: 0 | O33: الرمادي الجديدة | P33: =IFERROR(IF(O33="","",VLOOKUP(O33,#REF!,6,FALSE)),"") ->  | R33: واصل | S33: استلم
A34: =IF(G34="","",CHOOSE((COUNTIF(#REF!,G34)>0)+1,"عام","خاص")) ->  | C34: ابداع | D34: 1536783 | E34: كاز | F34: 2021-01-11 | G34: 39418 | H34: =VLOOKUP(G34,#REF!,2,FALSE) ->  | I34: =IFERROR(IF(A34="","",VLOOKUP(A34,#REF!,2,FALSE)),"") ->  | J34: 25000 | K34: 10000 | M34: 0 | O34: الفلوجة الجديدة | P34: =IFERROR(IF(O34="","",VLOOKUP(O34,#REF!,6,FALSE)),"") ->  | R34: واصل | S34: استلم
A35: =IF(G35="","",CHOOSE((COUNTIF(#REF!,G35)>0)+1,"عام","خاص")) ->  | C35: ابداع | D35: 1536741 | E35: كاز | F35: 2021-01-10 | G35: 149393 | H35: =VLOOKUP(G35,#REF!,2,FALSE) ->  | I35: =IFERROR(IF(A35="","",VLOOKUP(A35,#REF!,2,FALSE)),"") ->  | J35: 25000 | K35: 10000 | M35: 0 | O35: م ت الفلوجة | P35: =IFERROR(IF(O35="","",VLOOKUP(O35,#REF!,6,FALSE)),"") ->  | R35: واصل | S35: استلم
A36: =IF(G36="","",CHOOSE((COUNTIF(#REF!,G36)>0)+1,"عام","خاص")) ->  | C36: ابداع | D36: 1536851 | E36: كاز | F36: 2021-01-12 | G36: 193134 | H36: =VLOOKUP(G36,#REF!,2,FALSE) ->  | I36: =IFERROR(IF(A36="","",VLOOKUP(A36,#REF!,2,FALSE)),"") ->  | J36: 25000 | K36: 10000 | M36: 0 | O36: الحبانية | P36: =IFERROR(IF(O36="","",VLOOKUP(O36,#REF!,6,FALSE)),"") ->  | R36: واصل | S36: استلم
A37: =IF(G37="","",CHOOSE((COUNTIF(#REF!,G37)>0)+1,"عام","خاص")) ->  | C37: ابداع | D37: 1536838 | E37: نفط | F37: 2021-01-10 | G37: 558808 | H37: =VLOOKUP(G37,#REF!,2,FALSE) ->  | I37: =IFERROR(IF(A37="","",VLOOKUP(A37,#REF!,2,FALSE)),"") ->  | J37: 25000 | K37: 10000 | M37: 0 | O37: خير البوادي | P37: =IFERROR(IF(O37="","",VLOOKUP(O37,#REF!,6,FALSE)),"") ->  | R37: واصل | S37: استلم
A38: =IF(G38="","",CHOOSE((COUNTIF(#REF!,G38)>0)+1,"عام","خاص")) ->  | C38: جوهرة | D38: 1536839 | E38: نفط | F38: 2021-01-10 | G38: 61548 | H38: =VLOOKUP(G38,#REF!,2,FALSE) ->  | I38: =IFERROR(IF(A38="","",VLOOKUP(A38,#REF!,2,FALSE)),"") ->  | J38: 25000 | K38: 10000 | M38: 0 | O38: بركة الرحمن | P38: =IFERROR(IF(O38="","",VLOOKUP(O38,#REF!,6,FALSE)),"") ->  | R38: واصل | S38: استلم
A39: =IF(G39="","",CHOOSE((COUNTIF(#REF!,G39)>0)+1,"عام","خاص")) ->  | C39: جوهرة | D39: 1536630 | E39: نفط | F39: 2021-01-08 | G39: 10321 | H39: =VLOOKUP(G39,#REF!,2,FALSE) ->  | I39: 0 | J39: 0 | K39: 0 | M39: 0 | N39: 0 | O39: الراية البيضاء | P39: =IFERROR(IF(O39="","",VLOOKUP(O39,#REF!,6,FALSE)),"") ->  | R39: واصل | S39: استلم | T39: 225000
A40: =IF(G40="","",CHOOSE((COUNTIF(#REF!,G40)>0)+1,"عام","خاص")) ->  | C40: ابداع | D40: 1536792 | E40: نفط | F40: 2021-01-10 | G40: 18760 | H40: =VLOOKUP(G40,#REF!,2,FALSE) ->  | I40: =IFERROR(IF(A40="","",VLOOKUP(A40,#REF!,2,FALSE)),"") ->  | J40: 25000 | K40: 10000 | M40: 0 | O40: الصابرين | P40: =IFERROR(IF(O40="","",VLOOKUP(O40,#REF!,6,FALSE)),"") ->  | R40: واصل | S40: استلم
A41: =IF(G41="","",CHOOSE((COUNTIF(#REF!,G41)>0)+1,"عام","خاص")) ->  | C41: جوهرة | D41: 1536755 | E41: بنزين | F41: 2021-01-10 | G41: 38949 | H41: =VLOOKUP(G41,#REF!,2,FALSE) ->  | I41: 0 | J41: 0 | K41: 0 | M41: 0 | N41: 0 | O41: الحقلانية | P41: =IFERROR(IF(O41="","",VLOOKUP(O41,#REF!,6,FALSE)),"") ->  | R41: واصل | S41: استلم
A42: =IF(G42="","",CHOOSE((COUNTIF(#REF!,G42)>0)+1,"عام","خاص")) ->  | C42: ابداع | D42: 1536852 | E42: كاز | F42: 2021-01-12 | G42: 31300 | H42: =VLOOKUP(G42,#REF!,2,FALSE) ->  | I42: =IFERROR(IF(A42="","",VLOOKUP(A42,#REF!,2,FALSE)),"") ->  | J42: 25000 | K42: 10000 | M42: 0 | O42: م ت الفلوجة | P42: =IFERROR(IF(O42="","",VLOOKUP(O42,#REF!,6,FALSE)),"") ->  | R42: واصل | S42: استلم
A43: =IF(G43="","",CHOOSE((COUNTIF(#REF!,G43)>0)+1,"عام","خاص")) ->  | C43: ابداع | D43: 153636 | E43: كاز | F43: 2021-01-12 | G43: 93455 | H43: =VLOOKUP(G43,#REF!,2,FALSE) ->  | I43: =IFERROR(IF(A43="","",VLOOKUP(A43,#REF!,2,FALSE)),"") ->  | J43: 25000 | K43: 10000 | M43: 0 | O43: م ت الفلوجة | P43: =IFERROR(IF(O43="","",VLOOKUP(O43,#REF!,6,FALSE)),"") ->  | R43: واصل | S43: استلم
A44: =IF(G44="","",CHOOSE((COUNTIF(#REF!,G44)>0)+1,"عام","خاص")) ->  | C44: ابداع | D44: 1536802 | E44: بنزين | F44: 2021-01-11 | G44: 192366 | H44: =VLOOKUP(G44,#REF!,2,FALSE) ->  | I44: 0 | J44: 0 | K44: 0 | M44: 0 | N44: 0 | O44: الكرمة | P44: =IFERROR(IF(O44="","",VLOOKUP(O44,#REF!,6,FALSE)),"") ->  | R44: واصل | S44: استلم
A45: =IF(G45="","",CHOOSE((COUNTIF(#REF!,G45)>0)+1,"عام","خاص")) ->  | C45: جوهرة | D45: 1739976 | E45: بنزين | F45: 2021-01-08 | G45: 65319 | H45: =VLOOKUP(G45,#REF!,2,FALSE) ->  | I45: =IFERROR(IF(A45="","",VLOOKUP(A45,#REF!,2,FALSE)),"") ->  | J45: 25000 | K45: 10000 | L45: 0 | M45: =L45*750 -> 0 | N45: =I45-J45-K45-M45 ->  | P45: 0 | Q45: =IFERROR(SUM(N45+P45),"") -> 
A46: =IF(G46="","",CHOOSE((COUNTIF(#REF!,G46)>0)+1,"عام","خاص")) ->  | C46: ابداع | D46: 1739977 | E46: بنزين | F46: 2021-01-08 | G46: 6013 | H46: =VLOOKUP(G46,#REF!,2,FALSE) ->  | I46: =IFERROR(IF(A46="","",VLOOKUP(A46,#REF!,2,FALSE)),"") ->  | J46: 25000 | K46: 10000 | L46: 0 | M46: 0 | P46: 0
A47: =IF(G47="","",CHOOSE((COUNTIF(#REF!,G47)>0)+1,"عام","خاص")) ->  | C47: جوهرة | D47: 1739979 | E47: بنزين | F47: 2021-01-08 | G47: 557224 | H47: =VLOOKUP(G47,#REF!,2,FALSE) ->  | I47: =IFERROR(IF(A47="","",VLOOKUP(A47,#REF!,2,FALSE)),"") ->  | J47: 25000 | K47: 10000 | L47: 0 | M47: 0 | P47: 0 | U47: سلفة ابو ايمن
A48: =IF(G48="","",CHOOSE((COUNTIF(#REF!,G48)>0)+1,"عام","خاص")) ->  | C48: جوهرة | D48: 1739983 | E48: بنزين | F48: 2021-01-08 | G48: 60445 | H48: =VLOOKUP(G48,#REF!,2,FALSE) ->  | I48: =IFERROR(IF(A48="","",VLOOKUP(A48,#REF!,2,FALSE)),"") ->  | J48: 25000 | K48: 10000 | L48: 0 | M48: 0 | P48: 0
A49: =IF(G49="","",CHOOSE((COUNTIF(#REF!,G49)>0)+1,"عام","خاص")) ->  | C49: ابداع | D49: 1739989 | E49: بنزين | F49: 2021-01-08 | G49: 31115 | H49: =VLOOKUP(G49,#REF!,2,FALSE) ->  | I49: =IFERROR(IF(A49="","",VLOOKUP(A49,#REF!,2,FALSE)),"") ->  | J49: 25000 | K49: 10000 | L49: 0 | M49: 0 | P49: 0
A50: =IF(G50="","",CHOOSE((COUNTIF(#REF!,G50)>0)+1,"عام","خاص")) ->  | C50: جوهرة | D50: 1739991 | E50: بنزين | F50: 2021-01-08 | G50: 556168 | H50: =VLOOKUP(G50,#REF!,2,FALSE) ->  | I50: =IFERROR(IF(A50="","",VLOOKUP(A50,#REF!,2,FALSE)),"") ->  | J50: 25000 | K50: 10000 | L50: 0 | M50: 0 | P50: 0
A51: =IF(G51="","",CHOOSE((COUNTIF(#REF!,G51)>0)+1,"عام","خاص")) ->  | C51: جوهرة | D51: 1739994 | E51: بنزين | F51: 2021-01-08 | G51: 36945 | H51: =VLOOKUP(G51,#REF!,2,FALSE) ->  | I51: =IFERROR(IF(A51="","",VLOOKUP(A51,#REF!,2,FALSE)),"") ->  | J51: 25000 | K51: 10000 | L51: 0 | M51: 0 | P51: 0
A52: =IF(G52="","",CHOOSE((COUNTIF(#REF!,G52)>0)+1,"عام","خاص")) ->  | C52: جوهرة | D52: 1580617 | E52: بنزين | F52: 2021-01-09 | G52: 64214 | H52: =VLOOKUP(G52,#REF!,2,FALSE) ->  | I52: =IFERROR(IF(A52="","",VLOOKUP(A52,#REF!,2,FALSE)),"") ->  | J52: 25000 | K52: 10000 | L52: 0 | M52: 0 | P52: 0
Q53: =SUM(Q2:Q52) -> 0

Sheet 13
A1: الحالة | O1: المحطة | P1: استحقاق المحطة
A2: خاص | O2: المنتصر بالله | P2: =IFERROR(IF($A2="خاص",VLOOKUP($O2,المسافة!$B$2:$G$110,6,0)/2,VLOOKUP($O2,المسافة!$B$2:$G$110,6,0)),"") -> 25000
A3: عام | O3: المنتصر بالله | P3: =IFERROR(IF($A3="خاص",VLOOKUP($O3,المسافة!$B$2:$G$110,6,0)/2,VLOOKUP($O3,المسافة!$B$2:$G$110,6,0)),"") -> 50000
P4: =IFERROR(IF($A4="خاص",VLOOKUP($O4,المسافة!$B$2:$G$110,6,0)/2,VLOOKUP($O4,المسافة!$B$2:$G$110,6,0)),"") -> 
P5: =IFERROR(IF($A5="خاص",VLOOKUP($O5,المسافة!$B$2:$G$110,6,0)/2,VLOOKUP($O5,المسافة!$B$2:$G$110,6,0)),"") -> 
P6: =IFERROR(IF($A6="خاص",VLOOKUP($O6,المسافة!$B$2:$G$110,6,0)/2,VLOOKUP($O6,المسافة!$B$2:$G$110,6,0)),"") -> 
P7: =IFERROR(IF($A7="خاص",VLOOKUP($O7,المسافة!$B$2:$G$110,6,0)/2,VLOOKUP($O7,المسافة!$B$2:$G$110,6,0)),"") -> 
P8: =IFERROR(IF($A8="خاص",VLOOKUP($O8,المسافة!$B$2:$G$110,6,0)/2,VLOOKUP($O8,المسافة!$B$2:$G$110,6,0)),"") -> 
P9: =IFERROR(IF($A9="خاص",VLOOKUP($O9,المسافة!$B$2:$G$110,6,0)/2,VLOOKUP($O9,المسافة!$B$2:$G$110,6,0)),"") -> 
P10: =IFERROR(IF($A10="خاص",VLOOKUP($O10,المسافة!$B$2:$G$110,6,0)/2,VLOOKUP($O10,المسافة!$B$2:$G$110,6,0)),"") -> 

Sheet المسافة
A1: ت | B1: المحطة | G1: استحقاق المحطة
A2: 1 | B2: المنتصر بالله | G2: 50000
A3: 2 | B3: البادية الغربية | G3: 60000
A4: 3 | B4: المحمديات | G4: 75000
A5: 4 | B5: جنة عدن | G5: 75000
A6: 5 | B6: ذراع دجلة | G6: 100000
A7: 6 | B7: البغدادي | G7: 25000
A8: 7 | B8: الشجرة الطيبة | G8: 75000
A9: 8 | B9: دار السلام | G9: 75000
A10: 9 | B10: كبيسة | G10: 40000
A11: 10 | B11: الاوسمة | G11: 75000
